Workbook

Sheet 01.09.2025
B1: Согласовано Начальник МКУ "Управление образования" Муслюмовского района РТ ________________ /Л.Я. Хабибуллина/ | F1: Согласовано Директор ОУ ____________________________________________________________________________ | Y1: Утверждаю Индивидуальный предприниматель Ибрагимова Э.И. ______________ /Э.И. Ибрагимова/ | CB1: =IF(B5<>"",B5,"") -> 
A2: ЦИКЛИЧНОЕ ОЕННИЙ (ЗИМНИЙ) ДВУХНЕДЕЛЬНОЕ МЕНЮ ДЛЯ ОРГАНИЗАЦИИ ПИТАНИЯ ДЕТЕЙ В ВОЗРАСТЕ ДО 3-х ЛЕТ, ПОСЕЩАЮЩИХ ДОШКОЛЬНЫЕ ОБРАЗОВАТЕЛЬНЫЕ УЧРЕЖДЕНИЯ И ДОШКОЛЬНЫЕ ГРУППЫ ОБРАЗОВАТЕЛЬНЫХ УЧРЕЖДЕНИЙ МУСЛЮМОВСКОГО МУНИЦИПАЛЬНОГО РАЙОНА РТ НА 2025 г.
A6: =IF(#REF!<>"",#REF!,"") ->  | AG6: =IF(Дата_Сост<>"",Дата_Сост,"") -> 
AD7: с 01.09.2025г
A8: Но-мер рец. | B8: Прием пищи, наименование изделий (блюд) | C8: Вы-ход, г | D8: Белки, г | E8: Жиры, г | F8: Угле-воды, г | G8: ЭЦ, ккал | H8: НЖК | I8: ПНЖК | J8: МЖК | K8: Холестерин | L8: МД | M8: Крахмал | N8: ПВ | O8: РПВ | P8: НПВ | Q8: Органические кислоты | R8: Зола | S8: Na | T8: K | U8: Минеральные элементы, мг | Y8: Витамины, мг | AG8: Вита-мин С, мг | AH8: Алкоголь, г | AI8: Валин | AJ8: изолейцин | AK8: лейцин | AL8: лизин | AM8: метионин | AN8: треонин | AO8: триптофан | AP8: фенилаланин | AQ8: аланин | AR8: аргинин | AS8: аспарагиновая | AT8: гистидин | AU8: глицин | AV8: глутаминовая | AW8: оксипролин | AX8: пролин | AY8: серин | AZ8: тирозин | BA8: цистин | BB8: масляная | BC8: капроновая | BD8: каприловая | BE8: каприновая | BF8: лауриновая | BG8: миристиновая | BH8: пентадекановая | BI8: пальмитиновая | BJ8: маргариновая | BK8: стеариновая | BL8: арахиновая | BM8: бегеновая | BN8: лигноцериновая | BO8: миристолеиновая | BP8: пальмитолеиновая | BQ8: олеиновая | BR8: гадолеиновая | BS8: эруковая | BT8: линолевая | BU8: линоленовая | BV8: арахидоновая | BW8: Аденин | BX8: Гуанин | BY8: Ph | CA8: Цена, руб | CB8: Доля, % | CE8: I (макс.), мкг | CF8: I (мин.), мкг | CG8: I (сред.), мкг | CH8: Zn (макс.), мкг | CI8: Zn (мин.), мкг | CJ8: Zn (сред.), мкг | CK8: Se (макс.), мкг | CL8: Se (мин.), мкг | CM8: Se (сред.), мкг | CN8: Вложен-ный сахар, г | CO8: Вложен-ная соль, г
D9: всего | E9: всего | U9: Ca | V9: Mg | W9: P | X9: Fe | Y9: А | Z9: B | AA9: РЭ,мкг | AB9: ТЭ,мг | AC9: В1 | AD9: В2 | AE9: РР | AF9: НЭ
B10: 1 НЕДЕЛЯ
B11: 1 день
B12: Завтрак
A13: ="-" -> - | B13: Батон | C13: 30 | D13: 2.3 | E13: 1.5 | F13: 11.2 | G13: 66 | H13: 0.2 | I13: 0.0 | J13: 0.0 | K13: 0.0 | L13: 1.0 | M13: 9.2 | N13: 1.0 | O13: 0.0 | P13: 0.0 | Q13: 0.1 | R13: 0.5 | S13: 128.7 | T13: 39.3 | U13: 6.6 | V13: 9.9 | W13: 25.5 | X13: 0.6 | Y13: 0.0 | Z13: 0.0 | AA13: 0.0 | AB13: 0.5 | AC13: 0.1 | AD13: 0.0 | AE13: 0.5 | AF13: 0.9 | AG13: 0.0 | AH13: 0 | AI13: 111.6 | AJ13: 115.8 | AK13: 177.3 | AL13: 59.7 | AM13: 35.1 | AN13: 70.2 | AO13: 26.4 | AP13: 126 | AQ13: 78.3 | AR13: 108.9 | AS13: 90.3 | AT13: 48.3 | AU13: 84 | AV13: 697.5 | AW13: 0 | AX13: 227.1 | AY13: 99.3 | AZ13: 66.6 | BA13: 51.9 | BB13: 0 | BC13: 0 | BD13: 0 | BE13: 0 | BF13: 0 | BG13: 0.01 | BH13: 0 | BI13: 0.1 | BJ13: 0 | BK13: 0.05 | BL13: 0 | BM13: 0 | BN13: 0 | BO13: 0 | BP13: 0 | BQ13: 0.35 | BR13: 0 | BS13: 0 | BT13: 0.26 | BU13: 0.01 | BV13: 0 | BW13: 0 | BX13: 0 | BY13: 0 | BZ13: 10.23 | CC13: 0 | CE13: 0 | CF13: 0 | CG13: 0 | CH13: 570 | CI13: 219.6 | CJ13: 394.8 | CK13: 4.56 | CL13: 4.56 | CM13: 4.56 | CN13: 0 | CO13: 0
A14: ="4/13" -> 4/13 | B14: Сыр (порциями) | C14: 10 | D14: 1.5 | E14: 2.7 | F14: 0.0 | G14: 31 | H14: 1.5 | I14: 0.0 | J14: 0.0 | K14: 0.0 | L14: 0.0 | M14: 0.0 | N14: 0.0 | O14: 0.0 | P14: 0.0 | Q14: 0.2 | R14: 0.4 | S14: 110.0 | T14: 10.0 | U14: 100.0 | V14: 5.5 | W14: 60.0 | X14: 0.1 | Y14: 21.0 | Z14: 17.0 | AA14: 23.8 | AB14: 0.0 | AC14: 0.0 | AD14: 0.0 | AE14: 0.0 | AF14: 0.7 | AG14: 0.1 | AH14: 0 | AI14: 157 | AJ14: 117 | AK14: 230 | AL14: 158 | AM14: 56 | AN14: 95 | AO14: 70 | AP14: 134 | AQ14: 76 | AR14: 87 | AS14: 156 | AT14: 70 | AU14: 51 | AV14: 517 | AW14: 0 | AX14: 273 | AY14: 129 | AZ14: 139 | BA14: 21.5 | BB14: 0 | BC14: 0.01 | BD14: 0.04 | BE14: 0.11 | BF14: 0.13 | BG14: 0.33 | BH14: 0.04 | BI14: 0.7 | BJ14: 0.01 | BK14: 0.16 | BL14: 0.01 | BM14: 0 | BN14: 0 | BO14: 0.05 | BP14: 0.07 | BQ14: 0.52 | BR14: 0 | BS14: 0 | BT14: 0.07 | BU14: 0 | BV14: 0 | BW14: 0 | BX14: 0 | BY14: 0 | BZ14: 4.08 | CC14: 23.83 | CE14: 0 | CF14: 0 | CG14: 0 | CH14: 500 | CI14: 370 | CJ14: 435 | CK14: 1.53 | CL14: 0.97 | CM14: 1.25 | CN14: 0 | CO14: 0
A15: ="31/10" -> 31/10 | B15: Чай с молоком (вариант 3) | C15: 150 | D15: 1.2 | E15: 1.0 | F15: 5.5 | G15: 34 | H15: 0.6 | I15: 0.0 | J15: 0.0 | K15: 0.0 | L15: 5.5 | M15: 0.0 | N15: 0.1 | O15: 0.0 | P15: 0.0 | Q15: 0.0 | R15: 0.3 | S15: 18.6 | T15: 54.3 | U15: 43.8 | V15: 5.0 | W15: 31.4 | X15: 0.1 | Y15: 7.5 | Z15: 3.4 | AA15: 8.3 | AB15: 0.0 | AC15: 0.0 | AD15: 0.1 | AE15: 0.0 | AF15: 0.3 | AG15: 0.2 | AH15: 0 | AI15: 0 | AJ15: 0 | AK15: 0 | AL15: 0 | AM15: 0 | AN15: 0 | AO15: 0 | AP15: 0 | AQ15: 0 | AR15: 0 | AS15: 0 | AT15: 0 | AU15: 0 | AV15: 0 | AW15: 0 | AX15: 0 | AY15: 0 | AZ15: 0 | BA15: 0 | BB15: 0 | BC15: 0 | BD15: 0 | BE15: 0 | BF15: 0 | BG15: 0 | BH15: 0 | BI15: 0 | BJ15: 0 | BK15: 0 | BL15: 0 | BM15: 0 | BN15: 0 | BO15: 0 | BP15: 0 | BQ15: 0 | BR15: 0 | BS15: 0 | BT15: 0 | BU15: 0 | BV15: 0 | BW15: 0 | BX15: 0 | BY15: 0 | BZ15: 145.94 | CC15: 8.06 | CE15: 6.84 | CF15: 3.69 | CG15: 5.26 | CH15: 567 | CI15: 214.2 | CJ15: 390.6 | CK15: 35.65 | CL15: 19 | CM15: 27.32 | CN15: 3.75 | CO15: 0
A16: ="15/4" -> 15/4 | B16: Каша ячневая молочная с маслом сливочным | C16: 150 | D16: 4.5 | E16: 3.6 | F16: 25.3 | G16: 148 | H16: 2.6 | I16: 0.1 | J16: 0.0 | K16: 0.0 | L16: 5.7 | M16: 17.4 | N16: 2.2 | O16: 0.0 | P16: 0.0 | Q16: 0.1 | R16: 1.2 | S16: 180.1 | T16: 132.1 | U16: 86.4 | V16: 20.4 | W16: 137.5 | X16: 0.5 | Y16: 14.4 | Z16: 12.0 | AA16: 26.7 | AB16: 0.5 | AC16: 0.1 | AD16: 0.1 | AE16: 0.7 | AF16: 1.9 | AG16: 0.3 | AH16: 0 | AI16: 136.54 | AJ16: 132.29 | AK16: 145.96 | AL16: 99.97 | AM16: 45.6 | AN16: 71.83 | AO16: 35.05 | AP16: 147.82 | AQ16: 115.23 | AR16: 138.91 | AS16: 180.68 | AT16: 65.85 | AU16: 116.3 | AV16: 679.39 | AW16: 0 | AX16: 370.77 | AY16: 111.5 | AZ16: 85.78 | BA16: 56.68 | BB16: 0.07 | BC16: 0.03 | BD16: 0.02 | BE16: 0.04 | BF16: 0.05 | BG16: 0.21 | BH16: 0 | BI16: 0.58 | BJ16: 0 | BK16: 0.18 | BL16: 0 | BM16: 0 | BN16: 0 | BO16: 0.04 | BP16: 0.06 | BQ16: 0.48 | BR16: 0 | BS16: 0 | BT16: 0.03 | BU16: 0 | BV16: 0 | BW16: 0 | BX16: 0 | BY16: 0 | BZ16: 133.35 | CC16: 16.4 | CE16: 34.24 | CF16: 14.52 | CG16: 24.38 | CH16: 2147.67 | CI16: 982.95 | CJ16: 1565.31 | CK16: 45.21 | CL16: 23.88 | CM16: 34.54 | CN16: 3 | CO16: 0.38
B17: Итого за 'Завтрак' | C17: =SUM(C13:C16) -> 340 | D17: =SUM(D13:D16) -> 9.4 | E17: 8.7 | F17: 42.0 | G17: 279 | H17: 4.9 | I17: 0.1 | J17: 0.0 | K17: 0.0 | L17: 12.1 | M17: 26.7 | N17: 3.3 | O17: 0.0 | P17: 0.0 | Q17: 0.4 | R17: 2.4 | S17: 437.4 | T17: 235.7 | U17: 236.8 | V17: 40.8 | W17: 254.4 | X17: 1.3 | Y17: 42.9 | Z17: 32.4 | AA17: 58.8 | AB17: 1.0 | AC17: 0.1 | AD17: 0.2 | AE17: 1.2 | AF17: 3.8 | AG17: 0.6 | AH17: 0 | AI17: 405.14 | AJ17: 365.09 | AK17: 553.26 | AL17: 317.67 | AM17: 136.7 | AN17: 237.03 | AO17: 131.45 | AP17: 407.82 | AQ17: 269.53 | AR17: 334.81 | AS17: 426.98 | AT17: 184.15 | AU17: 251.3 | AV17: 1893.89 | AW17: 0 | AX17: 870.87 | AY17: 339.8 | AZ17: 291.38 | BA17: 130.08 | BB17: 0.07 | BC17: 0.04 | BD17: 0.06 | BE17: 0.15 | BF17: 0.18 | BG17: 0.55 | BH17: 0.04 | BI17: 1.38 | BJ17: 0.01 | BK17: 0.39 | BL17: 0.01 | BM17: 0 | BN17: 0 | BO17: 0.09 | BP17: =SUM(BP13:BP16) -> 0.13 | BQ17: 1.35 | BR17: 0 | BS17: 0 | BT17: 0.36 | BU17: 0.01 | BV17: 0 | BW17: 0 | BX17: 0 | BY17: 0 | BZ17: 293.6 | CA17: 0 | CB17: 0 | CC17: 48.29 | CD17: 0 | CE17: 41.08 | CF17: 18.21 | CG17: 29.64 | CH17: 3784.67 | CI17: 1786.75 | CJ17: 2785.71 | CK17: 86.95 | CL17: 48.41 | CM17: 67.67 | CN17: 6.75 | CO17: 0.38
B18: 10:00
A19: ="-" -> - | B19: Фрукты (яблоки) | C19: 100 | D19: 0.4 | E19: 0.4 | F19: 11.6 | G19: 50 | H19: 0.1 | I19: 0.0 | J19: 0.0 | K19: 0.0 | L19: 10.0 | M19: 0.8 | N19: 0.8 | O19: 0.0 | P19: 0.0 | Q19: 0.8 | R19: 0.5 | S19: 26.0 | T19: 278.0 | U19: 16.0 | V19: 9.0 | W19: 11.0 | X19: 2.2 | Y19: 0.0 | Z19: 30.0 | AA19: 5.0 | AB19: 0.2 | AC19: 0.0 | AD19: 0.0 | AE19: 0.3 | AF19: 0.4 | AG19: 10.0 | AH19: 0 | AI19: 12 | AJ19: 13 | AK19: 19 | AL19: 18 | AM19: 3 | AN19: 11 | AO19: 3 | AP19: 9 | AQ19: 17 | AR19: 10 | AS19: 78 | AT19: 7 | AU19: 14 | AV19: 42 | AW19: 0 | AX19: 13 | AY19: 16 | AZ19: 6 | BA19: 5 | BB19: 0 | BC19: 0 | BD19: 0 | BE19: 0 | BF19: 0 | BG19: 0 | BH19: 0 | BI19: 0 | BJ19: 0 | BK19: 0 | BL19: 0 | BM19: 0 | BN19: 0 | BO19: 0 | BP19: 0 | BQ19: 0 | BR19: 0 | BS19: 0 | BT19: 0 | BU19: 0 | BV19: 0 | BW19: 0 | BX19: 0 | BY19: 0 | BZ19: 86.3 | CC19: 5 | CE19: 2 | CF19: 2 | CG19: 2 | CH19: 150 | CI19: 150 | CJ19: 150 | CK19: 0 | CL19: 0 | CM19: 0 | CN19: 0 | CO19: 0
B20: Итого за '10:00' | C20: =SUM(C19) -> 100 | D20: =SUM(D19) -> 0.4 | E20: 0.4 | F20: 11.6 | G20: 50 | H20: 0.1 | I20: 0.0 | J20: 0.0 | K20: 0.0 | L20: 10.0 | M20: 0.8 | N20: 0.8 | O20: 0.0 | P20: 0.0 | Q20: 0.8 | R20: 0.5 | S20: 26.0 | T20: 278.0 | U20: 16.0 | V20: 9.0 | W20: 11.0 | X20: 2.2 | Y20: 0.0 | Z20: 30.0 | AA20: 5.0 | AB20: 0.2 | AC20: 0.0 | AD20: 0.0 | AE20: 0.3 | AF20: 0.4 | AG20: 10.0 | AH20: 0 | AI20: 12 | AJ20: 13 | AK20: 19 | AL20: 18 | AM20: 3 | AN20: 11 | AO20: 3 | AP20: 9 | AQ20: 17 | AR20: 10 | AS20: 78 | AT20: 7 | AU20: 14 | AV20: 42 | AW20: 0 | AX20: 13 | AY20: 16 | AZ20: 6 | BA20: 5 | BB20: 0 | BC20: 0 | BD20: 0 | BE20: 0 | BF20: 0 | BG20: 0 | BH20: 0 | BI20: 0 | BJ20: 0 | BK20: 0 | BL20: 0 | BM20: 0 | BN20: 0 | BO20: 0 | BP20: 0 | BQ20: 0 | BR20: 0 | BS20: 0 | BT20: 0 | BU20: 0 | BV20: 0 | BW20: 0 | BX20: 0 | BY20: 0 | BZ20: 86.3 | CB20: =$G$20/#REF!*100 ->  | CC20: 5 | CE20: 2 | CF20: 2 | CG20: 2 | CH20: 150 | CI20: 150 | CJ20: 150 | CK20: 0 | CL20: 0 | CM20: 0 | CN20: 0 | CO20: 0
B21: Обед
A22: ="-" -> - | B22: Хлеб пшеничный | C22: 20 | D22: 1.2 | E22: 0.1 | F22: 7.4 | G22: 36 | H22: 0.0 | I22: 0.0 | J22: 0.0 | K22: 0.0 | L22: 0.2 | M22: 7.1 | N22: 0.0 | O22: 0.0 | P22: 0.0 | Q22: 0.0 | R22: 0.4 | S22: 0.0 | T22: 0.0 | U22: 0.0 | V22: 0.0 | W22: 0.0 | X22: 0.0 | Y22: 0.0 | Z22: 0.0 | AA22: 0.0 | AB22: 0.0 | AC22: 0.0 | AD22: 0.0 | AE22: 0.0 | AF22: 0.0 | AG22: 0.0 | AH22: 0 | AI22: 63.86 | AJ22: 66.47 | AK22: 101.79 | AL22: 33.76 | AM22: 20.01 | AN22: 40.02 | AO22: 15.14 | AP22: 72.38 | AQ22: 44.89 | AR22: 62.64 | AS22: 51.68 | AT22: 27.14 | AU22: 48.02 | AV22: 401.59 | AW22: 0 | AX22: 130.85 | AY22: 56.9 | AZ22: 37.76 | BA22: 29.93 | BB22: 0 | BC22: 0 | BD22: 0 | BE22: 0 | BF22: 0 | BG22: 0 | BH22: 0 | BI22: 0.02 | BJ22: 0 | BK22: 0 | BL22: 0 | BM22: 0 | BN22: 0 | BO22: 0 | BP22: 0 | BQ22: 0.01 | BR22: 0 | BS22: 0 | BT22: 0.06 | BU22: 0 | BV22: 0 | BW22: 0 | BX22: 0 | BY22: 0 | BZ22: 7.82 | CC22: 0 | CE22: 0 | CF22: 0 | CG22: 0 | CH22: 380 | CI22: 146.4 | CJ22: 263.2 | CK22: 3.04 | CL22: 3.04 | CM22: 3.04 | CN22: 0 | CO22: 0
A23: ="-" -> - | B23: Хлеб ржаной | C23: 20 | D23: 1.2 | E23: 0.2 | F23: 8.3 | G23: 38 | H23: 0.0 | I23: 0.0 | J23: 0.0 | K23: 0.0 | L23: 0.2 | M23: 6.4 | N23: 1.7 | O23: 0.0 | P23: 0.0 | Q23: 0.2 | R23: 0.5 | S23: 122.0 | T23: 49.0 | U23: 7.0 | V23: 9.4 | W23: 31.6 | X23: 0.8 | Y23: 0.0 | Z23: 1.0 | AA23: 0.2 | AB23: 0.3 | AC23: 0.0 | AD23: 0.0 | AE23: 0.1 | AF23: 0.4 | AG23: 0.0 | AH23: 0 | AI23: 64.4 | AJ23: 49.6 | AK23: 85.4 | AL23: 44.6 | AM23: 18.6 | AN23: 39.6 | AO23: 16 | AP23: 74.2 | AQ23: 59.4 | AR23: 58.2 | AS23: 92.8 | AT23: 24.8 | AU23: 62 | AV23: 311.8 | AW23: 0 | AX23: 105.2 | AY23: 58.2 | AZ23: 36 | BA23: 26 | BB23: 0 | BC23: 0 | BD23: 0 | BE23: 0 | BF23: 0 | BG23: 0 | BH23: 0 | BI23: 0.03 | BJ23: 0 | BK23: 0 | BL23: 0 | BM23: 0 | BN23: 0 | BO23: 0 | BP23: 0 | BQ23: 0.02 | BR23: 0 | BS23: 0 | BT23: 0.1 | BU23: 0.02 | BV23: 0 | BW23: 0 | BX23: 0 | BY23: 0 | BZ23: 9.4 | CC23: 0.17 | CE23: 3 | CF23: 3 | CG23: 3 | CH23: 570 | CI23: 219.6 | CJ23: 394.8 | CK23: 5.7 | CL23: 4.74 | CM23: 5.22 | CN23: 0 | CO23: 0
A24: ="6/10" -> 6/10 | B24: Компот из сухофруктов | C24: 150 | D24: 0.8 | E24: 0.0 | F24: 17.4 | G24: 66 | H24: 0.0 | I24: 0.0 | J24: 0.0 | K24: 0.0 | L24: 14.4 | M24: 0.4 | N24: 2.6 | O24: 0.0 | P24: 0.0 | Q24: 0.2 | R24: 0.6 | S24: 2.6 | T24: 255.2 | U24: 23.5 | V24: 15.0 | W24: 20.4 | X24: 0.5 | Y24: 0.0 | Z24: 472.5 | AA24: 87.5 | AB24: 0.8 | AC24: 0.0 | AD24: 0.0 | AE24: 0.4 | AF24: 0.6 | AG24: 0.4 | AH24: 0 | AI24: 0.01 | AJ24: 0.01 | AK24: 0.01 | AL24: 0.01 | AM24: 0 | AN24: 0.01 | AO24: 0 | AP24: 0.01 | AQ24: 0.01 | AR24: 0.01 | AS24: 0.04 | AT24: 0 | AU24: 0.01 | AV24: 0.02 | AW24: 0 | AX24: 0.01 | AY24: 0.01 | AZ24: 0 | BA24: 0 | BB24: 0 | BC24: 0 | BD24: 0 | BE24: 0 | BF24: 0 | BG24: 0 | BH24: 0 | BI24: 0 | BJ24: 0 | BK24: 0 | BL24: 0 | BM24: 0 | BN24: 0 | BO24: 0 | BP24: 0 | BQ24: 0.01 | BR24: 0 | BS24: 0 | BT24: 0 | BU24: 0 | BV24: 0 | BW24: 0 | BX24: 0 | BY24: 0 | BZ24: 160.51 | CC24: 78.75 | CE24: 3.95 | CF24: 3.95 | CG24: 3.95 | CH24: 454.5 | CI24: 172.98 | CJ24: 313.74 | CK24: 41.94 | CL24: 24.93 | CM24: 33.44 | CN24: 7.5 | CO24: 0
A25: ="6/1" -> 6/1 | B25: Салат из белокочанной капусты с морковью и растительным маслом | C25: 30 | D25: 0.5 | E25: 1.8 | F25: 2.8 | G25: 28 | H25: 0.2 | I25: 1.2 | J25: 0.0 | K25: 0.0 | L25: 2.2 | M25: 0.0 | N25: 0.6 | O25: 0.0 | P25: 0.0 | Q25: 0.1 | R25: 0.4 | S25: 60.8 | T25: 75.6 | U25: 12.4 | V25: 5.4 | W25: 9.6 | X25: 0.2 | Y25: 0.0 | Z25: 568.9 | AA25: 96.7 | AB25: 0.8 | AC25: 0.0 | AD25: 0.0 | AE25: 0.2 | AF25: 0.3 | AG25: 10.2 | AH25: 0 | AI25: 14.81 | AJ25: 12.67 | AK25: 16.18 | AL25: 15.24 | AM25: 5.27 | AN25: 11.43 | AO25: 2.58 | AP25: 13.81 | AQ25: 17.91 | AR25: 20.67 | AS25: 44.28 | AT25: 6.83 | AU25: 11.73 | AV25: 71.69 | AW25: 0 | AX25: 14.42 | AY25: 14.56 | AZ25: 11.87 | BA25: 4.97 | BB25: 0 | BC25: 0 | BD25: 0 | BE25: 0 | BF25: 0 | BG25: 0 | BH25: 0 | BI25: 0.11 | BJ25: 0 | BK25: 0.07 | BL25: 0.01 | BM25: 0.01 | BN25: 0 | BO25: 0 | BP25: 0 | BQ25: 0.42 | BR25: 0 | BS25: 0 | BT25: 1.04 | BU25: 0 | BV25: 0 | BW25: 0 | BX25: 0 | BY25: 0 | BZ25: 24.57 | CC25: 94.82 | CE25: 13.55 | CF25: 6.21 | CG25: 9.88 | CH25: 406.33 | CI25: 97.29 | CJ25: 251.81 | CK25: 6.53 | CL25: 6.16 | CM25: 6.34 | CN25: 0.9 | CO25: 0.15
A26: ="18/2" -> 18/2 | B26: Суп картофельный с макаронными изделиями на говяжьем бульоне | C26: 150 | D26: 2.4 | E26: 5.3 | F26: 12.2 | G26: 105 | H26: 1.3 | I26: 0.8 | J26: 0.0 | K26: 0.0 | L26: 1.5 | M26: 9.7 | N26: 1.0 | O26: 0.0 | P26: 0.0 | Q26: 0.1 | R26: 1.5 | S26: 348.8 | T26: 265.0 | U26: 11.5 | V26: 13.4 | W26: 33.8 | X26: 0.6 | Y26: 0.0 | Z26: 785.2 | AA26: 145.3 | AB26: 0.7 | AC26: 0.1 | AD26: 0.1 | AE26: 0.6 | AF26: 1.0 | AG26: 3.7 | AH26: 0 | AI26: 40.75 | AJ26: 44 | AK26: 70.65 | AL26: 41.96 | AM26: 13.68 | AN26: 36.82 | AO26: 14.62 | AP26: 48.22 | AQ26: 46.51 | AR26: 92.04 | AS26: 58.16 | AT26: 18.4 | AU26: 39.32 | AV26: 286.58 | AW26: 0 | AX26: 71 | AY26: 42.6 | AZ26: 28.2 | BA26: 17.84 | BB26: 0 | BC26: 0 | BD26: 0 | BE26: 0 | BF26: 0 | BG26: 0 | BH26: 0 | BI26: 0.11 | BJ26: 0 | BK26: 0.06 | BL26: 0 | BM26: 0.01 | BN26: 0 | BO26: 0 | BP26: 0 | BQ26: 0.35 | BR26: 0 | BS26: 0 | BT26: 0.75 | BU26: 0 | BV26: 0 | BW26: 0 | BX26: 0 | BY26: 0 | BZ26: 156.24 | CC26: 130.86 | CE26: 49.17 | CF26: 27.53 | CG26: 38.35 | CH26: 625.17 | CI26: 375.25 | CJ26: 500.21 | CK26: 38.79 | CL26: 19.02 | CM26: 28.9 | CN26: 0 | CO26: 0.9
A27: ="4/9" -> 4/9 | B27: Плов из мяса цыплят-бройлеров | C27: 150 | D27: 13.5 | E27: 14.7 | F27: 28.2 | G27: 298 | H27: 3.9 | I27: 4.4 | J27: 0.0 | K27: 0.0 | L27: 1.3 | M27: 25.4 | N27: 1.4 | O27: 0.0 | P27: 0.0 | Q27: 0.0 | R27: 1.2 | S27: 101.9 | T27: 107.1 | U27: 15.2 | V27: 25.3 | W27: 121.0 | X27: 1.2 | Y27: 23.7 | Z27: 996.8 | AA27: 213.8 | AB27: 3.5 | AC27: 0.1 | AD27: 0.1 | AE27: 4.7 | AF27: 9.8 | AG27: 0.7 | AH27: 0 | AI27: 669.88 | AJ27: 528.83 | AK27: 1059.06 | AL27: 1048.98 | AM27: 338.19 | AN27: 599.27 | AO27: 210.7 | AP27: 572.18 | AQ27: 829.88 | AR27: 910.28 | AS27: 1174.39 | AT27: 350.85 | AU27: 940.79 | AV27: 1968.23 | AW27: 92.14 | AX27: 640.73 | AY27: 629.97 | AZ27: 483.3 | BA27: 180.49 | BB27: 0 | BC27: 0 | BD27: 0 | BE27: 0 | BF27: 0 | BG27: 0 | BH27: 0 | BI27: 0.36 | BJ27: 0 | BK27: 0.22 | BL27: 0.02 | BM27: 0.04 | BN27: 0 | BO27: 0 | BP27: 0 | BQ27: 1.28 | BR27: 0 | BS27: 0 | BT27: 3.04 | BU27: 0 | BV27: 0 | BW27: 0 | BX27: 0 | BY27: 0 | BZ27: 132.39 | CC27: 189.86 | CE27: 21.96 | CF27: 11.1 | CG27: 16.53 | CH27: 4297.8 | CI27: 2473.03 | CJ27: 3385.41 | CK27: 22.31 | CL27: 14.18 | CM27: 18.24 | CN27: 0 | CO27: 0.6
B28: Итого за 'Обед' | C28: =SUM(C22:C27) -> 520 | D28: =SUM(D22:D27) -> 19.5 | E28: 22.2 | F28: 76.3 | G28: 571 | H28: 5.6 | I28: 6.3 | J28: 0.0 | K28: 0.0 | L28: 19.9 | M28: 49.1 | N28: 7.3 | O28: 0.0 | P28: 0.0 | Q28: 0.7 | R28: 4.6 | S28: 636.1 | T28: 751.9 | U28: 69.7 | V28: 68.4 | W28: 216.3 | X28: 3.2 | Y28: 23.7 | Z28: 2824.3 | AA28: 543.4 | AB28: 6.1 | AC28: 0.2 | AD28: 0.2 | AE28: 6.0 | AF28: 12.0 | AG28: 14.9 | AH28: 0 | AI28: 853.71 | AJ28: 701.57 | AK28: 1333.09 | AL28: 1184.55 | AM28: 395.75 | AN28: 727.14 | AO28: 259.04 | AP28: 780.8 | AQ28: 998.61 | AR28: 1143.83 | AS28: 1421.35 | AT28: 428.03 | AU28: 1101.88 | AV28: 3039.91 | AW28: 92.14 | AX28: 962.21 | AY28: 802.24 | AZ28: 597.14 | BA28: 259.23 | BB28: 0 | BC28: 0 | BD28: 0 | BE28: 0 | BF28: 0 | BG28: 0 | BH28: 0 | BI28: 0.63 | BJ28: 0 | BK28: 0.35 | BL28: 0.03 | BM28: 0.06 | BN28: 0 | BO28: 0 | BP28: 0.01 | BQ28: 2.09 | BR28: 0 | BS28: 0 | BT28: 4.99 | BU28: 0.02 | BV28: 0 | BW28: 0 | BX28: 0 | BY28: 0 | BZ28: 490.92 | CB28: =$G$28/#REF!*100 ->  | CC28: 494.45 | CE28: 91.62 | CF28: 51.78 | CG28: 71.7 | CH28: 6733.8 | CI28: 3484.56 | CJ28: 5109.18 | CK28: 118.3 | CL28: 72.06 | CM28: 95.18 | CN28: 8.4 | CO28: 1.65
B29: Уплотненный полдник
A30: ="-" -> - | B30: Хлеб пшеничный | C30: 10 | D30: 0.6 | E30: 0.1 | F30: 3.7 | G30: 18 | H30: 0.0 | I30: 0.0 | J30: 0.0 | K30: 0.0 | L30: 0.1 | M30: 3.6 | N30: 0.0 | O30: 0.0 | P30: 0.0 | Q30: 0.0 | R30: 0.2 | S30: 0.0 | T30: 0.0 | U30: 0.0 | V30: 0.0 | W30: 0.0 | X30: 0.0 | Y30: 0.0 | Z30: 0.0 | AA30: 0.0 | AB30: 0.0 | AC30: 0.0 | AD30: 0.0 | AE30: 0.0 | AF30: 0.0 | AG30: 0.0 | AH30: 0 | AI30: 31.93 | AJ30: 33.23 | AK30: 50.9 | AL30: 16.88 | AM30: 10.01 | AN30: 20.01 | AO30: 7.57 | AP30: 36.19 | AQ30: 22.45 | AR30: 31.32 | AS30: 25.84 | AT30: 13.57 | AU30: 24.01 | AV30: 200.8 | AW30: 0 | AX30: 65.42 | AY30: 28.45 | AZ30: 18.88 | BA30: 14.96 | BB30: 0 | BC30: 0 | BD30: 0 | BE30: 0 | BF30: 0 | BG30: 0 | BH30: 0 | BI30: 0.01 | BJ30: 0 | BK30: 0 | BL30: 0 | BM30: 0 | BN30: 0 | BO30: 0 | BP30: 0 | BQ30: 0.01 | BR30: 0 | BS30: 0 | BT30: 0.03 | BU30: 0 | BV30: 0 | BW30: 0 | BX30: 0 | BY30: 0 | BZ30: 3.91 | CC30: 0 | CE30: 0 | CF30: 0 | CG30: 0 | CH30: 570 | CI30: 219.6 | CJ30: 394.8 | CK30: 4.56 | CL30: 4.56 | CM30: 4.56 | CN30: 0 | CO30: 0
A31: ="-" -> - | B31: Хлеб ржаной | C31: 10 | D31: 0.6 | E31: 0.1 | F31: 4.2 | G31: 19 | H31: 0.0 | I31: 0.0 | J31: 0.0 | K31: 0.0 | L31: 0.1 | M31: 3.2 | N31: 0.8 | O31: 0.0 | P31: 0.0 | Q31: 0.1 | R31: 0.3 | S31: 61.0 | T31: 24.5 | U31: 3.5 | V31: 4.7 | W31: 15.8 | X31: 0.4 | Y31: 0.0 | Z31: 0.5 | AA31: 0.1 | AB31: 0.1 | AC31: 0.0 | AD31: 0.0 | AE31: 0.1 | AF31: 0.2 | AG31: 0.0 | AH31: 0 | AI31: 32.2 | AJ31: 24.8 | AK31: 42.7 | AL31: 22.3 | AM31: 9.3 | AN31: 19.8 | AO31: 8 | AP31: 37.1 | AQ31: 29.7 | AR31: 29.1 | AS31: 46.4 | AT31: 12.4 | AU31: 31 | AV31: 155.9 | AW31: 0 | AX31: 52.6 | AY31: 29.1 | AZ31: 18 | BA31: 13 | BB31: 0 | BC31: 0 | BD31: 0 | BE31: 0 | BF31: 0 | BG31: 0 | BH31: 0 | BI31: 0.01 | BJ31: 0 | BK31: 0 | BL31: 0 | BM31: 0 | BN31: 0 | BO31: 0 | BP31: 0 | BQ31: 0.01 | BR31: 0 | BS31: 0 | BT31: 0.05 | BU31: 0.01 | BV31: 0 | BW31: 0 | BX31: 0 | BY31: 0 | BZ31: 4.7 | CC31: 0.08 | CE31: 0.1 | CF31: 0.1 | CG31: 0.1 | CH31: 19 | CI31: 7.32 | CJ31: 13.16 | CK31: 0.19 | CL31: 0.16 | CM31: 0.17 | CN31: 0 | CO31: 0
A32: ="27/10" -> 27/10 | B32: Чай полусладкий | C32: 150 | D32: 0.2 | E32: 0.0 | F32: 3.8 | G32: 15 | H32: 0.0 | I32: 0.0 | J32: 0.0 | K32: 0.0 | L32: 3.7 | M32: 0.0 | N32: 0.1 | O32: 0.0 | P32: 0.0 | Q32: 0.0 | R32: 0.1 | S32: 0.0 | T32: 0.1 | U32: 0.1 | V32: 0.0 | W32: 0.0 | X32: 0.0 | Y32: 0.0 | Z32: 0.0 | AA32: 0.0 | AB32: 0.0 | AC32: 0.0 | AD32: 0.0 | AE32: 0.0 | AF32: 0.0 | AG32: 0.0 | AH32: 0 | AI32: 0 | AJ32: 0 | AK32: 0 | AL32: 0 | AM32: 0 | AN32: 0 | AO32: 0 | AP32: 0 | AQ32: 0 | AR32: 0 | AS32: 0 | AT32: 0 | AU32: 0 | AV32: 0 | AW32: 0 | AX32: 0 | AY32: 0 | AZ32: 0 | BA32: 0 | BB32: 0 | BC32: 0 | BD32: 0 | BE32: 0 | BF32: 0 | BG32: 0 | BH32: 0 | BI32: 0 | BJ32: 0 | BK32: 0 | BL32: 0 | BM32: 0 | BN32: 0 | BO32: 0 | BP32: 0 | BQ32: 0 | BR32: 0 | BS32: 0 | BT32: 0 | BU32: 0 | BV32: 0 | BW32: 0 | BX32: 0 | BY32: 0 | BZ32: 150.07 | CC32: 0 | CE32: 3.69 | CF32: 3.69 | CG32: 3.69 | CH32: 398.25 | CI32: 156.6 | CJ32: 277.43 | CK32: 39.61 | CL32: 23.41 | CM32: 31.51 | CN32: 3.75 | CO32: 0
A33: 2/4 | B33: Каша гречневая молочная с маслом сливочным | C33: 150 | D33: 5.9 | E33: 5.5 | F33: 25.9 | G33: 170 | H33: 3.2 | I33: 0.1 | J33: 0.0 | K33: 0.0 | L33: 6.9 | M33: 15.8 | N33: 3.2 | O33: 0.0 | P33: 0.0 | Q33: 0.1 | R33: 1.5 | S33: 182.3 | T33: 222.5 | U33: 95.4 | V33: 67.1 | W33: 147.2 | X33: 2.1 | Y33: 30.0 | Z33: 19.6 | AA33: 34.0 | AB33: 0.3 | AC33: 0.1 | AD33: 0.2 | AE33: 1.1 | AF33: 2.8 | AG33: 0.4 | AH33: 0 | AI33: 175 | AJ33: 136.75 | AK33: 221.82 | AL33: 157.47 | AM33: 94.7 | AN33: 119.33 | AO33: 54.5 | AP33: 175.59 | AQ33: 171.84 | AR33: 330.24 | AS33: 326.08 | AT33: 89.49 | AU33: 212.56 | AV33: 669.66 | AW33: 0 | AX33: 148.76 | AY33: 180.15 | AZ33: 127.96 | BA33: 97.39 | BB33: 0.1 | BC33: 0.05 | BD33: 0.02 | BE33: 0.06 | BF33: 0.06 | BG33: 0.29 | BH33: 0 | BI33: 0.97 | BJ33: 0 | BK33: 0.26 | BL33: 0 | BM33: 0 | BN33: 0 | BO33: 0.06 | BP33: 0.09 | BQ33: 0.98 | BR33: 0.01 | BS33: 0 | BT33: 0.34 | BU33: 0.03 | BV33: 0 | BW33: 0 | BX33: 0 | BY33: 0 | BZ33: 124.39 | CC33: 33.26 | CE33: 24 | CF33: 11.13 | CG33: 17.57 | CH33: 1653.5 | CI33: 750.87 | CJ33: 1202.19 | CK33: 29.4 | CL33: 15.18 | CM33: 22.29 | CN33: 3 | CO33: 0.38
B34: Итого за 'Ужин' | C34: =SUM(C30:C33) -> 320 | D34: =SUM(D30:D33) -> 7.3 | E34: 5.7 | F34: 37.5 | G34: 223 | H34: 3.2 | I34: 0.1 | J34: 0.0 | K34: 0.0 | L34: 10.8 | M34: 22.6 | N34: 4.2 | O34: 0.0 | P34: 0.0 | Q34: 0.2 | R34: 1.9 | S34: 243.4 | T34: 247.1 | U34: 99.0 | V34: 71.8 | W34: 163.0 | X34: 2.5 | Y34: 30.0 | Z34: 20.1 | AA34: 34.1 | AB34: 0.4 | AC34: 0.2 | AD34: 0.2 | AE34: 1.2 | AF34: 3.0 | AG34: 0.4 | AH34: 0 | AI34: 358.94 | AJ34: 313.12 | AK34: 518.28 | AL34: 359.82 | AM34: 168.4 | AN34: 254.69 | AO34: 101.67 | AP34: 356.19 | AQ34: 223.99 | AR34: 390.66 | AS34: 398.32 | AT34: 115.46 | AU34: 267.57 | AV34: 1026.35 | AW34: 0 | AX34: 266.79 | AY34: 237.7 | AZ34: 300.08 | BA34: 144.46 | BB34: 0.1 | BC34: 0.05 | BD34: 0.02 | BE34: 0.06 | BF34: 0.06 | BG34: 0.29 | BH34: 0 | BI34: 0.99 | BJ34: 0 | BK34: 0.26 | BL34: 0 | BM34: 0 | BN34: 0 | BO34: 0.06 | BP34: 0.09 | BQ34: 0.99 | BR34: 0.01 | BS34: 0 | BT34: 0.42 | BU34: 0.04 | BV34: 0 | BW34: 0 | BX34: 0 | BY34: 0 | BZ34: 282.62 | CB34: =$G$34/#REF!*100 ->  | CC34: 33.35 | CE34: 32.58 | CF34: 17.15 | CG34: 24.86 | CH34: 2971.45 | CI34: 1284.57 | CJ34: 2128.01 | CK34: 79.64 | CL34: 46.35 | CM34: 62.99 | CN34: 6.75 | CO34: 0.38
B35: Итого за день | C35: =C17+C20+C28+C34 -> 1280 | D35: 36.6 | E35: 37.0 | F35: 167.4 | G35: 1123 | H35: 13.8 | I35: 6.5 | J35: 0.0 | K35: 0.0 | L35: 52.8 | M35: 99.1 | N35: 15.5 | O35: 0.0 | P35: 0.0 | Q35: 2.0 | R35: 9.4 | S35: 1342.8 | T35: 1512.7 | U35: 421.5 | V35: 190.0 | W35: 644.8 | X35: 9.2 | Y35: 96.6 | Z35: 2906.8 | AA35: 641.2 | AB35: 7.8 | AC35: 0.5 | AD35: 0.6 | AE35: 8.7 | AF35: 19.2 | AG35: 25.9 | AH35: 0 | AI35: 1629.8 | AJ35: 1392.77 | AK35: 2423.63 | AL35: 1880.04 | AM35: 703.85 | AN35: 1229.85 | AO35: 495.17 | AP35: 1553.81 | AQ35: 1509.12 | AR35: 1879.3 | AS35: 2324.65 | AT35: 734.64 | AU35: 1634.75 | AV35: 6002.16 | AW35: 92.14 | AX35: 2112.87 | AY35: 1395.74 | AZ35: 1194.6 | BA35: 538.77 | BB35: 0.17 | BC35: 0.09 | BD35: 0.08 | BE35: 0.2 | BF35: 0.24 | BG35: 0.85 | BH35: 0.04 | BI35: 3 | BJ35: 0.01 | BK35: 1 | BL35: 0.05 | BM35: 0.06 | BN35: 0 | BO35: 0.15 | BP35: 0.23 | BQ35: 4.43 | BR35: 0.01 | BS35: 0 | BT35: 5.77 | BU35: 0.07 | BV35: 0 | BW35: 0 | BX35: 0 | BY35: 0 | BZ35: 1153.45 | CC35: 581.09 | CE35: 167.28 | CF35: 89.13 | CG35: 128.2 | CH35: 13639.92 | CI35: 6705.87 | CJ35: 10172.89 | CK35: 284.89 | CL35: 166.82 | CM35: 225.86 | CN35: 21.9 | CO35: 2.4
B37: 2 день
B38: Завтрак
A39: ="-" -> - | B39: Хлеб пшеничный | C39: 25 | D39: 1.5 | E39: 0.2 | F39: 9.2 | G39: 45 | H39: 0.0 | I39: 0.0 | J39: 0.0 | K39: 0.0 | L39: 0.3 | M39: 8.9 | N39: 0.1 | O39: 0.0 | P39: 0.0 | Q39: 0.0 | R39: 0.5 | S39: 0.0 | T39: 0.0 | U39: 0.0 | V39: 0.0 | W39: 0.0 | X39: 0.0 | Y39: 0.0 | Z39: 0.0 | AA39: 0.0 | AB39: 0.0 | AC39: 0.0 | AD39: 0.0 | AE39: 0.0 | AF39: 0.0 | AG39: 0.0 | AH39: 0 | AI39: 79.82 | AJ39: 83.09 | AK39: 127.24 | AL39: 42.2 | AM39: 25.01 | AN39: 50.03 | AO39: 18.92 | AP39: 90.48 | AQ39: 56.12 | AR39: 78.3 | AS39: 64.6 | AT39: 33.93 | AU39: 60.03 | AV39: 501.99 | AW39: 0 | AX39: 163.56 | AY39: 71.12 | AZ39: 47.2 | BA39: 37.41 | BB39: 0 | BC39: 0 | BD39: 0 | BE39: 0 | BF39: 0 | BG39: 0 | BH39: 0 | BI39: 0.02 | BJ39: 0 | BK39: 0 | BL39: 0 | BM39: 0 | BN39: 0 | BO39: 0 | BP39: 0 | BQ39: 0.02 | BR39: 0 | BS39: 0 | BT39: 0.07 | BU39: 0 | BV39: 0 | BW39: 0 | BX39: 0 | BY39: 0 | BZ39: 9.78 | CC39: 0 | CE39: 0 | CF39: 0 | CG39: 0 | CH39: 570 | CI39: 219.6 | CJ39: 394.8 | CK39: 4.56 | CL39: 4.56 | CM39: 4.56 | CN39: 0 | CO39: 0
A40: ="-" -> - | B40: Масло сливочное | C40: 5 | D40: 0.0 | E40: 3.6 | F40: 0.1 | G40: 33 | H40: 2.4 | I40: 0.1 | J40: 0.0 | K40: 0.0 | L40: 0.1 | M40: 0.0 | N40: 0.0 | O40: 0.0 | P40: 0.0 | Q40: 0.0 | R40: 0.1 | S40: 0.8 | T40: 1.5 | U40: 1.2 | V40: 0.0 | W40: 1.5 | X40: 0.0 | Y40: 20.0 | Z40: 15.0 | AA40: 22.5 | AB40: 0.1 | AC40: 0.0 | AD40: 0.0 | AE40: 0.0 | AF40: 0.0 | AG40: 0.0 | AH40: 0 | AI40: 2.1 | AJ40: 2.05 | AK40: 3.8 | AL40: 2.25 | AM40: 0.85 | AN40: 2.35 | AO40: 2.15 | AP40: 2.1 | AQ40: 1.8 | AR40: 1.3 | AS40: 2.85 | AT40: 1.75 | AU40: 1.2 | AV40: 7.1 | AW40: 0 | AX40: 2.4 | AY40: 2.7 | AZ40: 2.1 | BA40: 0.5 | BB40: 0.13 | BC40: 0.06 | BD40: 0.03 | BE40: 0.08 | BF40: 0.09 | BG40: 0.4 | BH40: 0 | BI40: 1.1 | BJ40: 0 | BK40: 0.34 | BL40: 0 | BM40: 0 | BN40: 0 | BO40: 0.08 | BP40: 0.12 | BQ40: 0.9 | BR40: 0 | BS40: 0 | BT40: 0.05 | BU40: 0 | BV40: 0 | BW40: 0 | BX40: 0 | BY40: 0 | BZ40: 1.25 | CC40: 22.5 | CE40: 0.2 | CF40: 0.05 | CG40: 0.13 | CH40: 10 | CI40: 4.1 | CJ40: 7.05 | CK40: 0.86 | CL40: 0.44 | CM40: 0.65 | CN40: 0 | CO40: 0
A41: ="29/10" -> 29/10 | B41: Чай с лимоном | C41: 150 | D41: 0.2 | E41: 0.0 | F41: 7.4 | G41: 30 | H41: 0.0 | I41: 0.0 | J41: 0.0 | K41: 0.0 | L41: 7.3 | M41: 0.0 | N41: 0.2 | O41: 0.0 | P41: 0.0 | Q41: 0.2 | R41: 0.1 | S41: 0.5 | T41: 6.1 | U41: 1.6 | V41: 0.4 | W41: 0.8 | X41: 0.0 | Y41: 0.0 | Z41: 0.3 | AA41: 0.1 | AB41: 0.0 | AC41: 0.0 | AD41: 0.0 | AE41: 0.0 | AF41: 0.0 | AG41: 0.6 | AH41: 0 | AI41: 0.5 | AJ41: 0.57 | AK41: 0.47 | AL41: 0.86 | AM41: 0.22 | AN41: 0.9 | AO41: 0 | AP41: 1.15 | AQ41: 0 | AR41: 0 | AS41: 0 | AT41: 0.65 | AU41: 0 | AV41: 0 | AW41: 0 | AX41: 0 | AY41: 0 | AZ41: 0 | BA41: 0 | BB41: 0 | BC41: 0 | BD41: 0 | BE41: 0 | BF41: 0 | BG41: 0 | BH41: 0 | BI41: 0 | BJ41: 0 | BK41: 0 | BL41: 0 | BM41: 0 | BN41: 0 | BO41: 0 | BP41: 0 | BQ41: 0 | BR41: 0 | BS41: 0 | BT41: 0 | BU41: 0 | BV41: 0 | BW41: 0 | BX41: 0 | BY41: 0 | BZ41: 149.62 | CC41: 0.05 | CE41: 3.85 | CF41: 3.72 | CG41: 3.79 | CH41: 434.63 | CI41: 165.16 | CJ41: 299.9 | CK41: 39.92 | CL41: 23.87 | CM41: 31.9 | CN41: 7.32 | CO41: 0
A42: ="11/4" -> 11/4 | B42: Каша пшенная молочная с маслом сливочным | C42: 150 | D42: 4.9 | E42: 4.6 | F42: 24.5 | G42: 158 | H42: 2.9 | I42: 0.1 | J42: 0.0 | K42: 0.0 | L42: 5.9 | M42: 17.6 | N42: 1.0 | O42: 0.0 | P42: 0.0 | Q42: 0.1 | R42: 1.2 | S42: 178.8 | T42: 133.9 | U42: 72.6 | V42: 29.0 | W42: 109.0 | X42: 0.8 | Y42: 16.2 | Z42: 18.6 | AA42: 31.0 | AB42: 0.1 | AC42: 0.1 | AD42: 0.1 | AE42: 0.4 | AF42: 1.9 | AG42: 0.3 | AH42: 0 | AI42: 134.02 | AJ42: 122.71 | AK42: 435.27 | AL42: 82.8 | AM42: 84.07 | AN42: 114.46 | AO42: 52.28 | AP42: 165.04 | AQ42: 304.42 | AR42: 120.77 | AS42: 185.31 | AT42: 74.55 | AU42: 85.45 | AV42: 631.05 | AW42: 0 | AX42: 230.11 | AY42: 199.3 | AZ42: 117.1 | BA42: 51.11 | BB42: 0.09 | BC42: 0.04 | BD42: 0.02 | BE42: 0.05 | BF42: 0.06 | BG42: 0.26 | BH42: 0 | BI42: 0.79 | BJ42: 0 | BK42: 0.24 | BL42: 0.01 | BM42: 0 | BN42: 0 | BO42: 0.05 | BP42: 0.08 | BQ42: 0.73 | BR42: 0 | BS42: 0 | BT42: 0.58 | BU42: 0.01 | BV42: 0 | BW42: 0 | BX42: 0 | BY42: 0 | BZ42: 124.54 | CC42: 19.3 | CE42: 31.04 | CF42: 15.29 | CG42: 23.16 | CH42: 2125.67 | CI42: 973.93 | CJ42: 1549.8 | CK42: 36.73 | CL42: 18.95 | CM42: 27.84 | CN42: 3 | CO42: 0.38
B43: Итого за 'Завтрак' | C43: =SUM(C39:C42) -> 330 | D43: =SUM(D39:D42) -> 6.7 | E43: 8.4 | F43: 41.2 | G43: 265 | H43: 5.2 | I43: 0.2 | J43: 0.0 | K43: 0.0 | L43: 13.5 | M43: 26.5 | N43: 1.2 | O43: 0.0 | P43: 0.0 | Q43: 0.3 | R43: 1.8 | S43: 180.0 | T43: 141.5 | U43: 75.4 | V43: 29.5 | W43: 111.3 | X43: 0.8 | Y43: 36.2 | Z43: 33.9 | AA43: 53.6 | AB43: 0.2 | AC43: 0.1 | AD43: 0.1 | AE43: 0.5 | AF43: 1.9 | AG43: 0.9 | AH43: 0 | AI43: 216.44 | AJ43: 208.41 | AK43: 566.77 | AL43: 128.11 | AM43: 110.15 | AN43: 167.73 | AO43: 73.35 | AP43: 258.77 | AQ43: 362.33 | AR43: 200.37 | AS43: 252.76 | AT43: 110.88 | AU43: 146.68 | AV43: 1140.14 | AW43: 0 | AX43: 396.07 | AY43: 273.13 | AZ43: 166.4 | BA43: 89.02 | BB43: 0.22 | BC43: 0.1 | BD43: 0.05 | BE43: 0.13 | BF43: 0.14 | BG43: 0.66 | BH43: 0 | BI43: 1.92 | BJ43: 0 | BK43: 0.58 | BL43: 0.01 | BM43: 0 | BN43: 0 | BO43: 0.13 | BP43: 0.2 | BQ43: 1.65 | BR43: 0 | BS43: 0 | BT43: 0.7 | BU43: 0.02 | BV43: 0 | BW43: 0 | BX43: 0 | BY43: 0 | BZ43: 285.19 | CB43: =$G$43/#REF!*100 ->  | CC43: 41.85 | CE43: 35.09 | CF43: 19.06 | CG43: 27.07 | CH43: 3140.3 | CI43: 1362.79 | CJ43: 2251.54 | CK43: 82.06 | CL43: 47.81 | CM43: 64.94 | CN43: 10.32 | CO43: 0.38
B44: 10:00
A45: ="-" -> - | B45: Ряженка | C45: 100 | D45: 3.0 | E45: 2.5 | F45: 4.2 | G45: 51 | H45: 0.1 | I45: 0.0 | J45: 0.0 | K45: 0.0 | L45: 4.2 | M45: 0.0 | N45: 0.0 | O45: 0.0 | P45: 0.0 | Q45: 0.1 | R45: 0.4 | S45: 2.0 | T45: 238.0 | U45: 15.0 | V45: 9.0 | W45: 12.0 | X45: 0.4 | Y45: 0.0 | Z45: 30.0 | AA45: 5.0 | AB45: 0.1 | AC45: 0.0 | AD45: 0.0 | AE45: 0.6 | AF45: 0.7 | AG45: 15.0 | AH45: 0 | AI45: 0 | AJ45: 0 | AK45: 450 | AL45: 387 | AM45: 115 | AN45: 216 | AO45: 72 | AP45: 225 | AQ45: 160 | AR45: 174 | AS45: 344 | AT45: 156 | AU45: 93 | AV45: 897 | AW45: 0 | AX45: 518 | AY45: 278 | AZ45: 242 | BA45: 50 | BB45: 0.1 | BC45: 0.07 | BD45: 0.04 | BE45: 0.08 | BF45: 0.09 | BG45: 0.45 | BH45: 0.03 | BI45: 0.56 | BJ45: 0.02 | BK45: 0.31 | BL45: 0.04 | BM45: 0 | BN45: 0 | BO45: 0.04 | BP45: 0.08 | BQ45: 0.69 | BR45: 0.01 | BS45: 0 | BT45: 0.02 | BU45: 0.03 | BV45: 0.08 | BW45: 0 | BX45: 0 | BY45: 0 | BZ45: 93 | CC45: 5 | CE45: 0 | CF45: 0 | CG45: 0 | CH45: 0 | CI45: 0 | CJ45: 0 | CK45: 0 | CL45: 0 | CM45: 0 | CN45: 0 | CO45: 0
A46: ="-" -> - | B46: Печенье | C46: 20 | D46: 0.4 | E46: 2.6 | F46: 11.5 | G46: 70 | H46: 0.4 | I46: 0.0 | J46: 0.0 | K46: 0.0 | L46: 5.0 | M46: 6.0 | N46: 0.5 | O46: 0.0 | P46: 0.0 | Q46: 0.1 | R46: 0.2 | S46: 66.0 | T46: 22.0 | U46: 5.8 | V46: 4.0 | W46: 18.0 | X46: 0.4 | Y46: 2.0 | Z46: 1.6 | AA46: 2.2 | AB46: 0.7 | AC46: 0.0 | AD46: 0.0 | AE46: 0.1 | AF46: 0.4 | AG46: 0.0 | AH46: 0 | AI46: 0 | AJ46: 0 | AK46: 0 | AL46: 0 | AM46: 0 | AN46: 0 | AO46: 0 | AP46: 0 | AQ46: 0 | AR46: 0 | AS46: 0 | AT46: 0 | AU46: 0 | AV46: 0 | AW46: 0 | AX46: 0 | AY46: 0 | AZ46: 0 | BA46: 0 | BB46: 0 | BC46: 0 | BD46: 0 | BE46: 0 | BF46: 0 | BG46: 0 | BH46: 0 | BI46: 0 | BJ46: 0 | BK46: 0 | BL46: 0 | BM46: 0 | BN46: 0 | BO46: 0 | BP46: 0 | BQ46: 0 | BR46: 0 | BS46: 0 | BT46: 0 | BU46: 0 | BV46: 0 | BW46: 0 | BX46: 0 | BY46: 0 | BZ46: 0.9 | CC46: 2.27 | CE46: 0 | CF46: 0 | CG46: 0 | CH46: 0 | CI46: 0 | CJ46: 0 | CK46: 0 | CL46: 0 | CM46: 0 | CN46: 0 | CO46: 0
B47: Итого за '10:00' | C47: =SUM(C45:C46) -> 120 | D47: =SUM(D45:D46) -> 3.4 | E47: 5.1 | F47: 15.7 | G47: 121 | H47: 0.5 | I47: 0.0 | J47: 0.0 | K47: 0.0 | L47: 9.2 | M47: 6.0 | N47: 0.5 | O47: 0.0 | P47: 0.0 | Q47: 0.2 | R47: 0.6 | S47: 68.0 | T47: 260.0 | U47: 20.8 | V47: 13.0 | W47: 30.0 | X47: 0.8 | Y47: 2.0 | Z47: 31.6 | AA47: 7.2 | AB47: 0.8 | AC47: 0.1 | AD47: 0.0 | AE47: 0.7 | AF47: 1.1 | AG47: 15.0 | AH47: 0 | AI47: 0 | AJ47: 0 | AK47: 450 | AL47: 387 | AM47: 115 | AN47: 216 | AO47: 72 | AP47: 225 | AQ47: 160 | AR47: 174 | AS47: 344 | AT47: 156 | AU47: 93 | AV47: 897 | AW47: 0 | AX47: 518 | AY47: 278 | AZ47: 242 | BA47: 50 | BB47: 0.1 | BC47: 0.07 | BD47: 0.04 | BE47: 0.08 | BF47: 0.09 | BG47: 0.45 | BH47: 0.03 | BI47: 0.56 | BJ47: 0.02 | BK47: 0.31 | BL47: 0.04 | BM47: 0 | BN47: 0 | BO47: 0.04 | BP47: 0.08 | BQ47: 0.69 | BR47: 0.01 | BS47: 0 | BT47: 0.02 | BU47: 0.03 | BV47: 0.08 | BW47: 0 | BX47: 0 | BY47: 0 | BZ47: 93.9 | CB47: =$G$47/#REF!*100 ->  | CC47: 7.27 | CE47: 0 | CF47: 0 | CG47: 0 | CH47: 0 | CI47: 0 | CJ47: 0 | CK47: 0 | CL47: 0 | CM47: 0 | CN47: 0 | CO47: 0
B48: Обед
A49: ="-" -> - | B49: Хлеб пшеничный | C49: 20 | D49: 1.2 | E49: 0.1 | F49: 7.4 | G49: 36 | H49: 0.0 | I49: 0.0 | J49: 0.0 | K49: 0.0 | L49: 0.2 | M49: 7.1 | N49: 0.0 | O49: 0.0 | P49: 0.0 | Q49: 0.0 | R49: 0.4 | S49: 0.0 | T49: 0.0 | U49: 0.0 | V49: 0.0 | W49: 0.0 | X49: 0.0 | Y49: 0.0 | Z49: 0.0 | AA49: 0.0 | AB49: 0.0 | AC49: 0.0 | AD49: 0.0 | AE49: 0.0 | AF49: 0.0 | AG49: 0.0 | AH49: 0 | AI49: 63.86 | AJ49: 66.47 | AK49: 101.79 | AL49: 33.76 | AM49: 20.01 | AN49: 40.02 | AO49: 15.14 | AP49: 72.38 | AQ49: 44.89 | AR49: 62.64 | AS49: 51.68 | AT49: 27.14 | AU49: 48.02 | AV49: 401.59 | AW49: 0 | AX49: 130.85 | AY49: 56.9 | AZ49: 37.76 | BA49: 29.93 | BB49: 0 | BC49: 0 | BD49: 0 | BE49: 0 | BF49: 0 | BG49: 0 | BH49: 0 | BI49: 0.02 | BJ49: 0 | BK49: 0 | BL49: 0 | BM49: 0 | BN49: 0 | BO49: 0 | BP49: 0 | BQ49: 0.01 | BR49: 0 | BS49: 0 | BT49: 0.06 | BU49: 0 | BV49: 0 | BW49: 0 | BX49: 0 | BY49: 0 | BZ49: 7.82 | CC49: 0 | CE49: 0 | CF49: 0 | CG49: 0 | CH49: 380 | CI49: 146.4 | CJ49: 263.2 | CK49: 3.04 | CL49: 3.04 | CM49: 3.04 | CN49: 0 | CO49: 0
A50: ="-" -> - | B50: Хлеб ржаной | C50: 20 | D50: 1.2 | E50: 0.2 | F50: 8.3 | G50: 38 | H50: 0.0 | I50: 0.0 | J50: 0.0 | K50: 0.0 | L50: 0.2 | M50: 6.4 | N50: 1.7 | O50: 0.0 | P50: 0.0 | Q50: 0.2 | R50: 0.5 | S50: 122.0 | T50: 49.0 | U50: 7.0 | V50: 9.4 | W50: 31.6 | X50: 0.8 | Y50: 0.0 | Z50: 1.0 | AA50: 0.2 | AB50: 0.3 | AC50: 0.0 | AD50: 0.0 | AE50: 0.1 | AF50: 0.4 | AG50: 0.0 | AH50: 0 | AI50: 64.4 | AJ50: 49.6 | AK50: 85.4 | AL50: 44.6 | AM50: 18.6 | AN50: 39.6 | AO50: 16 | AP50: 74.2 | AQ50: 59.4 | AR50: 58.2 | AS50: 92.8 | AT50: 24.8 | AU50: 62 | AV50: 311.8 | AW50: 0 | AX50: 105.2 | AY50: 58.2 | AZ50: 36 | BA50: 26 | BB50: 0 | BC50: 0 | BD50: 0 | BE50: 0 | BF50: 0 | BG50: 0 | BH50: 0 | BI50: 0.03 | BJ50: 0 | BK50: 0 | BL50: 0 | BM50: 0 | BN50: 0 | BO50: 0 | BP50: 0 | BQ50: 0.02 | BR50: 0 | BS50: 0 | BT50: 0.1 | BU50: 0.02 | BV50: 0 | BW50: 0 | BX50: 0 | BY50: 0 | BZ50: 9.4 | CC50: 0.17 | CE50: 4 | CF50: 4 | CG50: 4 | CH50: 760 | CI50: 292.8 | CJ50: 526.4 | CK50: 7.6 | CL50: 6.32 | CM50: 6.96 | CN50: 0 | CO50: 0
A51: ="16/1" -> 16/1 | B51: Салат из моркови с растительным маслом | C51: 30 | D51: 0.4 | E51: 1.8 | F51: 3.4 | G51: 29 | H51: 0.23 | I51: 1.17 | J51: 0 | K51: 0 | L51: 2.69 | M51: 0.05 | N51: 0.65 | O51: 0 | P51: 0 | Q51: 0.08 | R51: 0.27 | S51: 5.69 | T51: 54.12 | U51: 7.3 | V51: 10.3 | W51: 15 | X51: 0.2 | Y51: 0 | Z51: 3.3 | AA51: 552 | AB51: 0.9 | AC51: 0.02 | AD51: 0.02 | AE51: 0.27 | AF51: 0.3 | AG51: 1.4 | AH51: 0 | AI51: 11.63 | AJ51: 9.47 | AK51: 11.9 | AL51: 10.28 | AM51: 2.43 | AN51: 8.66 | AO51: 2.16 | AP51: 8.38 | AQ51: 12.98 | AR51: 11.09 | AS51: 36.51 | AT51: 3.79 | AU51: 7.84 | AV51: 63.56 | AW51: 0 | AX51: 8.11 | AY51: 8.93 | AZ51: 4.87 | BA51: 3.25 | BB51: 0 | BC51: 0 | BD51: 0 | BE51: 0 | BF51: 0 | BG51: 0 | BH51: 0 | BI51: 0.11 | BJ51: 0 | BK51: 0.07 | BL51: 0.01 | BM51: 0.01 | BN51: 0 | BO51: 0 | BP51: 0 | BQ51: 0.42 | BR51: 0 | BS51: 0 | BT51: 1.04 | BU51: 0 | BV51: 0 | BW51: 0 | BX51: 0 | BY51: 0 | BZ51: 24.29 | CC51: 540.96 | CE51: 1.47 | CF51: 1.42 | CG51: 1.44 | CH51: 245.85 | CI51: 58.48 | CJ51: 152.16 | CK51: 1.29 | CL51: 0.75 | CM51: 1.02 | CN51: 0.9 | CO51: 0
A52: ="3/10" -> 3/10 | B52: Компот из яблок | C52: 150 | D52: 0.1 | E52: 0.1 | F52: 14.4 | G52: 56 | H52: 0.0 | I52: 0.0 | J52: 0.0 | K52: 0.0 | L52: 13.7 | M52: 0.2 | N52: 0.5 | O52: 0.0 | P52: 0.0 | Q52: 0.2 | R52: 0.2 | S52: 7.8 | T52: 82.9 | U52: 5.0 | V52: 2.6 | W52: 3.1 | X52: 0.7 | Y52: 0.0 | Z52: 8.1 | AA52: 1.5 | AB52: 0.1 | AC52: 0.0 | AD52: 0.0 | AE52: 0.1 | AF52: 0.1 | AG52: 1.2 | AH52: 0 | AI52: 3.53 | AJ52: 3.82 | AK52: 5.59 | AL52: 5.29 | AM52: 0.88 | AN52: 3.23 | AO52: 0.88 | AP52: 2.65 | AQ52: 5 | AR52: 2.94 | AS52: 22.93 | AT52: 2.06 | AU52: 4.12 | AV52: 12.35 | AW52: 0 | AX52: 3.82 | AY52: 4.7 | AZ52: 1.76 | BA52: 1.47 | BB52: 0 | BC52: 0 | BD52: 0 | BE52: 0 | BF52: 0 | BG52: 0 | BH52: 0 | BI52: 0 | BJ52: 0 | BK52: 0 | BL52: 0 | BM52: 0 | BN52: 0 | BO52: 0 | BP52: 0 | BQ52: 0 | BR52: 0 | BS52: 0 | BT52: 0 | BU52: 0 | BV52: 0 | BW52: 0 | BX52: 0 | BY52: 0 | BZ52: 183.4 | CC52: 1.35 | CE52: 4.5 | CF52: 4.5 | CG52: 4.5 | CH52: 432 | CI52: 208.98 | CJ52: 320.49 | CK52: 41.2 | CL52: 24.19 | CM52: 32.7 | CN52: 11.25 | CO52: 0
A53: ="4/2" -> 4/2 | B53: Борщ с картофелем на говяжьем бульоне | C53: 150 | D53: 1.7 | E53: 5.1 | F53: 7.9 | G53: 82 | H53: 1.4 | I53: 1.2 | J53: 0.0 | K53: 0.0 | L53: 5.0 | M53: 1.7 | N53: 1.2 | O53: 0.0 | P53: 0.0 | Q53: 0.2 | R53: 1.5 | S53: 363.4 | T53: 186.3 | U53: 20.3 | V53: 12.3 | W53: 25.9 | X53: 0.6 | Y53: 0.0 | Z53: 607.7 | AA53: 126.6 | AB53: 0.9 | AC53: 0.0 | AD53: 0.1 | AE53: 0.3 | AF53: 0.6 | AG53: 4.8 | AH53: 0 | AI53: 23.75 | AJ53: 25.66 | AK53: 30.46 | AL53: 36.55 | AM53: 8.63 | AN53: 23.35 | AO53: 6.77 | AP53: 22.84 | AQ53: 26.28 | AR53: 46.43 | AS53: 108.91 | AT53: 8.7 | AU53: 20.14 | AV53: 130.91 | AW53: 0 | AX53: 22.34 | AY53: 25.78 | AZ53: 21.32 | BA53: 7.78 | BB53: 0 | BC53: 0 | BD53: 0 | BE53: 0 | BF53: 0 | BG53: 0 | BH53: 0 | BI53: 0.11 | BJ53: 0 | BK53: 0.07 | BL53: 0 | BM53: 0.01 | BN53: 0 | BO53: 0 | BP53: 0 | BQ53: 0.39 | BR53: 0 | BS53: 0 | BT53: 1.08 | BU53: 0 | BV53: 0 | BW53: 0 | BX53: 0 | BY53: 0 | BZ53: 172.63 | CC53: 101.28 | CE53: 47.66 | CF53: 25.2 | CG53: 36.43 | CH53: 545.04 | CI53: 170.64 | CJ53: 357.84 | CK53: 6.8 | CL53: 3.82 | CM53: 5.31 | CN53: 1.5 | CO53: 0.9
A54: ="3/3" -> 3/3 | B54: Картофельное пюре с маслом сливочным | C54: 120 | D54: 2.5 | E54: 2.8 | F54: 17.7 | G54: 105 | H54: 1.8 | I54: 0.1 | J54: 0.0 | K54: 0.0 | L54: 1.7 | M54: 14.6 | N54: 1.4 | O54: 0.0 | P54: 0.0 | Q54: 0.2 | R54: 1.5 | S54: 62.3 | T54: 509.0 | U54: 27.2 | V54: 24.3 | W54: 69.5 | X54: 0.9 | Y54: 15.0 | Z54: 27.3 | AA54: 20.0 | AB54: 0.1 | AC54: 0.1 | AD54: 0.1 | AE54: 1.1 | AF54: 2.1 | AG54: 4.4 | AH54: 0 | AI54: 26.85 | AJ54: 42.21 | AK54: 53.47 | AL54: 62.84 | AM54: 10.74 | AN54: 42.38 | AO54: 21.75 | AP54: 43.26 | AQ54: 60.53 | AR54: 164.9 | AS54: 73.44 | AT54: 15.36 | AU54: 42.75 | AV54: 229.77 | AW54: 0 | AX54: 32.15 | AY54: 29.24 | AZ54: 31.98 | BA54: 13.62 | BB54: 0.08 | BC54: 0.04 | BD54: 0.02 | BE54: 0.04 | BF54: 0.05 | BG54: 0.23 | BH54: 0 | BI54: 0.7 | BJ54: 0 | BK54: 0.21 | BL54: 0 | BM54: 0 | BN54: 0 | BO54: 0.04 | BP54: 0.07 | BQ54: 0.68 | BR54: 0 | BS54: 0 | BT54: 0.11 | BU54: 0 | BV54: 0 | BW54: 0 | BX54: 0 | BY54: 0 | BZ54: 98.99 | CC54: 19.55 | CE54: 14.07 | CF54: 9.33 | CG54: 11.7 | CH54: 481.65 | CI54: 423.36 | CJ54: 452.5 | CK54: 19.53 | CL54: 2.87 | CM54: 11.2 | CN54: 0 | CO54: 0.18
A55: ="36/8" -> 36/8 | B55: Тефтели из мяса говядины с рисом | C55: 50 | D55: 5.3 | E55: 5.4 | F55: 7.2 | G55: 96 | H55: 3.6 | I55: 34.1 | J55: 0.0 | K55: 0.0 | L55: 1.3 | M55: 4.6 | N55: 1.3 | O55: 0.0 | P55: 0.0 | Q55: 0.0 | R55: 0.8 | S55: 111.2 | T55: 104.6 | U55: 9.4 | V55: 11.5 | W55: 75.1 | X55: 1.1 | Y55: 0.0 | Z55: 0.0 | AA55: 0.0 | AB55: 1.3 | AC55: 0.0 | AD55: 0.1 | AE55: 1.6 | AF55: 3.0 | AG55: 1.5 | AH55: 0 | AI55: 347.07 | AJ55: 264.34 | AK55: 499.24 | AL55: 815.64 | AM55: 147.35 | AN55: 264.57 | AO55: 71.14 | AP55: 271.45 | AQ55: 358.57 | AR55: 351.82 | AS55: 576.61 | AT55: 230.58 | AU55: 310.06 | AV55: 1063.33 | AW55: 89.54 | AX55: 245.53 | AY55: 265.14 | AZ55: 220.64 | BA55: 89.9 | BB55: 0 | BC55: 0 | BD55: 0 | BE55: 0 | BF55: 0 | BG55: 0 | BH55: 0 | BI55: 0.15 | BJ55: 0 | BK55: 0.1 | BL55: 0.01 | BM55: 0.02 | BN55: 0 | BO55: 0 | BP55: 0 | BQ55: 0.56 | BR55: 0 | BS55: 0 | BT55: 1.38 | BU55: 0 | BV55: 0 | BW55: 0 | BX55: 0 | BY55: 0 | BZ55: 45.63 | CC55: 0 | CE55: 18.33 | CF55: 11.33 | CG55: 14.83 | CH55: 1989.1 | CI55: 1140.64 | CJ55: 1564.87 | CK55: 17.74 | CL55: 10.21 | CM55: 13.98 | CN55: 0 | CO55: 0.25
B56: Итого за 'Обед' | C56: =SUM(C49:C55) -> 540 | D56: =SUM(D49:D55) -> 12.5 | E56: 15.6 | F56: 66.3 | G56: 443 | H56: 7.0 | I56: 36.5 | J56: 0.0 | K56: 0.0 | L56: 24.8 | M56: 34.7 | N56: 6.8 | O56: 0.0 | P56: 0.0 | Q56: 1.0 | R56: 5.1 | S56: 672.4 | T56: 985.9 | U56: 76.1 | V56: 70.4 | W56: 220.1 | X56: 4.2 | Y56: 15.0 | Z56: 647.4 | AA56: 700.3 | AB56: 3.6 | AC56: 0.2 | AD56: 0.2 | AE56: 3.5 | AF56: 6.4 | AG56: 13.2 | AH56: 0 | AI56: 529.45 | AJ56: 452.1 | AK56: 775.94 | AL56: 998.68 | AM56: 206.21 | AN56: 413.15 | AO56: 131.67 | AP56: 486.79 | AQ56: 554.68 | AR56: 686.93 | AS56: 926.38 | AT56: 308.64 | AU56: 487.09 | AV56: 2149.75 | AW56: 89.54 | AX56: 539.89 | AY56: 439.96 | AZ56: 349.46 | BA56: 168.7 | BB56: 0.08 | BC56: 0.04 | BD56: 0.02 | BE56: 0.04 | BF56: 0.05 | BG56: 0.23 | BH56: 0 | BI56: 1.01 | BJ56: 0 | BK56: 0.38 | BL56: 0.02 | BM56: 0.03 | BN56: 0 | BO56: 0.04 | BP56: 0.08 | BQ56: 1.67 | BR56: 0 | BS56: 0 | BT56: 2.72 | BU56: 0.02 | BV56: 0 | BW56: 0 | BX56: 0 | BY56: 0 | BZ56: 517.86 | CB56: =$G$56/#REF!*100 ->  | CC56: 122.34 | CE56: 88.56 | CF56: 54.36 | CG56: 71.46 | CH56: 4587.78 | CI56: 2382.82 | CJ56: 3485.3 | CK56: 95.91 | CL56: 50.45 | CM56: 73.18 | CN56: 12.75 | CO56: 1.33
B57: Уплотненный полдник
A58: ="27/12" -> 27/12 | B58: Оладьи | C58: 70 | D58: 3.8 | E58: 4.3 | F58: 23.3 | G58: 147 | H58: 0.7 | I58: 2.7 | J58: 0.0 | K58: 0.0 | L58: 1.4 | M58: 20.8 | N58: 1.1 | O58: 0.0 | P58: 0.0 | Q58: 0.0 | R58: 0.8 | S58: 247.8 | T58: 41.2 | U58: 8.4 | V58: 5.2 | W58: 30.2 | X58: 0.4 | Y58: 2.7 | Z58: 0.8 | AA58: 4.7 | AB58: 2.4 | AC58: 0.0 | AD58: 0.0 | AE58: 0.4 | AF58: 1.2 | AG58: 0.0 | AH58: 0 | AI58: 172.68 | AJ58: 154.06 | AK58: 287.43 | AL58: 108.79 | AM58: 59.86 | AN58: 115.98 | AO58: 36.97 | AP58: 175.94 | AQ58: 126.28 | AR58: 149 | AS58: 144.56 | AT58: 75.28 | AU58: 126.43 | AV58: 1033.3 | AW58: 3.45 | AX58: 321.17 | AY58: 181.03 | AZ58: 93.08 | BA58: 70.65 | BB58: 0 | BC58: 0 | BD58: 0 | BE58: 0 | BF58: 0 | BG58: 0 | BH58: 0 | BI58: 0.27 | BJ58: 0 | BK58: 0.15 | BL58: 0.01 | BM58: 0.03 | BN58: 0 | BO58: 0 | BP58: 0 | BQ58: 0.91 | BR58: 0 | BS58: 0 | BT58: 2.64 | BU58: 0.01 | BV58: 0 | BW58: 0 | BX58: 0 | BY58: 0 | BZ58: 40.34 | CC58: 2.83 | CE58: 26.12 | CF58: 13.46 | CG58: 19.79 | CH58: 687.55 | CI58: 249.84 | CJ58: 468.7 | CK58: 3.8 | CL58: 2.14 | CM58: 3.31 | CN58: 1.19 | CO58: 0.63
A59: ="-" -> - | B59: Сок в ассортименте | C59: 150 | D59: 0.8 | E59: 0.2 | F59: 15.5 | G59: 65 | H59: 0.0 | I59: 0.0 | J59: 0.0 | K59: 0.0 | L59: 14.9 | M59: 0.3 | N59: 0.3 | O59: 0.0 | P59: 0.0 | Q59: 0.8 | R59: 0.5 | S59: 9.0 | T59: 180.0 | U59: 10.5 | V59: 6.0 | W59: 10.5 | X59: 2.1 | Y59: 0.0 | Z59: 0.0 | AA59: 0.0 | AB59: 0.2 | AC59: 0.0 | AD59: 0.0 | AE59: 0.2 | AF59: 0.3 | AG59: 3.0 | AH59: 0.3 | AI59: 12 | AJ59: 15 | AK59: 21 | AL59: 21 | AM59: 3 | AN59: 12 | AO59: 3 | AP59: 10.5 | AQ59: 19.5 | AR59: 12 | AS59: 87 | AT59: 7.5 | AU59: 16.5 | AV59: 48 | AW59: 0 | AX59: 15 | AY59: 18 | AZ59: 7.5 | BA59: 6 | BB59: 0 | BC59: 0 | BD59: 0 | BE59: 0 | BF59: 0 | BG59: 0 | BH59: 0 | BI59: 0 | BJ59: 0 | BK59: 0 | BL59: 0 | BM59: 0 | BN59: 0 | BO59: 0 | BP59: 0 | BQ59: 0 | BR59: 0 | BS59: 0 | BT59: 0 | BU59: 0 | BV59: 0 | BW59: 0 | BX59: 0 | BY59: 0 | BZ59: 132.15 | CC59: 0 | CE59: 3.6 | CF59: 3.6 | CG59: 3.6 | CH59: 360 | CI59: 163.8 | CJ59: 261.9 | CK59: 0.54 | CL59: 0.54 | CM59: 0.54 | CN59: 0 | CO59: 0
A60: ="9/4" -> 9/4 | B60: Каша рисовая молочная вязкая с маслом сливочным | C60: 150 | D60: 3.9 | E60: 4.4 | F60: 30.4 | G60: 176 | H60: 2.8 | I60: 0.1 | J60: 0.0 | K60: 0.0 | L60: 6.6 | M60: 22.9 | N60: 0.9 | O60: 0.0 | P60: 0.0 | Q60: 0.1 | R60: 1.1 | S60: 176.1 | T60: 115.2 | U60: 70.4 | V60: 23.2 | W60: 94.4 | X60: 0.4 | Y60: 26.3 | Z60: 15.2 | AA60: 29.3 | AB60: 0.2 | AC60: 0.0 | AD60: 0.1 | AE60: 0.5 | AF60: 1.6 | AG60: 0.3 | AH60: 0 | AI60: 137.37 | AJ60: 108.23 | AK60: 203.3 | AL60: 85.74 | AM60: 52.37 | AN60: 79.34 | AO60: 33.92 | AP60: 121.2 | AQ60: 127.45 | AR60: 165.89 | AS60: 176.73 | AT60: 56.26 | AU60: 104.37 | AV60: 393.3 | AW60: 0 | AX60: 108.49 | AY60: 108.71 | AZ60: 95.33 | BA60: 44.67 | BB60: 0.1 | BC60: 0.05 | BD60: 0.02 | BE60: 0.06 | BF60: 0.06 | BG60: 0.3 | BH60: 0 | BI60: 0.87 | BJ60: 0 | BK60: 0.26 | BL60: 0 | BM60: 0 | BN60: 0 | BO60: 0.06 | BP60: 0.09 | BQ60: 0.77 | BR60: 0 | BS60: 0 | BT60: 0.09 | BU60: 0 | BV60: 0 | BW60: 0 | BX60: 0 | BY60: 0 | BZ60: 111.87 | CC60: 28.78 | CE60: 26.6 | CF60: 12.74 | CG60: 19.67 | CH60: 2001.43 | CI60: 924.09 | CJ60: 1462.76 | CK60: 28.03 | CL60: 12.22 | CM60: 20.13 | CN60: 3.75 | CO60: 0.38
B61: Итого за 'Ужин' | C61: =SUM(C58:C60) -> 370 | D61: =SUM(D58:D60) -> 8.5 | E61: 8.8 | F61: 69.1 | G61: 387 | H61: 3 | I61: 3 | J61: 0 | K61: 0 | L61: 23 | M61: 44 | N61: 2 | O61: 0 | P61: 0 | Q61: 1 | R61: 2 | S61: 433 | T61: 336 | U61: 89.3 | V61: 34.5 | W61: 135.1 | X61: 2.9 | Y61: 29.0 | Z61: 16.0 | AA61: 33.9 | AB61: 2.7 | AC61: 0.1 | AD61: 0.1 | AE61: 1.0 | AF61: 3.0 | AG61: 3.3 | AH61: 0.3 | AI61: 322.05 | AJ61: 277.29 | AK61: 511.73 | AL61: 215.52 | AM61: 115.23 | AN61: 207.32 | AO61: 73.89 | AP61: 307.64 | AQ61: 273.23 | AR61: 326.89 | AS61: 408.29 | AT61: 139.05 | AU61: 247.3 | AV61: 1474.6 | AW61: 3.45 | AX61: 444.66 | AY61: 307.74 | AZ61: 195.91 | BA61: 121.33 | BB61: 0.1 | BC61: 0.05 | BD61: 0.02 | BE61: 0.06 | BF61: 0.06 | BG61: 0.3 | BH61: 0 | BI61: 1.14 | BJ61: 0 | BK61: 0.42 | BL61: 0.01 | BM61: 0.03 | BN61: 0 | BO61: 0.06 | BP61: 0.09 | BQ61: 1.67 | BR61: 0 | BS61: 0 | BT61: 2.73 | BU61: 0.01 | BV61: 0 | BW61: 0 | BX61: 0 | BY61: 0 | BZ61: 284.36 | CB61: =$G$61/#REF!*100 ->  | CC61: 31.61 | CE61: 56.33 | CF61: 29.8 | CG61: 43.06 | CH61: 3048.99 | CI61: 1337.73 | CJ61: 2193.36 | CK61: 32.38 | CL61: 14.9 | CM61: 23.97 | CN61: 4.94 | CO61: 1.01
B62: Итого за день | C62: =C43+C47+C56+C61 -> 1360 | D62: =D43+D47+D56+D61 -> 31.0 | E62: 38.0 | F62: 192.3 | G62: 1216 | H62: 16 | I62: 40 | J62: 0 | K62: 0 | L62: 70 | M62: 111 | N62: 11 | O62: 0 | P62: 0 | Q62: 2 | R62: 10 | S62: 1353 | T62: 1724 | U62: 261.5 | V62: 147.3 | W62: 496.5 | X62: 8.8 | Y62: 82.2 | Z62: 728.9 | AA62: 795.0 | AB62: 7.3 | AC62: 0.5 | AD62: 0.5 | AE62: 5.7 | AF62: 12.4 | AG62: 32.4 | AH62: 0.3 | AI62: 1067.95 | AJ62: 937.8 | AK62: 2304.45 | AL62: 1729.31 | AM62: 546.6 | AN62: 1004.2 | AO62: 350.91 | AP62: 1278.2 | AQ62: 1350.24 | AR62: 1388.19 | AS62: 1931.42 | AT62: 714.57 | AU62: 974.07 | AV62: 5661.49 | AW62: 92.98 | AX62: 1898.61 | AY62: 1298.82 | AZ62: 953.77 | BA62: 429.05 | BB62: 0.5 | BC62: 0.25 | BD62: 0.14 | BE62: 0.3 | BF62: 0.34 | BG62: 1.64 | BH62: 0.03 | BI62: 4.62 | BJ62: 0.02 | BK62: 1.69 | BL62: 0.07 | BM62: 0.05 | BN62: 0 | BO62: 0.27 | BP62: 0.44 | BQ62: 5.68 | BR62: 0.01 | BS62: 0 | BT62: 6.17 | BU62: 0.08 | BV62: 0.08 | BW62: 0 | BX62: 0 | BY62: 0 | BZ62: 1181.32 | CC62: 203.08 | CE62: 179.98 | CF62: 103.22 | CG62: 141.6 | CH62: 10777.07 | CI62: 5083.33 | CJ62: 7930.2 | CK62: 210.35 | CL62: 113.16 | CM62: 162.09 | CN62: 28.01 | CO62: 2.71
B64: 3 день
B65: Завтрак
A66: ="-" -> - | B66: Батон | C66: 30 | D66: 2.3 | E66: 1.5 | F66: 11.2 | G66: 66 | H66: 0.2 | I66: 0.0 | J66: 0.0 | K66: 0.0 | L66: 1.0 | M66: 9.2 | N66: 1.0 | O66: 0.0 | P66: 0.0 | Q66: 0.1 | R66: 0.5 | S66: 128.7 | T66: 39.3 | U66: 6.6 | V66: 9.9 | W66: 25.5 | X66: 0.6 | Y66: 0.0 | Z66: 0.0 | AA66: 0.0 | AB66: 0.5 | AC66: 0.1 | AD66: 0.0 | AE66: 0.5 | AF66: 0.9 | AG66: 0.0 | AH66: 0 | AI66: 111.6 | AJ66: 115.8 | AK66: 177.3 | AL66: 59.7 | AM66: 35.1 | AN66: 70.2 | AO66: 26.4 | AP66: 126 | AQ66: 78.3 | AR66: 108.9 | AS66: 90.3 | AT66: 48.3 | AU66: 84 | AV66: 697.5 | AW66: 0 | AX66: 227.1 | AY66: 99.3 | AZ66: 66.6 | BA66: 51.9 | BB66: 0 | BC66: 0 | BD66: 0 | BE66: 0 | BF66: 0 | BG66: 0.01 | BH66: 0 | BI66: 0.1 | BJ66: 0 | BK66: 0.05 | BL66: 0 | BM66: 0 | BN66: 0 | BO66: 0 | BP66: 0 | BQ66: 0.35 | BR66: 0 | BS66: 0 | BT66: 0.26 | BU66: 0.01 | BV66: 0 | BW66: 0 | BX66: 0 | BY66: 0 | BZ66: 10.23 | CC66: 0 | CE66: 0 | CF66: 0 | CG66: 0 | CH66: 570 | CI66: 219.6 | CJ66: 394.8 | CK66: 4.56 | CL66: 4.56 | CM66: 4.56 | CN66: 0 | CO66: 0
A67: ="-" -> - | B67: Масло сливочное | C67: 5 | D67: 0.0 | E67: 3.6 | F67: 0.1 | G67: 33 | H67: 2.4 | I67: 0.1 | J67: 0.0 | K67: 0.0 | L67: 0.1 | M67: 0.0 | N67: 0.0 | O67: 0.0 | P67: 0.0 | Q67: 0.0 | R67: 0.1 | S67: 0.8 | T67: 1.5 | U67: 1.2 | V67: 0.0 | W67: 1.5 | X67: 0.0 | Y67: 20.0 | Z67: 15.0 | AA67: 22.5 | AB67: 0.1 | AC67: 0.0 | AD67: 0.0 | AE67: 0.0 | AF67: 0.0 | AG67: 0.0 | AH67: 0 | AI67: 2.1 | AJ67: 2.05 | AK67: 3.8 | AL67: 2.25 | AM67: 0.85 | AN67: 2.35 | AO67: 2.15 | AP67: 2.1 | AQ67: 1.8 | AR67: 1.3 | AS67: 2.85 | AT67: 1.75 | AU67: 1.2 | AV67: 7.1 | AW67: 0 | AX67: 2.4 | AY67: 2.7 | AZ67: 2.1 | BA67: 0.5 | BB67: 0.13 | BC67: 0.06 | BD67: 0.03 | BE67: 0.08 | BF67: 0.09 | BG67: 0.4 | BH67: 0 | BI67: 1.1 | BJ67: 0 | BK67: 0.34 | BL67: 0 | BM67: 0 | BN67: 0 | BO67: 0.08 | BP67: 0.12 | BQ67: 0.9 | BR67: 0 | BS67: 0 | BT67: 0.05 | BU67: 0 | BV67: 0 | BW67: 0 | BX67: 0 | BY67: 0 | BZ67: 1.25 | CC67: 22.5 | CE67: 0.2 | CF67: 0.05 | CG67: 0.13 | CH67: 10 | CI67: 4.1 | CJ67: 7.05 | CK67: 0.86 | CL67: 0.44 | CM67: 0.65 | CN67: 0 | CO67: 0
A68: ="31/10" -> 31/10 | B68: Чай с молоком (вариант 3) | C68: 150 | D68: 1.2 | E68: 1.0 | F68: 5.5 | G68: 34 | H68: 0.6 | I68: 0.0 | J68: 0.0 | K68: 0.0 | L68: 5.5 | M68: 0.0 | N68: 0.1 | O68: 0.0 | P68: 0.0 | Q68: 0.0 | R68: 0.3 | S68: 18.6 | T68: 54.3 | U68: 43.8 | V68: 5.0 | W68: 31.4 | X68: 0.1 | Y68: 7.5 | Z68: 3.4 | AA68: 8.3 | AB68: 0.0 | AC68: 0.0 | AD68: 0.1 | AE68: 0.0 | AF68: 0.3 | AG68: 0.2 | AH68: 0 | AI68: 0 | AJ68: 0 | AK68: 0 | AL68: 0 | AM68: 0 | AN68: 0 | AO68: 0 | AP68: 0 | AQ68: 0 | AR68: 0 | AS68: 0 | AT68: 0 | AU68: 0 | AV68: 0 | AW68: 0 | AX68: 0 | AY68: 0 | AZ68: 0 | BA68: 0 | BB68: 0 | BC68: 0 | BD68: 0 | BE68: 0 | BF68: 0 | BG68: 0 | BH68: 0 | BI68: 0 | BJ68: 0 | BK68: 0 | BL68: 0 | BM68: 0 | BN68: 0 | BO68: 0 | BP68: 0 | BQ68: 0 | BR68: 0 | BS68: 0 | BT68: 0 | BU68: 0 | BV68: 0 | BW68: 0 | BX68: 0 | BY68: 0 | BZ68: 145.94 | CC68: 8.06 | CE68: 6.84 | CF68: 3.69 | CG68: 5.26 | CH68: 567 | CI68: 214.2 | CJ68: 390.6 | CK68: 35.65 | CL68: 19 | CM68: 27.32 | CN68: 3.75 | CO68: 0
A69: ="5/4" -> 5/4 | B69: Каша манная молочная с маслом сливочным | C69: 150 | D69: 4.0 | E69: 3.5 | F69: 22.2 | G69: 134 | H69: 2.5 | I69: 0.1 | J69: 0.0 | K69: 0.0 | L69: 6.4 | M69: 15.0 | N69: 0.8 | O69: 0.0 | P69: 0.0 | Q69: 0.1 | R69: 1.0 | S69: 176.4 | T69: 105.5 | U69: 69.5 | V69: 11.1 | W69: 65.8 | X69: 0.3 | Y69: 14.4 | Z69: 12.0 | AA69: 26.7 | AB69: 0.4 | AC69: 0.0 | AD69: 0.1 | AE69: 0.3 | AF69: 1.2 | AG69: 0.3 | AH69: 0 | AI69: 111.73 | AJ69: 102.68 | AK69: 184.88 | AL69: 58.8 | AM69: 35.45 | AN69: 72.39 | AO69: 26.03 | AP69: 123.01 | AQ69: 77.72 | AR69: 106.77 | AS69: 87.34 | AT69: 48.36 | AU69: 83.02 | AV69: 725.92 | AW69: 0 | AX69: 235.98 | AY69: 121.09 | AZ69: 62.1 | BA69: 49.91 | BB69: 0.07 | BC69: 0.03 | BD69: 0.02 | BE69: 0.04 | BF69: 0.05 | BG69: 0.21 | BH69: 0 | BI69: 0.58 | BJ69: 0 | BK69: 0.18 | BL69: 0 | BM69: 0 | BN69: 0 | BO69: 0.04 | BP69: 0.06 | BQ69: 0.48 | BR69: 0 | BS69: 0 | BT69: 0.03 | BU69: 0 | BV69: 0 | BW69: 0 | BX69: 0 | BY69: 0 | BZ69: 135.51 | CC69: 16.4 | CE69: 33.38 | CF69: 14.46 | CG69: 23.92 | CH69: 1875.37 | CI69: 844.23 | CJ69: 1359.8 | CK69: 43.77 | CL69: 22.87 | CM69: 33.32 | CN69: 3.75 | CO69: 0.38
B70: Итого за 'Завтрак' | C70: =SUM(C66:C69) -> 335 | D70: =SUM(D66:D69) -> 7.5 | E70: 9.5 | F70: 39.0 | G70: 268 | H70: 5.6 | I70: 0.2 | J70: 0.0 | K70: 0.0 | L70: 12.9 | M70: 24.2 | N70: 1.8 | O70: 0.0 | P70: 0.0 | Q70: 0.2 | R70: 1.8 | S70: 324.4 | T70: 200.6 | U70: 121.1 | V70: 26.0 | W70: 124.2 | X70: 1.0 | Y70: 41.9 | Z70: 30.4 | AA70: 57.5 | AB70: 1.0 | AC70: 0.1 | AD70: 0.2 | AE70: 0.8 | AF70: 2.4 | AG70: 0.5 | AH70: 0 | AI70: 225.43 | AJ70: 220.53 | AK70: 365.98 | AL70: 120.75 | AM70: 71.4 | AN70: 144.94 | AO70: 54.58 | AP70: 251.11 | AQ70: 157.82 | AR70: 216.97 | AS70: 180.49 | AT70: 98.41 | AU70: 168.22 | AV70: 1430.52 | AW70: 0 | AX70: 465.48 | AY70: 223.09 | AZ70: 130.8 | BA70: 102.31 | BB70: 0.21 | BC70: 0.09 | BD70: 0.05 | BE70: 0.12 | BF70: 0.13 | BG70: 0.61 | BH70: 0 | BI70: 1.79 | BJ70: 0 | BK70: 0.57 | BL70: 0 | BM70: 0 | BN70: 0 | BO70: 0.12 | BP70: 0.18 | BQ70: 1.73 | BR70: 0 | BS70: 0 | BT70: 0.34 | BU70: 0.01 | BV70: 0 | BW70: 0 | BX70: 0 | BY70: 0 | BZ70: 292.94 | CB70: =$G$70/#REF!*100 ->  | CC70: 46.96 | CE70: 40.41 | CF70: 18.19 | CG70: 29.3 | CH70: 3022.37 | CI70: 1282.13 | CJ70: 2152.25 | CK70: 84.83 | CL70: 46.86 | CM70: 65.85 | CN70: 7.5 | CO70: 0.38
B71: 10:00
A72: ="-" -> - | B72: Фрукты (яблоки) | C72: 100 | D72: 0.4 | E72: 0.4 | F72: 11.6 | G72: 50 | H72: 0.1 | I72: 0.0 | J72: 0.0 | K72: 0.0 | L72: 10.0 | M72: 0.8 | N72: 0.8 | O72: 0.0 | P72: 0.0 | Q72: 0.8 | R72: 0.5 | S72: 26.0 | T72: 278.0 | U72: 16.0 | V72: 9.0 | W72: 11.0 | X72: 2.2 | Y72: 0.0 | Z72: 30.0 | AA72: 5.0 | AB72: 0.2 | AC72: 0.0 | AD72: 0.0 | AE72: 0.3 | AF72: 0.4 | AG72: 10.0 | AH72: 0 | AI72: 12 | AJ72: 13 | AK72: 19 | AL72: 18 | AM72: 3 | AN72: 11 | AO72: 3 | AP72: 9 | AQ72: 17 | AR72: 10 | AS72: 78 | AT72: 7 | AU72: 14 | AV72: 42 | AW72: 0 | AX72: 13 | AY72: 16 | AZ72: 6 | BA72: 5 | BB72: 0 | BC72: 0 | BD72: 0 | BE72: 0 | BF72: 0 | BG72: 0 | BH72: 0 | BI72: 0 | BJ72: 0 | BK72: 0 | BL72: 0 | BM72: 0 | BN72: 0 | BO72: 0 | BP72: 0 | BQ72: 0 | BR72: 0 | BS72: 0 | BT72: 0 | BU72: 0 | BV72: 0 | BW72: 0 | BX72: 0 | BY72: 0 | BZ72: 86.3 | CC72: 5 | CE72: 2 | CF72: 2 | CG72: 2 | CH72: 150 | CI72: 150 | CJ72: 150 | CK72: 0 | CL72: 0 | CM72: 0 | CN72: 0 | CO72: 0
B73: Итого за '10:00' | C73: =SUM(C72) -> 100 | D73: =SUM(D72) -> 0.4 | E73: 0.4 | F73: 11.6 | G73: 50 | H73: 0.1 | I73: 0.0 | J73: 0.0 | K73: 0.0 | L73: 10.0 | M73: 0.8 | N73: 0.8 | O73: 0.0 | P73: 0.0 | Q73: 0.8 | R73: 0.5 | S73: 26.0 | T73: 278.0 | U73: 16.0 | V73: 9.0 | W73: 11.0 | X73: 2.2 | Y73: 0.0 | Z73: 30.0 | AA73: 5.0 | AB73: 0.2 | AC73: 0.0 | AD73: 0.0 | AE73: 0.3 | AF73: 0.4 | AG73: 10.0 | AH73: 0 | AI73: 12 | AJ73: 13 | AK73: 19 | AL73: 18 | AM73: 3 | AN73: 11 | AO73: 3 | AP73: 9 | AQ73: 17 | AR73: 10 | AS73: 78 | AT73: 7 | AU73: 14 | AV73: 42 | AW73: 0 | AX73: 13 | AY73: 16 | AZ73: 6 | BA73: 5 | BB73: 0 | BC73: 0 | BD73: 0 | BE73: 0 | BF73: 0 | BG73: 0 | BH73: 0 | BI73: 0 | BJ73: 0 | BK73: 0 | BL73: 0 | BM73: 0 | BN73: 0 | BO73: 0 | BP73: 0 | BQ73: 0 | BR73: 0 | BS73: 0 | BT73: 0 | BU73: 0 | BV73: 0 | BW73: 0 | BX73: 0 | BY73: 0 | BZ73: 86.3 | CB73: =$G$73/#REF!*100 ->  | CC73: 5 | CE73: 2 | CF73: 2 | CG73: 2 | CH73: 150 | CI73: 150 | CJ73: 150 | CK73: 0 | CL73: 0 | CM73: 0 | CN73: 0 | CO73: 0
B74: Обед
A75: ="-" -> - | B75: Хлеб пшеничный | C75: 20 | D75: 1.2 | E75: 0.1 | F75: 7.4 | G75: 36 | H75: 0.0 | I75: 0.0 | J75: 0.0 | K75: 0.0 | L75: 0.2 | M75: 7.1 | N75: 0.0 | O75: 0.0 | P75: 0.0 | Q75: 0.0 | R75: 0.4 | S75: 0.0 | T75: 0.0 | U75: 0.0 | V75: 0.0 | W75: 0.0 | X75: 0.0 | Y75: 0.0 | Z75: 0.0 | AA75: 0.0 | AB75: 0.0 | AC75: 0.0 | AD75: 0.0 | AE75: 0.0 | AF75: 0.0 | AG75: 0.0 | AH75: 0 | AI75: 63.86 | AJ75: 66.47 | AK75: 101.79 | AL75: 33.76 | AM75: 20.01 | AN75: 40.02 | AO75: 15.14 | AP75: 72.38 | AQ75: 44.89 | AR75: 62.64 | AS75: 51.68 | AT75: 27.14 | AU75: 48.02 | AV75: 401.59 | AW75: 0 | AX75: 130.85 | AY75: 56.9 | AZ75: 37.76 | BA75: 29.93 | BB75: 0 | BC75: 0 | BD75: 0 | BE75: 0 | BF75: 0 | BG75: 0 | BH75: 0 | BI75: 0.02 | BJ75: 0 | BK75: 0 | BL75: 0 | BM75: 0 | BN75: 0 | BO75: 0 | BP75: 0 | BQ75: 0.01 | BR75: 0 | BS75: 0 | BT75: 0.06 | BU75: 0 | BV75: 0 | BW75: 0 | BX75: 0 | BY75: 0 | BZ75: 7.82 | CC75: 0 | CE75: 0 | CF75: 0 | CG75: 0 | CH75: 380 | CI75: 146.4 | CJ75: 263.2 | CK75: 3.04 | CL75: 3.04 | CM75: 3.04 | CN75: 0 | CO75: 0
A76: ="-" -> - | B76: Хлеб ржаной | C76: 20 | D76: 1.2 | E76: 0.2 | F76: 8.3 | G76: 38 | H76: 0.0 | I76: 0.0 | J76: 0.0 | K76: 0.0 | L76: 0.2 | M76: 6.4 | N76: 1.7 | O76: 0.0 | P76: 0.0 | Q76: 0.2 | R76: 0.5 | S76: 122.0 | T76: 49.0 | U76: 7.0 | V76: 9.4 | W76: 31.6 | X76: 0.8 | Y76: 0.0 | Z76: 1.0 | AA76: 0.2 | AB76: 0.3 | AC76: 0.0 | AD76: 0.0 | AE76: 0.1 | AF76: 0.4 | AG76: 0.0 | AH76: 0 | AI76: 64.4 | AJ76: 49.6 | AK76: 85.4 | AL76: 44.6 | AM76: 18.6 | AN76: 39.6 | AO76: 16 | AP76: 74.2 | AQ76: 59.4 | AR76: 58.2 | AS76: 92.8 | AT76: 24.8 | AU76: 62 | AV76: 311.8 | AW76: 0 | AX76: 105.2 | AY76: 58.2 | AZ76: 36 | BA76: 26 | BB76: 0 | BC76: 0 | BD76: 0 | BE76: 0 | BF76: 0 | BG76: 0 | BH76: 0 | BI76: 0.03 | BJ76: 0 | BK76: 0 | BL76: 0 | BM76: 0 | BN76: 0 | BO76: 0 | BP76: 0 | BQ76: 0.02 | BR76: 0 | BS76: 0 | BT76: 0.1 | BU76: 0.02 | BV76: 0 | BW76: 0 | BX76: 0 | BY76: 0 | BZ76: 9.4 | CC76: 0.17 | CE76: 4 | CF76: 4 | CG76: 4 | CH76: 760 | CI76: 292.8 | CJ76: 526.4 | CK76: 7.6 | CL76: 6.32 | CM76: 6.96 | CN76: 0 | CO76: 0
A77: ="6/10" -> 6/10 | B77: Компот из сухофруктов | C77: 150 | D77: 0.8 | E77: 0.0 | F77: 17.4 | G77: 66 | H77: 0.0 | I77: 0.0 | J77: 0.0 | K77: 0.0 | L77: 14.4 | M77: 0.4 | N77: 2.6 | O77: 0.0 | P77: 0.0 | Q77: 0.2 | R77: 0.6 | S77: 2.6 | T77: 255.2 | U77: 23.5 | V77: 15.0 | W77: 20.4 | X77: 0.5 | Y77: 0.0 | Z77: 472.5 | AA77: 87.5 | AB77: 0.8 | AC77: 0.0 | AD77: 0.0 | AE77: 0.4 | AF77: 0.6 | AG77: 0.4 | AH77: 0 | AI77: 0.01 | AJ77: 0.01 | AK77: 0.01 | AL77: 0.01 | AM77: 0 | AN77: 0.01 | AO77: 0 | AP77: 0.01 | AQ77: 0.01 | AR77: 0.01 | AS77: 0.04 | AT77: 0 | AU77: 0.01 | AV77: 0.02 | AW77: 0 | AX77: 0.01 | AY77: 0.01 | AZ77: 0 | BA77: 0 | BB77: 0 | BC77: 0 | BD77: 0 | BE77: 0 | BF77: 0 | BG77: 0 | BH77: 0 | BI77: 0 | BJ77: 0 | BK77: 0 | BL77: 0 | BM77: 0 | BN77: 0 | BO77: 0 | BP77: 0 | BQ77: 0.01 | BR77: 0 | BS77: 0 | BT77: 0 | BU77: 0 | BV77: 0 | BW77: 0 | BX77: 0 | BY77: 0 | BZ77: 160.51 | CC77: 78.75 | CE77: 3.95 | CF77: 3.95 | CG77: 3.95 | CH77: 454.5 | CI77: 172.98 | CJ77: 313.74 | CK77: 41.94 | CL77: 24.93 | CM77: 33.44 | CN77: 7.5 | CO77: 0
A78: ="16/2" -> 16/2 | B78: Суп картофельный с бобовыми на говяжьем бульоне | C78: 150 | D78: 2.7 | E78: 5.7 | F78: 13.8 | G78: 114 | H78: 1.4 | I78: 1.0 | J78: 0.0 | K78: 0.0 | L78: 2.4 | M78: 9.4 | N78: 2.0 | O78: 0.0 | P78: 0.0 | Q78: 0.1 | R78: 1.7 | S78: 351.8 | T78: 294.8 | U78: 22.9 | V78: 21.9 | W78: 59.9 | X78: 1.2 | Y78: 0.0 | Z78: 654.5 | AA78: 121.1 | AB78: 0.8 | AC78: 0.1 | AD78: 0.1 | AE78: 0.6 | AF78: 1.4 | AG78: 2.8 | AH78: 0 | AI78: 128.66 | AJ78: 142 | AK78: 211.33 | AL78: 202.16 | AM78: 27.58 | AN78: 112.43 | AO78: 36.93 | AP78: 132.65 | AQ78: 126.89 | AR78: 239.5 | AS78: 290.42 | AT78: 59.05 | AU78: 125.48 | AV78: 451.65 | AW78: 0 | AX78: 88.2 | AY78: 108.31 | AZ78: 91.02 | BA78: 33.93 | BB78: 0 | BC78: 0 | BD78: 0 | BE78: 0 | BF78: 0 | BG78: 0 | BH78: 0 | BI78: 0.14 | BJ78: 0 | BK78: 0.07 | BL78: 0.01 | BM78: 0.01 | BN78: 0 | BO78: 0 | BP78: 0 | BQ78: 0.44 | BR78: 0 | BS78: 0 | BT78: 1 | BU78: 0.01 | BV78: 0 | BW78: 0 | BX78: 0 | BY78: 0 | BZ78: 137.7 | CC78: 109.08 | CE78: 48.76 | CF78: 27.16 | CG78: 37.96 | CH78: 500.4 | CI78: 262.36 | CJ78: 381.38 | CK78: 36.16 | CL78: 19.04 | CM78: 27.6 | CN78: 0 | CO78: 0.9
A79: ="46/3" -> 46/3 | B79: Макаронные изделия отварные с маслом сливочным | C79: 120 | D79: 4.2 | E79: 2.4 | F79: 27.3 | G79: 147 | H79: 1.5 | I79: 0.1 | J79: 0.0 | K79: 0.0 | L79: 0.8 | M79: 25.1 | N79: 1.4 | O79: 0.0 | P79: 0.0 | Q79: 0.0 | R79: 0.6 | S79: 117.8 | T79: 45.0 | U79: 8.4 | V79: 5.7 | W79: 31.9 | X79: 0.6 | Y79: 7.2 | Z79: 7.2 | AA79: 13.5 | AB79: 0.6 | AC79: 0.1 | AD79: 0.0 | AE79: 0.4 | AF79: 1.2 | AG79: 0.0 | AH79: 0 | AI79: 183.74 | AJ79: 167.99 | AK79: 314.71 | AL79: 98.3 | AM79: 59.93 | AN79: 121.75 | AO79: 39.95 | AP79: 195.25 | AQ79: 129.11 | AR79: 155.68 | AS79: 133.54 | AT79: 78.46 | AU79: 136.44 | AV79: 1198.29 | AW79: 0 | AX79: 377.59 | AY79: 195.58 | AZ79: 98.21 | BA79: 77.75 | BB79: 0.07 | BC79: 0.03 | BD79: 0.02 | BE79: 0.04 | BF79: 0.05 | BG79: 0.21 | BH79: 0 | BI79: 0.65 | BJ79: 0 | BK79: 0.18 | BL79: 0 | BM79: 0 | BN79: 0 | BO79: 0.04 | BP79: 0.06 | BQ79: 0.48 | BR79: 0 | BS79: 0 | BT79: 0.19 | BU79: 0.01 | BV79: 0 | BW79: 0 | BX79: 0 | BY79: 0 | BZ79: 250.85 | CC79: 8.4 | CE79: 15.92 | CF79: 8.3 | CG79: 12.11 | CH79: 369.83 | CI79: 365.4 | CJ79: 367.62 | CK79: 9.36 | CL79: 4.76 | CM79: 7.06 | CN79: 0 | CO79: 0.36
A80: ="1/27" -> 1/27 | B80: Котлеты "Крестьянские" из мясо говядины и птиц | C80: 50 | D80: 8.0 | E80: 9.2 | F80: 6.9 | G80: 141 | H80: 3.1 | I80: 17.5 | J80: 0.0 | K80: 0.0 | L80: 0.5 | M80: 5.6 | N80: 0.8 | O80: 0.0 | P80: 0.0 | Q80: 0.1 | R80: 0.9 | S80: 145.1 | T80: 117.3 | U80: 9.0 | V80: 11.9 | W80: 81.3 | X80: 1.1 | Y80: 17.9 | Z80: 2.5 | AA80: 18.4 | AB80: 1.7 | AC80: 0.0 | AD80: 0.1 | AE80: 2.5 | AF80: 4.8 | AG80: 0.3 | AH80: 0 | AI80: 405.15 | AJ80: 321.92 | AK80: 623.23 | AL80: 803.57 | AM80: 194.31 | AN80: 353.67 | AO80: 111.94 | AP80: 339.3 | AQ80: 473.58 | AR80: 492.79 | AS80: 699.89 | AT80: 241.54 | AU80: 507.33 | AV80: 1292.73 | AW80: 81.79 | AX80: 382.17 | AY80: 358.78 | AZ80: 277.15 | BA80: 108.81 | BB80: 0 | BC80: 0 | BD80: 0 | BE80: 0 | BF80: 0 | BG80: 0 | BH80: 0 | BI80: 0.19 | BJ80: 0 | BK80: 0.12 | BL80: 0.01 | BM80: 0.02 | BN80: 0 | BO80: 0 | BP80: 0 | BQ80: 0.7 | BR80: 0 | BS80: 0 | BT80: 1.77 | BU80: 0 | BV80: 0 | BW80: 0 | BX80: 0 | BY80: 0 | BZ80: 40.11 | CC80: 18.26 | CE80: 18.26 | CF80: 9.65 | CG80: 13.96 | CH80: 2109.43 | CI80: 1279.73 | CJ80: 1694.58 | CK80: 14.61 | CL80: 10.31 | CM80: 12.46 | CN80: 0 | CO80: 0.25
B81: Итого за 'Обед' | C81: =SUM(C75:C80) -> 510 | D81: =SUM(D75:D80) -> 18.1 | E81: 17.7 | F81: 81.1 | G81: 542 | H81: 6.0 | I81: 18.5 | J81: 0.0 | K81: 0.0 | L81: 18.5 | M81: 54.2 | N81: 8.4 | O81: 0.0 | P81: 0.0 | Q81: 0.6 | R81: 4.6 | S81: 739.3 | T81: 761.2 | U81: 70.8 | V81: 63.9 | W81: 225.0 | X81: 4.2 | Y81: 25.1 | Z81: 1137.7 | AA81: 240.7 | AB81: 4.2 | AC81: 0.3 | AD81: 0.2 | AE81: 4.0 | AF81: 8.4 | AG81: 3.4 | AH81: 0 | AI81: 845.81 | AJ81: 747.98 | AK81: 1336.47 | AL81: 1182.4 | AM81: 320.43 | AN81: 667.48 | AO81: 219.96 | AP81: 813.79 | AQ81: 833.88 | AR81: 1008.81 | AS81: 1268.37 | AT81: 430.99 | AU81: 879.29 | AV81: 3656.08 | AW81: 81.79 | AX81: 1084.02 | AY81: 777.79 | AZ81: 540.15 | BA81: 276.42 | BB81: 0.07 | BC81: 0.03 | BD81: 0.02 | BE81: 0.04 | BF81: 0.05 | BG81: 0.21 | BH81: 0 | BI81: 1.02 | BJ81: 0 | BK81: 0.38 | BL81: 0.02 | BM81: 0.03 | BN81: 0 | BO81: 0.04 | BP81: 0.07 | BQ81: 1.67 | BR81: 0 | BS81: 0 | BT81: 3.12 | BU81: 0.04 | BV81: 0 | BW81: 0 | BX81: 0 | BY81: 0 | BZ81: 606.4 | CB81: =$G$81/#REF!*100 ->  | CC81: 214.66 | CE81: 90.88 | CF81: 53.06 | CG81: 71.97 | CH81: 4574.15 | CI81: 2519.68 | CJ81: 3546.91 | CK81: 112.71 | CL81: 68.4 | CM81: 90.56 | CN81: 7.5 | CO81: 1.51
B82: Уплотненный полдник
A83: ="27/10" -> 27/10 | B83: Чай полусладкий | C83: 150 | D83: 0.2 | E83: 0.0 | F83: 3.8 | G83: 15 | H83: 0.0 | I83: 0.0 | J83: 0.0 | K83: 0.0 | L83: 3.7 | M83: 0.0 | N83: 0.1 | O83: 0.0 | P83: 0.0 | Q83: 0.0 | R83: 0.1 | S83: 0.0 | T83: 0.1 | U83: 0.1 | V83: 0.0 | W83: 0.0 | X83: 0.0 | Y83: 0.0 | Z83: 0.0 | AA83: 0.0 | AB83: 0.0 | AC83: 0.0 | AD83: 0.0 | AE83: 0.0 | AF83: 0.0 | AG83: 0.0 | AH83: 0 | AI83: 0 | AJ83: 0 | AK83: 0 | AL83: 0 | AM83: 0 | AN83: 0 | AO83: 0 | AP83: 0 | AQ83: 0 | AR83: 0 | AS83: 0 | AT83: 0 | AU83: 0 | AV83: 0 | AW83: 0 | AX83: 0 | AY83: 0 | AZ83: 0 | BA83: 0 | BB83: 0 | BC83: 0 | BD83: 0 | BE83: 0 | BF83: 0 | BG83: 0 | BH83: 0 | BI83: 0 | BJ83: 0 | BK83: 0 | BL83: 0 | BM83: 0 | BN83: 0 | BO83: 0 | BP83: 0 | BQ83: 0 | BR83: 0 | BS83: 0 | BT83: 0 | BU83: 0 | BV83: 0 | BW83: 0 | BX83: 0 | BY83: 0 | BZ83: 150.07 | CC83: 0 | CE83: 3.69 | CF83: 3.69 | CG83: 3.69 | CH83: 398.25 | CI83: 156.6 | CJ83: 277.43 | CK83: 39.61 | CL83: 23.41 | CM83: 31.51 | CN83: 3.75 | CO83: 0
A84: ="-" -> - | B84: Хлеб ржаной | C84: 20 | D84: 1.2 | E84: 0.2 | F84: 8.3 | G84: 38 | H84: 0.0 | I84: 0.0 | J84: 0.0 | K84: 0.0 | L84: 0.2 | M84: 6.4 | N84: 1.7 | O84: 0.0 | P84: 0.0 | Q84: 0.2 | R84: 0.5 | S84: 122.0 | T84: 49.0 | U84: 7.0 | V84: 9.4 | W84: 31.6 | X84: 0.8 | Y84: 0.0 | Z84: 1.0 | AA84: 0.2 | AB84: 0.3 | AC84: 0.0 | AD84: 0.0 | AE84: 0.1 | AF84: 0.4 | AG84: 0.0 | AH84: 0 | AI84: 64.4 | AJ84: 49.6 | AK84: 85.4 | AL84: 44.6 | AM84: 18.6 | AN84: 39.6 | AO84: 16 | AP84: 74.2 | AQ84: 59.4 | AR84: 58.2 | AS84: 92.8 | AT84: 24.8 | AU84: 62 | AV84: 311.8 | AW84: 0 | AX84: 105.2 | AY84: 58.2 | AZ84: 36 | BA84: 26 | BB84: 0 | BC84: 0 | BD84: 0 | BE84: 0 | BF84: 0 | BG84: 0 | BH84: 0 | BI84: 0.03 | BJ84: 0 | BK84: 0 | BL84: 0 | BM84: 0 | BN84: 0 | BO84: 0 | BP84: 0 | BQ84: 0.02 | BR84: 0 | BS84: 0 | BT84: 0.1 | BU84: 0.02 | BV84: 0 | BW84: 0 | BX84: 0 | BY84: 0 | BZ84: 9.4 | CC84: 0.17 | CE84: 3 | CF84: 3 | CG84: 3 | CH84: 570 | CI84: 219.6 | CJ84: 394.8 | CK84: 5.7 | CL84: 4.74 | CM84: 5.22 | CN84: 0 | CO84: 0
A85: ="8/5" -> 8/5 | B85: Запеканка (сырники) из творога | C85: 110 | D85: 18.6 | E85: 10.6 | F85: 14.8 | G85: 230 | H85: 5.7 | I85: 0.7 | J85: 0.0 | K85: 0.0 | L85: 9.9 | M85: 4.7 | N85: 0.2 | O85: 0.0 | P85: 0.0 | Q85: 1.2 | R85: 1.1 | S85: 43.7 | T85: 118.4 | U85: 154.8 | V85: 22.8 | W85: 202.8 | X85: 0.6 | Y85: 60.6 | Z85: 30.5 | AA85: 69.5 | AB85: 0.8 | AC85: 0.0 | AD85: 0.3 | AE85: 0.5 | AF85: 4.3 | AG85: 0.3 | AH85: 0 | AI85: 892.84 | AJ85: 735.23 | AK85: 1367.35 | AL85: 1059.1 | AM85: 408.19 | AN85: 688.8 | AO85: 224.58 | AP85: 813.3 | AQ85: 76.87 | AR85: 87.46 | AS85: 116.98 | AT85: 473.23 | AU85: 62.79 | AV85: 360.65 | AW85: 0.59 | AX85: 105.15 | AY85: 93.22 | AZ85: 894.07 | BA85: 98.75 | BB85: 0 | BC85: 0 | BD85: 0 | BE85: 0 | BF85: 0 | BG85: 0 | BH85: 0 | BI85: 0.07 | BJ85: 0 | BK85: 0.04 | BL85: 0 | BM85: 0.01 | BN85: 0 | BO85: 0 | BP85: 0 | BQ85: 0.25 | BR85: 0 | BS85: 0 | BT85: 0.62 | BU85: 0 | BV85: 0 | BW85: 0 | BX85: 0 | BY85: 0 | BZ85: 81.19 | CC85: 65.69 | CE85: 10.63 | CF85: 9.56 | CG85: 10.1 | CH85: 1004.09 | CI85: 721.58 | CJ85: 862.84 | CK85: 22.06 | CL85: 16.19 | CM85: 19.12 | CN85: 4.4 | CO85: 0
B86: Итого за 'Ужин' | C86: =SUM(C83:C85) -> 280 | D86: =SUM(D83:D85) -> 19.9 | E86: 10.8 | F86: 26.9 | G86: 284 | H86: 5.8 | I86: 0.7 | J86: 0.0 | K86: 0.0 | L86: 13.8 | M86: 11.1 | N86: 2.0 | O86: 0.0 | P86: 0.0 | Q86: 1.4 | R86: 1.7 | S86: 165.7 | T86: 167.5 | U86: 161.9 | V86: 32.2 | W86: 234.4 | X86: 1.3 | Y86: 60.6 | Z86: 31.5 | AA86: 69.7 | AB86: 1.1 | AC86: 0.1 | AD86: 0.3 | AE86: 0.6 | AF86: 4.7 | AG86: 0.3 | AH86: 0 | AI86: 892.84 | AJ86: 735.23 | AK86: 1367.35 | AL86: 1059.1 | AM86: 408.19 | AN86: 688.8 | AO86: 224.58 | AP86: 813.3 | AQ86: 76.87 | AR86: 87.46 | AS86: 116.98 | AT86: 473.23 | AU86: 62.79 | AV86: 360.65 | AW86: 0.59 | AX86: 105.15 | AY86: 93.22 | AZ86: 894.07 | BA86: 98.75 | BB86: 0 | BC86: 0 | BD86: 0 | BE86: 0 | BF86: 0 | BG86: 0 | BH86: 0 | BI86: 0.07 | BJ86: 0 | BK86: 0.04 | BL86: 0 | BM86: 0.01 | BN86: 0 | BO86: 0 | BP86: 0 | BQ86: 0.25 | BR86: 0 | BS86: 0 | BT86: 0.62 | BU86: 0 | BV86: 0 | BW86: 0 | BX86: 0 | BY86: 0 | BZ86: 231.26 | CB86: =$G$86/#REF!*100 ->  | CC86: 65.69 | CE86: 14.32 | CF86: 13.25 | CG86: 13.78 | CH86: 1402.34 | CI86: 878.18 | CJ86: 1140.26 | CK86: 61.67 | CL86: 39.59 | CM86: 50.63 | CN86: 8.15 | CO86: 0
B87: Итого за день | C87: =C70+C73+C81+C86 -> 1225 | D87: 45.9 | E87: 38.5 | F87: 158.5 | G87: 1145 | H87: 17.5 | I87: 19.4 | J87: 0.0 | K87: 0.0 | L87: 55.3 | M87: 90.3 | N87: 13.0 | O87: 0.0 | P87: 0.0 | Q87: 3.0 | R87: 8.6 | S87: 1255.5 | T87: 1407.3 | U87: 369.8 | V87: 131.1 | W87: 594.5 | X87: 8.7 | Y87: 127.6 | Z87: 1229.5 | AA87: 372.8 | AB87: 6.5 | AC87: 0.5 | AD87: 0.7 | AE87: 5.7 | AF87: 15.9 | AG87: 14.2 | AH87: 0 | AI87: 1976.08 | AJ87: 1716.74 | AK87: 3088.81 | AL87: 2380.25 | AM87: 803.02 | AN87: 1512.21 | AO87: 502.12 | AP87: 1887.2 | AQ87: 1085.57 | AR87: 1323.23 | AS87: 1643.83 | AT87: 1009.63 | AU87: 1124.3 | AV87: 5489.26 | AW87: 82.37 | AX87: 1667.65 | AY87: 1110.1 | AZ87: 1571.02 | BA87: 482.48 | BB87: 0.28 | BC87: 0.13 | BD87: 0.07 | BE87: 0.16 | BF87: 0.18 | BG87: 0.82 | BH87: 0 | BI87: 2.87 | BJ87: 0 | BK87: 0.99 | BL87: 0.02 | BM87: 0.04 | BN87: 0 | BO87: 0.16 | BP87: 0.25 | BQ87: 3.64 | BR87: 0 | BS87: 0 | BT87: 4.07 | BU87: 0.05 | BV87: 0 | BW87: 0 | BX87: 0 | BY87: 0 | BZ87: 1216.89 | CC87: 332.31 | CE87: 147.61 | CF87: 86.5 | CG87: 117.06 | CH87: 9148.86 | CI87: 4829.98 | CJ87: 6989.42 | CK87: 259.22 | CL87: 154.86 | CM87: 207.04 | CN87: 23.15 | CO87: 1.89
B89: 4 день
B90: Завтрак
A91: ="-" -> - | B91: Хлеб пшеничный | C91: 25 | D91: 1.5 | E91: 0.2 | F91: 9.2 | G91: 45 | H91: 0.0 | I91: 0.0 | J91: 0.0 | K91: 0.0 | L91: 0.3 | M91: 8.9 | N91: 0.1 | O91: 0.0 | P91: 0.0 | Q91: 0.0 | R91: 0.5 | S91: 0.0 | T91: 0.0 | U91: 0.0 | V91: 0.0 | W91: 0.0 | X91: 0.0 | Y91: 0.0 | Z91: 0.0 | AA91: 0.0 | AB91: 0.0 | AC91: 0.0 | AD91: 0.0 | AE91: 0.0 | AF91: 0.0 | AG91: 0.0 | AH91: 0 | AI91: 79.82 | AJ91: 83.09 | AK91: 127.24 | AL91: 42.2 | AM91: 25.01 | AN91: 50.03 | AO91: 18.92 | AP91: 90.48 | AQ91: 56.12 | AR91: 78.3 | AS91: 64.6 | AT91: 33.93 | AU91: 60.03 | AV91: 501.99 | AW91: 0 | AX91: 163.56 | AY91: 71.12 | AZ91: 47.2 | BA91: 37.41 | BB91: 0 | BC91: 0 | BD91: 0 | BE91: 0 | BF91: 0 | BG91: 0 | BH91: 0 | BI91: 0.02 | BJ91: 0 | BK91: 0 | BL91: 0 | BM91: 0 | BN91: 0 | BO91: 0 | BP91: 0 | BQ91: 0.02 | BR91: 0 | BS91: 0 | BT91: 0.07 | BU91: 0 | BV91: 0 | BW91: 0 | BX91: 0 | BY91: 0 | BZ91: 9.78 | CC91: 0 | CE91: 0 | CF91: 0 | CG91: 0 | CH91: 570 | CI91: 219.6 | CJ91: 394.8 | CK91: 4.56 | CL91: 4.56 | CM91: 4.56 | CN91: 0 | CO91: 0
A92: ="4/13" -> 4/13 | B92: Сыр (порциями) | C92: 10 | D92: 1.5 | E92: 2.7 | F92: 0.0 | G92: 31 | H92: 1.5 | I92: 0.0 | J92: 0.0 | K92: 0.0 | L92: 0.0 | M92: 0.0 | N92: 0.0 | O92: 0.0 | P92: 0.0 | Q92: 0.2 | R92: 0.4 | S92: 110.0 | T92: 10.0 | U92: 100.0 | V92: 5.5 | W92: 60.0 | X92: 0.1 | Y92: 21.0 | Z92: 17.0 | AA92: 23.8 | AB92: 0.0 | AC92: 0.0 | AD92: 0.0 | AE92: 0.0 | AF92: 0.7 | AG92: 0.1 | AH92: 0 | AI92: 157 | AJ92: 117 | AK92: 230 | AL92: 158 | AM92: 56 | AN92: 95 | AO92: 70 | AP92: 134 | AQ92: 76 | AR92: 87 | AS92: 156 | AT92: 70 | AU92: 51 | AV92: 517 | AW92: 0 | AX92: 273 | AY92: 129 | AZ92: 139 | BA92: 21.5 | BB92: 0 | BC92: 0.01 | BD92: 0.04 | BE92: 0.11 | BF92: 0.13 | BG92: 0.33 | BH92: 0.04 | BI92: 0.7 | BJ92: 0.01 | BK92: 0.16 | BL92: 0.01 | BM92: 0 | BN92: 0 | BO92: 0.05 | BP92: 0.07 | BQ92: 0.52 | BR92: 0 | BS92: 0 | BT92: 0.07 | BU92: 0 | BV92: 0 | BW92: 0 | BX92: 0 | BY92: 0 | BZ92: 4.08 | CC92: 23.83 | CE92: 0 | CF92: 0 | CG92: 0 | CH92: 500 | CI92: 370 | CJ92: 435 | CK92: 1.53 | CL92: 0.97 | CM92: 1.25 | CN92: 0 | CO92: 0
A93: ="32/10" -> 32/10 | B93: Кофейный напиток с молоком | C93: 150 | D93: 3.0 | E93: 2.6 | F93: 10.8 | G93: 76 | H93: 1.3 | I93: 0.0 | J93: 0.0 | K93: 0.0 | L93: 10.8 | M93: 0.0 | N93: 0.0 | O93: 0.0 | P93: 0.0 | Q93: 0.1 | R93: 0.5 | S93: 37.2 | T93: 108.6 | U93: 87.5 | V93: 10.0 | W93: 62.8 | X93: 0.1 | Y93: 15.0 | Z93: 6.8 | AA93: 16.5 | AB93: 0.0 | AC93: 0.0 | AD93: 0.1 | AE93: 0.1 | AF93: 0.6 | AG93: 0.4 | AH93: 0 | AI93: 0 | AJ93: 0 | AK93: 0 | AL93: 0 | AM93: 0 | AN93: 0 | AO93: 0 | AP93: 0 | AQ93: 0 | AR93: 0 | AS93: 0 | AT93: 0 | AU93: 0 | AV93: 0 | AW93: 0 | AX93: 0 | AY93: 0 | AZ93: 0 | BA93: 0 | BB93: 0 | BC93: 0 | BD93: 0 | BE93: 0 | BF93: 0 | BG93: 0 | BH93: 0 | BI93: 0 | BJ93: 0 | BK93: 0 | BL93: 0 | BM93: 0 | BN93: 0 | BO93: 0 | BP93: 0 | BQ93: 0 | BR93: 0 | BS93: 0 | BT93: 0 | BU93: 0 | BV93: 0 | BW93: 0 | BX93: 0 | BY93: 0 | BZ93: 149.52 | CC93: 16.13 | CE93: 10.25 | CF93: 3.95 | CG93: 7.1 | CH93: 792 | CI93: 288.18 | CJ93: 540.09 | CK93: 34.02 | CL93: 16.11 | CM93: 25.07 | CN93: 7.5 | CO93: 0
A94: ="16/4" -> 16/4 | B94: Каша пшеничная молочная с маслом сливочным | C94: 150 | D94: 4.9 | E94: 4.1 | F94: 24.5 | G94: 153 | H94: 2.5 | I94: 0.1 | J94: 0.0 | K94: 0.0 | L94: 5.8 | M94: 17.6 | N94: 1.0 | O94: 0.0 | P94: 0.0 | Q94: 0.1 | R94: 1.2 | S94: 178.6 | T94: 133.7 | U94: 72.4 | V94: 29.0 | W94: 108.8 | X94: 0.8 | Y94: 14.4 | Z94: 16.8 | AA94: 27.6 | AB94: 0.1 | AC94: 0.1 | AD94: 0.1 | AE94: 0.4 | AF94: 1.9 | AG94: 0.3 | AH94: 0 | AI94: 133.72 | AJ94: 122.42 | AK94: 434.73 | AL94: 82.49 | AM94: 83.95 | AN94: 114.13 | AO94: 51.97 | AP94: 164.74 | AQ94: 304.17 | AR94: 120.58 | AS94: 184.91 | AT94: 74.31 | AU94: 85.28 | AV94: 630.04 | AW94: 0 | AX94: 229.77 | AY94: 198.92 | AZ94: 116.8 | BA94: 51.04 | BB94: 0.07 | BC94: 0.03 | BD94: 0.02 | BE94: 0.04 | BF94: 0.05 | BG94: 0.21 | BH94: 0 | BI94: 0.65 | BJ94: 0 | BK94: 0.19 | BL94: 0.01 | BM94: 0 | BN94: 0 | BO94: 0.04 | BP94: 0.06 | BQ94: 0.61 | BR94: 0 | BS94: 0 | BT94: 0.58 | BU94: 0.01 | BV94: 0 | BW94: 0 | BX94: 0 | BY94: 0 | BZ94: 124.35 | CC94: 17.2 | CE94: 31 | CF94: 15.28 | CG94: 23.14 | CH94: 2123.67 | CI94: 973.11 | CJ94: 1548.39 | CK94: 36.56 | CL94: 18.86 | CM94: 27.71 | CN94: 3 | CO94: 0.38
B95: Итого за 'Завтрак' | C95: =SUM(C91:C94) -> 335 | D95: =SUM(D91:D94) -> 10.9 | E95: 9.5 | F95: 44.5 | G95: 305 | H95: 5.3 | I95: 0.1 | J95: 0.0 | K95: 0.0 | L95: 16.9 | M95: 26.5 | N95: 1.0 | O95: 0.0 | P95: 0.0 | Q95: 0.3 | R95: 2.6 | S95: 325.8 | T95: 252.3 | U95: 259.9 | V95: 44.5 | W95: 231.6 | X95: 0.9 | Y95: 50.4 | Z95: 40.6 | AA95: 67.9 | AB95: 0.2 | AC95: 0.1 | AD95: 0.2 | AE95: 0.5 | AF95: 3.2 | AG95: 0.8 | AH95: 0 | AI95: 370.55 | AJ95: 322.5 | AK95: 791.97 | AL95: 282.68 | AM95: 164.96 | AN95: 259.15 | AO95: 140.9 | AP95: 389.22 | AQ95: 436.28 | AR95: 285.88 | AS95: 405.5 | AT95: 178.24 | AU95: 196.31 | AV95: 1649.03 | AW95: 0 | AX95: 666.33 | AY95: 399.05 | AZ95: 303 | BA95: 109.95 | BB95: 0.07 | BC95: 0.04 | BD95: 0.06 | BE95: 0.15 | BF95: 0.17 | BG95: 0.55 | BH95: 0.04 | BI95: 1.36 | BJ95: 0.01 | BK95: 0.35 | BL95: 0.02 | BM95: 0 | BN95: 0 | BO95: 0.09 | BP95: 0.13 | BQ95: 1.15 | BR95: 0 | BS95: 0 | BT95: 0.71 | BU95: 0.01 | BV95: 0 | BW95: 0 | BX95: 0 | BY95: 0 | BZ95: 287.73 | CB95: =$G$95/#REF!*100 ->  | CC95: 57.16 | CE95: 41.25 | CF95: 19.23 | CG95: 30.24 | CH95: 3985.67 | CI95: 1850.89 | CJ95: 2918.28 | CK95: 76.67 | CL95: 40.5 | CM95: 58.58 | CN95: 10.5 | CO95: 0.38
B96: 10:00
A97: ="-" -> - | B97: Йогурт | C97: 100 | D97: 4.8 | E97: 2.5 | F97: 11.0 | G97: 87 | H97: 0.9 | I97: 0.0 | J97: 0.0 | K97: 0.0 | L97: 11.0 | M97: 0.0 | N97: 0.0 | O97: 0.0 | P97: 0.0 | Q97: 1.1 | R97: 0.9 | S97: 50.0 | T97: 152.0 | U97: 124.0 | V97: 15.0 | W97: 95.0 | X97: 0.1 | Y97: 10.0 | Z97: 0.0 | AA97: 10.0 | AB97: 0.0 | AC97: 0.0 | AD97: 0.2 | AE97: 0.2 | AF97: 1.2 | AG97: 0.6 | AH97: 0 | AI97: 323 | AJ97: 300 | AK97: 450 | AL97: 387 | AM97: 115 | AN97: 216 | AO97: 72 | AP97: 225 | AQ97: 160 | AR97: 174 | AS97: 344 | AT97: 156 | AU97: 93 | AV97: 897 | AW97: 0 | AX97: 518 | AY97: 278 | AZ97: 242 | BA97: 50 | BB97: 0.1 | BC97: 0.07 | BD97: 0.04 | BE97: 0.08 | BF97: 0.09 | BG97: 0.45 | BH97: 0.03 | BI97: 0.56 | BJ97: 0.02 | BK97: 0.31 | BL97: 0.04 | BM97: 0 | BN97: 0 | BO97: 0.04 | BP97: 0.08 | BQ97: 0.69 | BR97: 0.01 | BS97: 0 | BT97: 0.02 | BU97: 0.03 | BV97: 0.08 | BW97: 0 | BX97: 0 | BY97: 0 | BZ97: 86.5 | CC97: 10 | CE97: 9 | CF97: 9 | CG97: 9 | CH97: 0 | CI97: 0 | CJ97: 0 | CK97: 2 | CL97: 2 | CM97: 2 | CN97: 0 | CO97: 0
B98: Итого за '10:00' | C98: =SUM(C97) -> 100 | D98: =SUM(D97) -> 4.8 | E98: 2.5 | F98: 11.0 | G98: 87 | H98: 0.9 | I98: 0.0 | J98: 0.0 | K98: 0.0 | L98: 11.0 | M98: 0.0 | N98: 0.0 | O98: 0.0 | P98: 0.0 | Q98: 1.1 | R98: 0.9 | S98: 50.0 | T98: 152.0 | U98: 124.0 | V98: 15.0 | W98: 95.0 | X98: 0.1 | Y98: 10.0 | Z98: 0.0 | AA98: 10.0 | AB98: 0.0 | AC98: 0.0 | AD98: 0.2 | AE98: 0.2 | AF98: 1.2 | AG98: 0.6 | AH98: 0 | AI98: 323 | AJ98: 300 | AK98: 450 | AL98: 387 | AM98: 115 | AN98: 216 | AO98: 72 | AP98: 225 | AQ98: 160 | AR98: 174 | AS98: 344 | AT98: 156 | AU98: 93 | AV98: 897 | AW98: 0 | AX98: 518 | AY98: 278 | AZ98: 242 | BA98: 50 | BB98: 0.1 | BC98: 0.07 | BD98: 0.04 | BE98: 0.08 | BF98: 0.09 | BG98: 0.45 | BH98: 0.03 | BI98: 0.56 | BJ98: 0.02 | BK98: 0.31 | BL98: 0.04 | BM98: 0 | BN98: 0 | BO98: 0.04 | BP98: 0.08 | BQ98: 0.69 | BR98: 0.01 | BS98: 0 | BT98: 0.02 | BU98: 0.03 | BV98: 0.08 | BW98: 0 | BX98: 0 | BY98: 0 | BZ98: 86.5 | CB98: =$G$98/#REF!*100 ->  | CC98: 10 | CE98: 9 | CF98: 9 | CG98: 9 | CH98: 0 | CI98: 0 | CJ98: 0 | CK98: 2 | CL98: 2 | CM98: 2 | CN98: 0 | CO98: 0
B99: Обед
A100: ="-" -> - | B100: Хлеб пшеничный | C100: 20 | D100: 1.2 | E100: 0.1 | F100: 7.4 | G100: 36 | H100: 0.0 | I100: 0.0 | J100: 0.0 | K100: 0.0 | L100: 0.2 | M100: 7.1 | N100: 0.0 | O100: 0.0 | P100: 0.0 | Q100: 0.0 | R100: 0.4 | S100: 0.0 | T100: 0.0 | U100: 0.0 | V100: 0.0 | W100: 0.0 | X100: 0.0 | Y100: 0.0 | Z100: 0.0 | AA100: 0.0 | AB100: 0.0 | AC100: 0.0 | AD100: 0.0 | AE100: 0.0 | AF100: 0.0 | AG100: 0.0 | AH100: 0 | AI100: 63.86 | AJ100: 66.47 | AK100: 101.79 | AL100: 33.76 | AM100: 20.01 | AN100: 40.02 | AO100: 15.14 | AP100: 72.38 | AQ100: 44.89 | AR100: 62.64 | AS100: 51.68 | AT100: 27.14 | AU100: 48.02 | AV100: 401.59 | AW100: 0 | AX100: 130.85 | AY100: 56.9 | AZ100: 37.76 | BA100: 29.93 | BB100: 0 | BC100: 0 | BD100: 0 | BE100: 0 | BF100: 0 | BG100: 0 | BH100: 0 | BI100: 0.02 | BJ100: 0 | BK100: 0 | BL100: 0 | BM100: 0 | BN100: 0 | BO100: 0 | BP100: 0 | BQ100: 0.01 | BR100: 0 | BS100: 0 | BT100: 0.06 | BU100: 0 | BV100: 0 | BW100: 0 | BX100: 0 | BY100: 0 | BZ100: 7.82 | CC100: 0 | CE100: 0 | CF100: 0 | CG100: 0 | CH100: 380 | CI100: 146.4 | CJ100: 263.2 | CK100: 3.04 | CL100: 3.04 | CM100: 3.04 | CN100: 0 | CO100: 0
A101: ="-" -> - | B101: Хлеб ржаной | C101: 20 | D101: 1.2 | E101: 0.2 | F101: 8.3 | G101: 38 | H101: 0.0 | I101: 0.0 | J101: 0.0 | K101: 0.0 | L101: 0.2 | M101: 6.4 | N101: 1.7 | O101: 0.0 | P101: 0.0 | Q101: 0.2 | R101: 0.5 | S101: 122.0 | T101: 49.0 | U101: 7.0 | V101: 9.4 | W101: 31.6 | X101: 0.8 | Y101: 0.0 | Z101: 1.0 | AA101: 0.2 | AB101: 0.3 | AC101: 0.0 | AD101: 0.0 | AE101: 0.1 | AF101: 0.4 | AG101: 0.0 | AH101: 0 | AI101: 64.4 | AJ101: 49.6 | AK101: 85.4 | AL101: 44.6 | AM101: 18.6 | AN101: 39.6 | AO101: 16 | AP101: 74.2 | AQ101: 59.4 | AR101: 58.2 | AS101: 92.8 | AT101: 24.8 | AU101: 62 | AV101: 311.8 | AW101: 0 | AX101: 105.2 | AY101: 58.2 | AZ101: 36 | BA101: 26 | BB101: 0 | BC101: 0 | BD101: 0 | BE101: 0 | BF101: 0 | BG101: 0 | BH101: 0 | BI101: 0.03 | BJ101: 0 | BK101: 0 | BL101: 0 | BM101: 0 | BN101: 0 | BO101: 0 | BP101: 0 | BQ101: 0.02 | BR101: 0 | BS101: 0 | BT101: 0.1 | BU101: 0.02 | BV101: 0 | BW101: 0 | BX101: 0 | BY101: 0 | BZ101: 9.4 | CC101: 0.17 | CE101: 3 | CF101: 3 | CG101: 3 | CH101: 570 | CI101: 219.6 | CJ101: 394.8 | CK101: 5.7 | CL101: 4.74 | CM101: 5.22 | CN101: 0 | CO101: 0
A102: ="3/10" -> 3/10 | B102: Компот из яблок | C102: 150 | D102: 0.1 | E102: 0.1 | F102: 14.4 | G102: 56 | H102: 0.0 | I102: 0.0 | J102: 0.0 | K102: 0.0 | L102: 13.7 | M102: 0.2 | N102: 0.5 | O102: 0.0 | P102: 0.0 | Q102: 0.2 | R102: 0.2 | S102: 7.8 | T102: 82.9 | U102: 5.0 | V102: 2.6 | W102: 3.1 | X102: 0.7 | Y102: 0.0 | Z102: 8.1 | AA102: 1.5 | AB102: 0.1 | AC102: 0.0 | AD102: 0.0 | AE102: 0.1 | AF102: 0.1 | AG102: 1.2 | AH102: 0 | AI102: 3.53 | AJ102: 3.82 | AK102: 5.59 | AL102: 5.29 | AM102: 0.88 | AN102: 3.23 | AO102: 0.88 | AP102: 2.65 | AQ102: 5 | AR102: 2.94 | AS102: 22.93 | AT102: 2.06 | AU102: 4.12 | AV102: 12.35 | AW102: 0 | AX102: 3.82 | AY102: 4.7 | AZ102: 1.76 | BA102: 1.47 | BB102: 0 | BC102: 0 | BD102: 0 | BE102: 0 | BF102: 0 | BG102: 0 | BH102: 0 | BI102: 0 | BJ102: 0 | BK102: 0 | BL102: 0 | BM102: 0 | BN102: 0 | BO102: 0 | BP102: 0 | BQ102: 0 | BR102: 0 | BS102: 0 | BT102: 0 | BU102: 0 | BV102: 0 | BW102: 0 | BX102: 0 | BY102: 0 | BZ102: 183.4 | CC102: 1.35 | CE102: 4.5 | CF102: 4.5 | CG102: 4.5 | CH102: 432 | CI102: 208.98 | CJ102: 320.49 | CK102: 41.2 | CL102: 24.19 | CM102: 32.7 | CN102: 11.25 | CO102: 0
A103: ="32/1" -> 32/1 | B103: Салат из отварной свеклы с растительным маслом | C103: 30 | D103: 0.4 | E103: 1.8 | F103: 2.7 | G103: 27 | H103: 0.2 | I103: 1.2 | J103: 0.0 | K103: 0.0 | L103: 2.0 | M103: 0.0 | N103: 0.7 | O103: 0.0 | P103: 0.0 | Q103: 0.0 | R103: 0.4 | S103: 66.9 | T103: 67.0 | U103: 10.2 | V103: 5.8 | W103: 11.4 | X103: 0.4 | Y103: 0.0 | Z103: 2.5 | AA103: 0.6 | AB103: 0.8 | AC103: 0.0 | AD103: 0.0 | AE103: 0.0 | AF103: 0.1 | AG103: 0.6 | AH103: 0 | AI103: 14.64 | AJ103: 16.57 | AK103: 18.51 | AL103: 25.41 | AM103: 5.52 | AN103: 14.64 | AO103: 3.59 | AP103: 12.43 | AQ103: 11.05 | AR103: 20.16 | AS103: 90.6 | AT103: 3.87 | AU103: 10.5 | AV103: 75.69 | AW103: 0 | AX103: 12.98 | AY103: 17.4 | AZ103: 13.81 | BA103: 4.14 | BB103: 0 | BC103: 0 | BD103: 0 | BE103: 0 | BF103: 0 | BG103: 0 | BH103: 0 | BI103: 0.11 | BJ103: 0 | BK103: 0.07 | BL103: 0.01 | BM103: 0.01 | BN103: 0 | BO103: 0 | BP103: 0 | BQ103: 0.42 | BR103: 0 | BS103: 0 | BT103: 1.04 | BU103: 0 | BV103: 0 | BW103: 0 | BX103: 0 | BY103: 0 | BZ103: 25.52 | CC103: 0.41 | CE103: 13.58 | CF103: 8.49 | CG103: 11.04 | CH103: 427.16 | CI103: 102.19 | CJ103: 264.68 | CK103: 2.05 | CL103: 1.3 | CM103: 1.67 | CN103: 0 | CO103: 0.15
A104: ="14/2" -> 14/2 | B104: Суп картофельный с пшенной крупой на говяжьем бульоне | C104: 150 | D104: 2.0 | E104: 6.4 | F104: 10.1 | G104: 105 | H104: 1.6 | I104: 2.0 | J104: 0.0 | K104: 0.0 | L104: 1.3 | M104: 7.9 | N104: 0.9 | O104: 0.0 | P104: 0.0 | Q104: 0.1 | R104: 1.5 | S104: 352.4 | T104: 248.1 | U104: 10.2 | V104: 13.9 | W104: 34.6 | X104: 0.5 | Y104: 0.0 | Z104: 583.7 | AA104: 121.4 | AB104: 1.4 | AC104: 0.1 | AD104: 0.1 | AE104: 0.6 | AF104: 1.0 | AG104: 3.9 | AH104: 0 | AI104: 26.26 | AJ104: 31.02 | AK104: 66.89 | AL104: 35.65 | AM104: 13.09 | AN104: 30.01 | AO104: 13.99 | AP104: 35.45 | AQ104: 57.56 | AR104: 81.98 | AS104: 55.56 | AT104: 14.05 | AU104: 27.44 | AV104: 168.93 | AW104: 0 | AX104: 37.23 | AY104: 33.02 | AZ104: 25.27 | BA104: 11.25 | BB104: 0 | BC104: 0 | BD104: 0 | BE104: 0 | BF104: 0 | BG104: 0 | BH104: 0 | BI104: 0.2 | BJ104: 0 | BK104: 0.12 | BL104: 0.01 | BM104: 0.02 | BN104: 0 | BO104: 0 | BP104: 0 | BQ104: 0.7 | BR104: 0 | BS104: 0 | BT104: 1.86 | BU104: 0 | BV104: 0 | BW104: 0 | BX104: 0 | BY104: 0 | BZ104: 149.94 | CC104: 97.28 | CE104: 49.25 | CF104: 27.54 | CG104: 38.39 | CH104: 694.26 | CI104: 394.27 | CJ104: 544.26 | CK104: 38.31 | CL104: 18.54 | CM104: 28.42 | CN104: 0 | CO104: 0.9
A105: ="3/4" -> 3/4 | B105: Каша гречневая вязкая | C105: 120 | D105: 3.7 | E105: 3.1 | F105: 19.1 | G105: 114 | H105: 1.6 | I105: 0.1 | J105: 0.0 | K105: 0.0 | L105: 0.4 | M105: 15.5 | N105: 3.2 | O105: 0.0 | P105: 0.0 | Q105: 0.0 | R105: 0.8 | S105: 116.3 | T105: 111.5 | U105: 7.5 | V105: 55.9 | W105: 82.5 | X105: 1.9 | Y105: 12.0 | Z105: 10.8 | AA105: 14.1 | AB105: 0.3 | AC105: 0.1 | AD105: 0.1 | AE105: 1.1 | AF105: 2.1 | AG105: 0.0 | AH105: 0 | AI105: 171.23 | AJ105: 133.74 | AK105: 216.88 | AL105: 154.03 | AM105: 92.7 | AN105: 116.63 | AO105: 53.13 | AP105: 171.8 | AQ105: 168.17 | AR105: 323.46 | AS105: 319.18 | AT105: 87.47 | AU105: 208.15 | AV105: 655.33 | AW105: 0 | AX105: 145.47 | AY105: 176.19 | AZ105: 125.13 | BA105: 95.37 | BB105: 0.08 | BC105: 0.04 | BD105: 0.02 | BE105: 0.04 | BF105: 0.05 | BG105: 0.24 | BH105: 0 | BI105: 0.8 | BJ105: 0 | BK105: 0.21 | BL105: 0 | BM105: 0 | BN105: 0 | BO105: 0.05 | BP105: 0.07 | BQ105: 0.84 | BR105: 0.01 | BS105: 0 | BT105: 0.33 | BU105: 0.03 | BV105: 0 | BW105: 0 | BX105: 0 | BY105: 0 | BZ105: 100.87 | CC105: 13.79 | CE105: 18.76 | CF105: 11.15 | CG105: 14.96 | CH105: 1575.42 | CI105: 764.22 | CJ105: 1169.82 | CK105: 35.77 | CL105: 22.6 | CM105: 29.18 | CN105: 0 | CO105: 0.3
A106: ="2/9" -> 2/9 | B106: Мясо птицы отварное в соусе | C106: 50 | D106: 5.8 | E106: 5.6 | F106: 1.2 | G106: 78 | H106: 2.2 | I106: 0.0 | J106: 0.0 | K106: 0.0 | L106: 0.1 | M106: 1.0 | N106: 0.1 | O106: 0.0 | P106: 0.0 | Q106: 0.0 | R106: 0.6 | S106: 72.7 | T106: 39.0 | U106: 5.9 | V106: 5.0 | W106: 41.6 | X106: 0.5 | Y106: 15.1 | Z106: 8.0 | AA106: 31.6 | AB106: 0.2 | AC106: 0.0 | AD106: 0.0 | AE106: 2.1 | AF106: 4.4 | AG106: 0.2 | AH106: 0 | AI106: 279.23 | AJ106: 221.54 | AK106: 450.33 | AL106: 494.88 | AM106: 148.54 | AN106: 270.31 | AO106: 92.91 | AP106: 238.33 | AQ106: 363.26 | AR106: 386.11 | AS106: 511.79 | AT106: 154.08 | AU106: 431.68 | AV106: 844.9 | AW106: 46.89 | AX106: 286.05 | AY106: 274.2 | AZ106: 202.97 | BA106: 72.39 | BB106: 0.03 | BC106: 0.01 | BD106: 0.01 | BE106: 0.02 | BF106: 0.02 | BG106: 0.09 | BH106: 0 | BI106: 0.25 | BJ106: 0 | BK106: 0.08 | BL106: 0 | BM106: 0 | BN106: 0 | BO106: 0.02 | BP106: 0.03 | BQ106: 0.2 | BR106: 0 | BS106: 0 | BT106: 0.02 | BU106: 0 | BV106: 0 | BW106: 0 | BX106: 0 | BY106: 0 | BZ106: 50.54 | CC106: 16.4 | CE106: 18.41 | CF106: 9.17 | CG106: 13.79 | CH106: 1701.19 | CI106: 1051.77 | CJ106: 1376.48 | CK106: 19.31 | CL106: 12.75 | CM106: 16.05 | CN106: 0 | CO106: 0.25
B107: Итого за 'Обед' | C107: =SUM(C100:C106) -> 540 | D107: =SUM(D100:D106) -> 14.5 | E107: 17.3 | F107: 63.2 | G107: 454 | H107: 5.7 | I107: 3.2 | J107: 0.0 | K107: 0.0 | L107: 18.0 | M107: 38.2 | N107: 7.0 | O107: 0.0 | P107: 0.0 | Q107: 0.6 | R107: 4.4 | S107: 738.2 | T107: 597.5 | U107: 45.8 | V107: 92.5 | W107: 204.8 | X107: 4.7 | Y107: 27.1 | Z107: 614.0 | AA107: 169.4 | AB107: 3.1 | AC107: 0.3 | AD107: 0.2 | AE107: 4.0 | AF107: 8.2 | AG107: 5.9 | AH107: 0 | AI107: 623.14 | AJ107: 522.76 | AK107: 945.39 | AL107: 793.62 | AM107: 299.34 | AN107: 514.44 | AO107: 195.63 | AP107: 607.24 | AQ107: 709.32 | AR107: 935.5 | AS107: 1144.54 | AT107: 313.46 | AU107: 791.91 | AV107: 2470.58 | AW107: 46.89 | AX107: 721.6 | AY107: 620.62 | AZ107: 442.7 | BA107: 240.55 | BB107: 0.11 | BC107: 0.05 | BD107: 0.03 | BE107: 0.06 | BF107: 0.07 | BG107: 0.33 | BH107: 0 | BI107: 1.4 | BJ107: 0 | BK107: 0.48 | BL107: 0.02 | BM107: 0.03 | BN107: 0 | BO107: 0.06 | BP107: 0.11 | BQ107: 2.2 | BR107: 0.01 | BS107: 0 | BT107: 3.4 | BU107: 0.05 | BV107: 0 | BW107: 0 | BX107: 0 | BY107: 0 | BZ107: 527.49 | CB107: =$G$107/#REF!*100 ->  | CC107: 129.4 | CE107: 107.5 | CF107: 63.85 | CG107: 85.67 | CH107: 5780.02 | CI107: 2887.43 | CJ107: 4333.73 | CK107: 145.38 | CL107: 87.15 | CM107: 116.29 | CN107: 11.25 | CO107: 1.6
B108: Уплотненный полдник
A109: 14/12 | B109: Булочка дорожная | C109: 70 | D109: 5.4 | E109: 7.7 | F109: 38.7 | G109: 244 | H109: 5.4 | I109: 0.2 | J109: 0.0 | K109: 0.0 | L109: 9.1 | M109: 28.1 | N109: 1.5 | O109: 0.0 | P109: 0.0 | Q109: 0.0 | R109: 1.0 | S109: 176.8 | T109: 81.5 | U109: 33.8 | V109: 9.2 | W109: 55.1 | X109: 0.6 | Y109: 27.9 | Z109: 26.9 | AA109: 52.2 | AB109: 0.8 | AC109: 0.1 | AD109: 0.1 | AE109: 0.5 | AF109: 1.6 | AG109: 0.1 | AH109: 0 | AI109: 213.74 | AJ109: 194.06 | AK109: 363.13 | AL109: 122.37 | AM109: 70.5 | AN109: 143.31 | AO109: 48.51 | AP109: 223.28 | AQ109: 152.28 | AR109: 180.77 | AS109: 163.57 | AT109: 93.72 | AU109: 158.55 | AV109: 1353.11 | AW109: 2.3 | AX109: 425.26 | AY109: 224.98 | AZ109: 115.67 | BA109: 88.47 | BB109: 0.25 | BC109: 0.11 | BD109: 0.06 | BE109: 0.14 | BF109: 0.16 | BG109: 0.73 | BH109: 0 | BI109: 2.09 | BJ109: 0 | BK109: 0.63 | BL109: 0 | BM109: 0 | BN109: 0 | BO109: 0.14 | BP109: 0.22 | BQ109: 1.7 | BR109: 0 | BS109: 0 | BT109: 0.31 | BU109: 0.02 | BV109: 0 | BW109: 0 | BX109: 0 | BY109: 0 | BZ109: 28.57 | CC109: 32.38 | CE109: 20.02 | CF109: 9.8 | CG109: 14.91 | CH109: 1135.57 | CI109: 398.9 | CJ109: 767.24 | CK109: 10.2 | CL109: 4.99 | CM109: 8.05 | CN109: 4.2 | CO109: 0.42
A110: ="-" -> - | B110: Сок в ассортименте | C110: 150 | D110: 0.8 | E110: 0.2 | F110: 15.5 | G110: 65 | H110: 0.0 | I110: 0.0 | J110: 0.0 | K110: 0.0 | L110: 14.9 | M110: 0.3 | N110: 0.3 | O110: 0.0 | P110: 0.0 | Q110: 0.8 | R110: 0.5 | S110: 9.0 | T110: 180.0 | U110: 10.5 | V110: 6.0 | W110: 10.5 | X110: 2.1 | Y110: 0.0 | Z110: 0.0 | AA110: 0.0 | AB110: 0.2 | AC110: 0.0 | AD110: 0.0 | AE110: 0.2 | AF110: 0.3 | AG110: 3.0 | AH110: 0.3 | AI110: 12 | AJ110: 15 | AK110: 21 | AL110: 21 | AM110: 3 | AN110: 12 | AO110: 3 | AP110: 10.5 | AQ110: 19.5 | AR110: 12 | AS110: 87 | AT110: 7.5 | AU110: 16.5 | AV110: 48 | AW110: 0 | AX110: 15 | AY110: 18 | AZ110: 7.5 | BA110: 6 | BB110: 0 | BC110: 0 | BD110: 0 | BE110: 0 | BF110: 0 | BG110: 0 | BH110: 0 | BI110: 0 | BJ110: 0 | BK110: 0 | BL110: 0 | BM110: 0 | BN110: 0 | BO110: 0 | BP110: 0 | BQ110: 0 | BR110: 0 | BS110: 0 | BT110: 0 | BU110: 0 | BV110: 0 | BW110: 0 | BX110: 0 | BY110: 0 | BZ110: 132.15 | CC110: 0 | CE110: 3.6 | CF110: 3.6 | CG110: 3.6 | CH110: 360 | CI110: 163.8 | CJ110: 261.9 | CK110: 0.54 | CL110: 0.54 | CM110: 0.54 | CN110: 0 | CO110: 0
A111: ="2/6" -> 2/6 | B111: Омлет запеченный или паровой | C111: 120 | D111: 12.6 | E111: 17.1 | F111: 2.3 | G111: 213 | H111: 8.4 | I111: 0.2 | J111: 0.0 | K111: 0.0 | L111: 2.3 | M111: 0.0 | N111: 0.0 | O111: 0.0 | P111: 0.0 | Q111: 0.0 | R111: 2.0 | S111: 380.5 | T111: 167.3 | U111: 88.6 | V111: 14.5 | W111: 191.6 | X111: 2.2 | Y111: 173.1 | Z111: 73.7 | AA111: 304.0 | AB111: 0.7 | AC111: 0.1 | AD111: 0.4 | AE111: 0.2 | AF111: 3.8 | AG111: 0.2 | AH111: 0 | AI111: 700.73 | AJ111: 542.71 | AK111: 982.87 | AL111: 819.23 | AM111: 384.27 | AN111: 555.02 | AO111: 188.26 | AP111: 592.44 | AQ111: 644.2 | AR111: 712.71 | AS111: 1114.58 | AT111: 310.21 | AU111: 377.73 | AV111: 1613.73 | AW111: 12.63 | AX111: 362.01 | AY111: 842.67 | AZ111: 433.62 | BA111: 265.37 | BB111: 0.24 | BC111: 0.11 | BD111: 0.06 | BE111: 0.14 | BF111: 0.16 | BG111: 0.72 | BH111: 0 | BI111: 2.01 | BJ111: 0 | BK111: 0.62 | BL111: 0 | BM111: 0 | BN111: 0 | BO111: 0.14 | BP111: 0.21 | BQ111: 1.64 | BR111: 0 | BS111: 0 | BT111: 0.09 | BU111: 0.01 | BV111: 0 | BW111: 0 | BX111: 0 | BY111: 0 | BZ111: 105.76 | CC111: 185.38 | CE111: 48.94 | CF111: 30.96 | CG111: 39.95 | CH111: 209 | CI111: 77.6 | CJ111: 143.3 | CK111: 14.28 | CL111: 7.8 | CM111: 11.04 | CN111: 0 | CO111: 0.6
B112: Итого за 'Ужин' | C112: =SUM(C109:C111) -> 340 | D112: =SUM(D109:D111) -> 18.8 | E112: 25.0 | F112: 56.4 | G112: 522 | H112: 14 | I112: 0 | J112: 0 | K112: 0 | L112: 26 | M112: 28 | N112: 2 | O112: 0 | P112: 0 | Q112: 1 | R112: 3 | S112: 566 | T112: 429 | U112: 132.9 | V112: 29.7 | W112: 257.2 | X112: 4.8 | Y112: 201.0 | Z112: 100.6 | AA112: 356.1 | AB112: 1.6 | AC112: 0.1 | AD112: 0.5 | AE112: 0.8 | AF112: 5.7 | AG112: 3.3 | AH112: 0.3 | AI112: 959.29 | AJ112: 784.18 | AK112: 1422.57 | AL112: 1007.3 | AM112: 472.67 | AN112: 736.5 | AO112: 248.43 | AP112: 855.62 | AQ112: 815.98 | AR112: 905.48 | AS112: 1365.15 | AT112: 411.43 | AU112: 552.78 | AV112: 3014.84 | AW112: 14.94 | AX112: 802.27 | AY112: 1085.65 | AZ112: 593.83 | BA112: 365.08 | BB112: 0.49 | BC112: 0.23 | BD112: 0.12 | BE112: 0.28 | BF112: 0.32 | BG112: 1.45 | BH112: 0 | BI112: 4.1 | BJ112: 0 | BK112: 1.25 | BL112: 0 | BM112: 0 | BN112: 0 | BO112: 0.28 | BP112: 0.43 | BQ112: 3.34 | BR112: 0 | BS112: 0 | BT112: 0.41 | BU112: 0.03 | BV112: 0 | BW112: 0 | BX112: 0 | BY112: 0 | BZ112: 266.35 | CB112: =$G$112/#REF!*100 ->  | CC112: 217.76 | CE112: 72.55 | CF112: 44.36 | CG112: 58.46 | CH112: 1704.57 | CI112: 640.3 | CJ112: 1172.44 | CK112: 25.02 | CL112: 13.33 | CM112: 19.63 | CN112: 4.2 | CO112: 1.02
B113: Итого за день | C113: =C95+C98+C107+C112 -> 1315 | D113: =D95+D98+D107+D112 -> 48.9 | E113: 54.3 | F113: 175.1 | G113: 1368 | H113: 26 | I113: 4 | J113: 0 | K113: 0 | L113: 72 | M113: 93 | N113: 10 | O113: 0 | P113: 0 | Q113: 3 | R113: 11 | S113: 1680 | T113: 1431 | U113: 562.6 | V113: 181.8 | W113: 788.6 | X113: 10.6 | Y113: 288.5 | Z113: 755.1 | AA113: 603.4 | AB113: 4.8 | AC113: 0.6 | AD113: 1.0 | AE113: 5.5 | AF113: 18.2 | AG113: 10.6 | AH113: 0.3 | AI113: 2275.98 | AJ113: 1929.45 | AK113: 3609.93 | AL113: 2470.6 | AM113: 1051.98 | AN113: 1726.1 | AO113: 656.96 | AP113: 2077.08 | AQ113: 2121.58 | AR113: 2300.87 | AS113: 3259.2 | AT113: 1059.13 | AU113: 1633.99 | AV113: 8031.45 | AW113: 61.82 | AX113: 2708.2 | AY113: 2383.31 | AZ113: 1581.54 | BA113: 765.59 | BB113: 0.77 | BC113: 0.39 | BD113: 0.24 | BE113: 0.57 | BF113: 0.65 | BG113: 2.78 | BH113: 0.07 | BI113: 7.43 | BJ113: 0.03 | BK113: 2.4 | BL113: 0.08 | BM113: 0.03 | BN113: 0 | BO113: 0.47 | BP113: 0.75 | BQ113: 7.38 | BR113: 0.02 | BS113: 0 | BT113: 4.54 | BU113: 0.12 | BV113: 0.08 | BW113: 0 | BX113: 0 | BY113: 0 | BZ113: 1168.07 | CC113: 414.32 | CE113: 230.3 | CF113: 136.44 | CG113: 183.37 | CH113: 11470.26 | CI113: 5378.62 | CJ113: 8424.44 | CK113: 249.07 | CL113: 142.98 | CM113: 196.5 | CN113: 25.95 | CO113: 3
B115: 5 день
B116: Завтрак
A117: ="-" -> - | B117: Батон | C117: 30 | D117: 2.3 | E117: 1.5 | F117: 11.2 | G117: 66 | H117: 0.2 | I117: 0.0 | J117: 0.0 | K117: 0.0 | L117: 1.0 | M117: 9.2 | N117: 1.0 | O117: 0.0 | P117: 0.0 | Q117: 0.1 | R117: 0.5 | S117: 128.7 | T117: 39.3 | U117: 6.6 | V117: 9.9 | W117: 25.5 | X117: 0.6 | Y117: 0.0 | Z117: 0.0 | AA117: 0.0 | AB117: 0.5 | AC117: 0.1 | AD117: 0.0 | AE117: 0.5 | AF117: 0.9 | AG117: 0.0 | AH117: 0 | AI117: 111.6 | AJ117: 115.8 | AK117: 177.3 | AL117: 59.7 | AM117: 35.1 | AN117: 70.2 | AO117: 26.4 | AP117: 126 | AQ117: 78.3 | AR117: 108.9 | AS117: 90.3 | AT117: 48.3 | AU117: 84 | AV117: 697.5 | AW117: 0 | AX117: 227.1 | AY117: 99.3 | AZ117: 66.6 | BA117: 51.9 | BB117: 0 | BC117: 0 | BD117: 0 | BE117: 0 | BF117: 0 | BG117: 0.01 | BH117: 0 | BI117: 0.1 | BJ117: 0 | BK117: 0.05 | BL117: 0 | BM117: 0 | BN117: 0 | BO117: 0 | BP117: 0 | BQ117: 0.35 | BR117: 0 | BS117: 0 | BT117: 0.26 | BU117: 0.01 | BV117: 0 | BW117: 0 | BX117: 0 | BY117: 0 | BZ117: 10.23 | CC117: 0 | CE117: 0 | CF117: 0 | CG117: 0 | CH117: 570 | CI117: 219.6 | CJ117: 394.8 | CK117: 4.56 | CL117: 4.56 | CM117: 4.56 | CN117: 0 | CO117: 0
A118: ="-" -> - | B118: Масло сливочное | C118: 5 | D118: 0.0 | E118: 3.6 | F118: 0.1 | G118: 33 | H118: 2.4 | I118: 0.1 | J118: 0.0 | K118: 0.0 | L118: 0.1 | M118: 0.0 | N118: 0.0 | O118: 0.0 | P118: 0.0 | Q118: 0.0 | R118: 0.1 | S118: 0.8 | T118: 1.5 | U118: 1.2 | V118: 0.0 | W118: 1.5 | X118: 0.0 | Y118: 20.0 | Z118: 15.0 | AA118: 22.5 | AB118: 0.1 | AC118: 0.0 | AD118: 0.0 | AE118: 0.0 | AF118: 0.0 | AG118: 0.0 | AH118: 0 | AI118: 2.1 | AJ118: 2.05 | AK118: 3.8 | AL118: 2.25 | AM118: 0.85 | AN118: 2.35 | AO118: 2.15 | AP118: 2.1 | AQ118: 1.8 | AR118: 1.3 | AS118: 2.85 | AT118: 1.75 | AU118: 1.2 | AV118: 7.1 | AW118: 0 | AX118: 2.4 | AY118: 2.7 | AZ118: 2.1 | BA118: 0.5 | BB118: 0.13 | BC118: 0.06 | BD118: 0.03 | BE118: 0.08 | BF118: 0.09 | BG118: 0.4 | BH118: 0 | BI118: 1.1 | BJ118: 0 | BK118: 0.34 | BL118: 0 | BM118: 0 | BN118: 0 | BO118: 0.08 | BP118: 0.12 | BQ118: 0.9 | BR118: 0 | BS118: 0 | BT118: 0.05 | BU118: 0 | BV118: 0 | BW118: 0 | BX118: 0 | BY118: 0 | BZ118: 1.25 | CC118: 22.5 | CE118: 0.2 | CF118: 0.05 | CG118: 0.13 | CH118: 10 | CI118: 4.1 | CJ118: 7.05 | CK118: 0.86 | CL118: 0.44 | CM118: 0.65 | CN118: 0 | CO118: 0
A119: ="29/10" -> 29/10 | B119: Чай с лимоном | C119: 150 | D119: 0.2 | E119: 0.0 | F119: 7.4 | G119: 30 | H119: 0.0 | I119: 0.0 | J119: 0.0 | K119: 0.0 | L119: 7.3 | M119: 0.0 | N119: 0.2 | O119: 0.0 | P119: 0.0 | Q119: 0.2 | R119: 0.1 | S119: 0.5 | T119: 6.1 | U119: 1.6 | V119: 0.4 | W119: 0.8 | X119: 0.0 | Y119: 0.0 | Z119: 0.3 | AA119: 0.1 | AB119: 0.0 | AC119: 0.0 | AD119: 0.0 | AE119: 0.0 | AF119: 0.0 | AG119: 0.6 | AH119: 0 | AI119: 0.5 | AJ119: 0.57 | AK119: 0.47 | AL119: 0.86 | AM119: 0.22 | AN119: 0.9 | AO119: 0 | AP119: 1.15 | AQ119: 0 | AR119: 0 | AS119: 0 | AT119: 0.65 | AU119: 0 | AV119: 0 | AW119: 0 | AX119: 0 | AY119: 0 | AZ119: 0 | BA119: 0 | BB119: 0 | BC119: 0 | BD119: 0 | BE119: 0 | BF119: 0 | BG119: 0 | BH119: 0 | BI119: 0 | BJ119: 0 | BK119: 0 | BL119: 0 | BM119: 0 | BN119: 0 | BO119: 0 | BP119: 0 | BQ119: 0 | BR119: 0 | BS119: 0 | BT119: 0 | BU119: 0 | BV119: 0 | BW119: 0 | BX119: 0 | BY119: 0 | BZ119: 149.62 | CC119: 0.05 | CE119: 3.85 | CF119: 3.72 | CG119: 3.79 | CH119: 434.63 | CI119: 165.16 | CJ119: 299.9 | CK119: 39.92 | CL119: 23.87 | CM119: 31.9 | CN119: 7.32 | CO119: 0
A120: ="15/4" -> 15/4 | B120: Каша ячневая молочная с маслом сливочным | C120: 150 | D120: 4.5 | E120: 3.6 | F120: 25.3 | G120: 148 | H120: 2.6 | I120: 0.1 | J120: 0.0 | K120: 0.0 | L120: 5.7 | M120: 17.4 | N120: 2.2 | O120: 0.0 | P120: 0.0 | Q120: 0.1 | R120: 1.2 | S120: 180.1 | T120: 132.1 | U120: 86.4 | V120: 20.4 | W120: 137.5 | X120: 0.5 | Y120: 14.4 | Z120: 12.0 | AA120: 26.7 | AB120: 0.5 | AC120: 0.1 | AD120: 0.1 | AE120: 0.7 | AF120: 1.9 | AG120: 0.3 | AH120: 0 | AI120: 136.54 | AJ120: 132.29 | AK120: 145.96 | AL120: 99.97 | AM120: 45.6 | AN120: 71.83 | AO120: 35.05 | AP120: 147.82 | AQ120: 115.23 | AR120: 138.91 | AS120: 180.68 | AT120: 65.85 | AU120: 116.3 | AV120: 679.39 | AW120: 0 | AX120: 370.77 | AY120: 111.5 | AZ120: 85.78 | BA120: 56.68 | BB120: 0.07 | BC120: 0.03 | BD120: 0.02 | BE120: 0.04 | BF120: 0.05 | BG120: 0.21 | BH120: 0 | BI120: 0.58 | BJ120: 0 | BK120: 0.18 | BL120: 0 | BM120: 0 | BN120: 0 | BO120: 0.04 | BP120: 0.06 | BQ120: 0.48 | BR120: 0 | BS120: 0 | BT120: 0.03 | BU120: 0 | BV120: 0 | BW120: 0 | BX120: 0 | BY120: 0 | BZ120: 133.35 | CC120: 16.4 | CE120: 34.24 | CF120: 14.52 | CG120: 24.38 | CH120: 2147.67 | CI120: 982.95 | CJ120: 1565.31 | CK120: 45.21 | CL120: 23.88 | CM120: 34.54 | CN120: 3 | CO120: 0.38
B121: Итого за 'Завтрак' | C121: =SUM(C117:C120) -> 335 | D121: =SUM(D117:D120) -> 7.0 | E121: 8.8 | F121: 44.0 | G121: 277 | H121: 5.1 | I121: 0.2 | J121: 0.0 | K121: 0.0 | L121: 14.0 | M121: 26.7 | N121: 3.3 | O121: 0.0 | P121: 0.0 | Q121: 0.4 | R121: 1.8 | S121: 310.1 | T121: 179.0 | U121: 95.8 | V121: 30.8 | W121: 165.3 | X121: 1.2 | Y121: 34.4 | Z121: 27.3 | AA121: 49.3 | AB121: 1.1 | AC121: 0.1 | AD121: 0.1 | AE121: 1.2 | AF121: 2.8 | AG121: 0.9 | AH121: 0 | AI121: 250.75 | AJ121: 250.71 | AK121: 327.53 | AL121: 162.78 | AM121: 81.76 | AN121: 145.27 | AO121: 63.6 | AP121: 277.07 | AQ121: 195.33 | AR121: 249.11 | AS121: 273.83 | AT121: 116.54 | AU121: 201.5 | AV121: 1383.99 | AW121: 0 | AX121: 600.27 | AY121: 213.5 | AZ121: 154.48 | BA121: 109.08 | BB121: 0.21 | BC121: 0.09 | BD121: 0.05 | BE121: 0.12 | BF121: 0.13 | BG121: 0.61 | BH121: 0 | BI121: 1.79 | BJ121: 0 | BK121: 0.57 | BL121: 0 | BM121: 0 | BN121: 0 | BO121: 0.12 | BP121: 0.18 | BQ121: 1.73 | BR121: 0 | BS121: 0 | BT121: 0.34 | BU121: 0.01 | BV121: 0 | BW121: 0 | BX121: 0 | BY121: 0 | BZ121: 294.46 | CB121: =$G$121/#REF!*100 ->  | CC121: 38.95 | CE121: 38.29 | CF121: 18.29 | CG121: 28.29 | CH121: 3162.3 | CI121: 1371.81 | CJ121: 2267.05 | CK121: 90.55 | CL121: 52.74 | CM121: 71.64 | CN121: 10.32 | CO121: 0.38
B122: 10:00
A123: ="-" -> - | B123: Фрукты (банан) | C123: 100 | D123: 2.0 | E123: 1.0 | F123: 15.0 | G123: 100 | H123: 0.0 | I123: 0.0 | J123: 0.0 | K123: 0.0 | L123: 11.0 | M123: 2.0 | N123: 2.0 | O123: 0.0 | P123: 0.0 | Q123: 0.4 | R123: 0.9 | S123: 31.0 | T123: 348.0 | U123: 8.0 | V123: 42.0 | W123: 28.0 | X123: 0.6 | Y123: 0.0 | Z123: 120.0 | AA123: 20.0 | AB123: 0.4 | AC123: 0.0 | AD123: 0.1 | AE123: 0.6 | AF123: 0.9 | AG123: 10.0 | AH123: 0 | AI123: 0 | AJ123: 0 | AK123: 0 | AL123: 0 | AM123: 0 | AN123: 0 | AO123: 0 | AP123: 0 | AQ123: 0 | AR123: 0 | AS123: 0 | AT123: 0 | AU123: 0 | AV123: 0 | AW123: 0 | AX123: 0 | AY123: 0 | AZ123: 0 | BA123: 0 | BB123: 0 | BC123: 0 | BD123: 0 | BE123: 0 | BF123: 0 | BG123: 0 | BH123: 0 | BI123: 0 | BJ123: 0 | BK123: 0 | BL123: 0 | BM123: 0 | BN123: 0 | BO123: 0 | BP123: 0 | BQ123: 0 | BR123: 0 | BS123: 0 | BT123: 0 | BU123: 0 | BV123: 0 | BW123: 0 | BX123: 0 | BY123: 0 | BZ123: 74 | CC123: 20 | CE123: 4 | CF123: 1 | CG123: 2.5 | CH123: 200 | CI123: 82 | CJ123: 141 | CK123: 0 | CL123: 0 | CM123: 0 | CN123: 0 | CO123: 0
B124: Итого за '10:00' | C124: =SUM(C123) -> 100 | D124: =SUM(D123) -> 2.0 | E124: 1.0 | F124: 15.0 | G124: 100 | H124: 0.0 | I124: 0.0 | J124: 0.0 | K124: 0.0 | L124: 11.0 | M124: 2.0 | N124: 2.0 | O124: 0.0 | P124: 0.0 | Q124: 0.4 | R124: 0.9 | S124: 31.0 | T124: 348.0 | U124: 8.0 | V124: 42.0 | W124: 28.0 | X124: 0.6 | Y124: 0.0 | Z124: 120.0 | AA124: 20.0 | AB124: 0.4 | AC124: 0.0 | AD124: 0.1 | AE124: 0.6 | AF124: 0.9 | AG124: 10.0 | AH124: 0 | AI124: 0 | AJ124: 0 | AK124: 0 | AL124: 0 | AM124: 0 | AN124: 0 | AO124: 0 | AP124: 0 | AQ124: 0 | AR124: 0 | AS124: 0 | AT124: 0 | AU124: 0 | AV124: 0 | AW124: 0 | AX124: 0 | AY124: 0 | AZ124: 0 | BA124: 0 | BB124: 0 | BC124: 0 | BD124: 0 | BE124: 0 | BF124: 0 | BG124: 0 | BH124: 0 | BI124: 0 | BJ124: 0 | BK124: 0 | BL124: 0 | BM124: 0 | BN124: 0 | BO124: 0 | BP124: 0 | BQ124: 0 | BR124: 0 | BS124: 0 | BT124: 0 | BU124: 0 | BV124: 0 | BW124: 0 | BX124: 0 | BY124: 0 | BZ124: 74 | CB124: =$G$124/#REF!*100 ->  | CC124: 20 | CE124: 4 | CF124: 1 | CG124: 2.5 | CH124: 200 | CI124: 82 | CJ124: 141 | CK124: 0 | CL124: 0 | CM124: 0 | CN124: 0 | CO124: 0
B125: Обед
A126: ="-" -> - | B126: Хлеб пшеничный | C126: 20 | D126: 1.2 | E126: 0.1 | F126: 7.4 | G126: 36 | H126: 0.0 | I126: 0.0 | J126: 0.0 | K126: 0.0 | L126: 0.2 | M126: 7.1 | N126: 0.0 | O126: 0.0 | P126: 0.0 | Q126: 0.0 | R126: 0.4 | S126: 0.0 | T126: 0.0 | U126: 0.0 | V126: 0.0 | W126: 0.0 | X126: 0.0 | Y126: 0.0 | Z126: 0.0 | AA126: 0.0 | AB126: 0.0 | AC126: 0.0 | AD126: 0.0 | AE126: 0.0 | AF126: 0.0 | AG126: 0.0 | AH126: 0 | AI126: 63.86 | AJ126: 66.47 | AK126: 101.79 | AL126: 33.76 | AM126: 20.01 | AN126: 40.02 | AO126: 15.14 | AP126: 72.38 | AQ126: 44.89 | AR126: 62.64 | AS126: 51.68 | AT126: 27.14 | AU126: 48.02 | AV126: 401.59 | AW126: 0 | AX126: 130.85 | AY126: 56.9 | AZ126: 37.76 | BA126: 29.93 | BB126: 0 | BC126: 0 | BD126: 0 | BE126: 0 | BF126: 0 | BG126: 0 | BH126: 0 | BI126: 0.02 | BJ126: 0 | BK126: 0 | BL126: 0 | BM126: 0 | BN126: 0 | BO126: 0 | BP126: 0 | BQ126: 0.01 | BR126: 0 | BS126: 0 | BT126: 0.06 | BU126: 0 | BV126: 0 | BW126: 0 | BX126: 0 | BY126: 0 | BZ126: 7.82 | CC126: 0 | CE126: 0 | CF126: 0 | CG126: 0 | CH126: 380 | CI126: 146.4 | CJ126: 263.2 | CK126: 3.04 | CL126: 3.04 | CM126: 3.04 | CN126: 0 | CO126: 0
A127: ="-" -> - | B127: Хлеб ржаной | C127: 20 | D127: 1.2 | E127: 0.2 | F127: 8.3 | G127: 38 | H127: 0.0 | I127: 0.0 | J127: 0.0 | K127: 0.0 | L127: 0.2 | M127: 6.4 | N127: 1.7 | O127: 0.0 | P127: 0.0 | Q127: 0.2 | R127: 0.5 | S127: 122.0 | T127: 49.0 | U127: 7.0 | V127: 9.4 | W127: 31.6 | X127: 0.8 | Y127: 0.0 | Z127: 1.0 | AA127: 0.2 | AB127: 0.3 | AC127: 0.0 | AD127: 0.0 | AE127: 0.1 | AF127: 0.4 | AG127: 0.0 | AH127: 0 | AI127: 64.4 | AJ127: 49.6 | AK127: 85.4 | AL127: 44.6 | AM127: 18.6 | AN127: 39.6 | AO127: 16 | AP127: 74.2 | AQ127: 59.4 | AR127: 58.2 | AS127: 92.8 | AT127: 24.8 | AU127: 62 | AV127: 311.8 | AW127: 0 | AX127: 105.2 | AY127: 58.2 | AZ127: 36 | BA127: 26 | BB127: 0 | BC127: 0 | BD127: 0 | BE127: 0 | BF127: 0 | BG127: 0 | BH127: 0 | BI127: 0.03 | BJ127: 0 | BK127: 0 | BL127: 0 | BM127: 0 | BN127: 0 | BO127: 0 | BP127: 0 | BQ127: 0.02 | BR127: 0 | BS127: 0 | BT127: 0.1 | BU127: 0.02 | BV127: 0 | BW127: 0 | BX127: 0 | BY127: 0 | BZ127: 9.4 | CC127: 0.17 | CE127: 4 | CF127: 4 | CG127: 4 | CH127: 760 | CI127: 292.8 | CJ127: 526.4 | CK127: 7.6 | CL127: 6.32 | CM127: 6.96 | CN127: 0 | CO127: 0
A128: ="6/10" -> 6/10 | B128: Компот из сухофруктов | C128: 150 | D128: 0.8 | E128: 0.0 | F128: 17.4 | G128: 66 | H128: 0.0 | I128: 0.0 | J128: 0.0 | K128: 0.0 | L128: 14.4 | M128: 0.4 | N128: 2.6 | O128: 0.0 | P128: 0.0 | Q128: 0.2 | R128: 0.6 | S128: 2.6 | T128: 255.2 | U128: 23.5 | V128: 15.0 | W128: 20.4 | X128: 0.5 | Y128: 0.0 | Z128: 472.5 | AA128: 87.5 | AB128: 0.8 | AC128: 0.0 | AD128: 0.0 | AE128: 0.4 | AF128: 0.6 | AG128: 0.4 | AH128: 0 | AI128: 0.01 | AJ128: 0.01 | AK128: 0.01 | AL128: 0.01 | AM128: 0 | AN128: 0.01 | AO128: 0 | AP128: 0.01 | AQ128: 0.01 | AR128: 0.01 | AS128: 0.04 | AT128: 0 | AU128: 0.01 | AV128: 0.02 | AW128: 0 | AX128: 0.01 | AY128: 0.01 | AZ128: 0 | BA128: 0 | BB128: 0 | BC128: 0 | BD128: 0 | BE128: 0 | BF128: 0 | BG128: 0 | BH128: 0 | BI128: 0 | BJ128: 0 | BK128: 0 | BL128: 0 | BM128: 0 | BN128: 0 | BO128: 0 | BP128: 0 | BQ128: 0.01 | BR128: 0 | BS128: 0 | BT128: 0 | BU128: 0 | BV128: 0 | BW128: 0 | BX128: 0 | BY128: 0 | BZ128: 160.51 | CC128: 78.75 | CE128: 3.95 | CF128: 3.95 | CG128: 3.95 | CH128: 454.5 | CI128: 172.98 | CJ128: 313.74 | CK128: 41.94 | CL128: 24.93 | CM128: 33.44 | CN128: 7.5 | CO128: 0
A129: ="7/2" -> 7/2 | B129: Щи из свежей капусты и картофеля на говяжьем бульоне | C129: 150 | D129: 1.8 | E129: 4.9 | F129: 5.9 | G129: 73 | H129: 1.3 | I129: 1.0 | J129: 0.0 | K129: 0.0 | L129: 2.6 | M129: 2.1 | N129: 1.2 | O129: 0.0 | P129: 0.0 | Q129: 0.2 | R129: 1.5 | S129: 355.8 | T129: 195.9 | U129: 23.4 | V129: 11.6 | W129: 24.7 | X129: 0.4 | Y129: 0.0 | Z129: 728.4 | AA129: 151.6 | AB129: 0.8 | AC129: 0.0 | AD129: 0.1 | AE129: 0.4 | AF129: 0.7 | AG129: 8.3 | AH129: 0 | AI129: 27 | AJ129: 25.73 | AK129: 32.71 | AL129: 32.64 | AM129: 9.8 | AN129: 23.76 | AO129: 6.91 | AP129: 27.71 | AQ129: 36.59 | AR129: 55.42 | AS129: 80.02 | AT129: 12.84 | AU129: 24.4 | AV129: 144.53 | AW129: 0 | AX129: 27.14 | AY129: 26.93 | AZ129: 23.13 | BA129: 9.73 | BB129: 0 | BC129: 0 | BD129: 0 | BE129: 0 | BF129: 0 | BG129: 0 | BH129: 0 | BI129: 0.09 | BJ129: 0 | BK129: 0.06 | BL129: 0 | BM129: 0.01 | BN129: 0 | BO129: 0 | BP129: 0 | BQ129: 0.34 | BR129: 0 | BS129: 0 | BT129: 0.9 | BU129: 0 | BV129: 0 | BW129: 0 | BX129: 0 | BY129: 0 | BZ129: 177.14 | CC129: 121.4 | CE129: 51.31 | CF129: 26.95 | CG129: 39.13 | CH129: 876.52 | CI129: 309.49 | CJ129: 593.01 | CK129: 42.75 | CL129: 26.46 | CM129: 34.6 | CN129: 0 | CO129: 0.9
A130: ="17/4" -> 17/4 | B130: Каша молочная ассорти (рис, пшено) с маслом сливочным | C130: 120 | D130: 3.5 | E130: 3.7 | F130: 19.0 | G130: 122 | H130: 2.5 | I130: 0.1 | J130: 0.0 | K130: 0.0 | L130: 5.7 | M130: 12.7 | N130: 0.6 | O130: 0.0 | P130: 0.0 | Q130: 0.1 | R130: 1.0 | S130: 149.4 | T130: 108.6 | U130: 69.7 | V130: 19.7 | W130: 83.8 | X130: 0.4 | Y130: 14.5 | Z130: 13.9 | AA130: 27.3 | AB130: 0.1 | AC130: 0.1 | AD130: 0.1 | AE130: 0.3 | AF130: 1.3 | AG130: 0.3 | AH130: 0 | AI130: 87.08 | AJ130: 75.15 | AK130: 218.98 | AL130: 54.13 | AM130: 45.73 | AN130: 64.49 | AO130: 28.96 | AP130: 94.64 | AQ130: 149.21 | AR130: 89.42 | AS130: 116.95 | AT130: 43.23 | AU130: 59.9 | AV130: 343.42 | AW130: 0 | AX130: 116.07 | AY130: 104.45 | AZ130: 69.65 | BA130: 31.16 | BB130: 0.07 | BC130: 0.03 | BD130: 0.02 | BE130: 0.04 | BF130: 0.05 | BG130: 0.21 | BH130: 0 | BI130: 0.62 | BJ130: 0 | BK130: 0.19 | BL130: 0 | BM130: 0 | BN130: 0 | BO130: 0.04 | BP130: 0.06 | BQ130: 0.55 | BR130: 0 | BS130: 0 | BT130: 0.25 | BU130: 0 | BV130: 0 | BW130: 0 | BX130: 0 | BY130: 0 | BZ130: 100.08 | CC130: 16.86 | CE130: 24.06 | CF130: 11.09 | CG130: 17.57 | CH130: 1506.05 | CI130: 674.52 | CJ130: 1090.29 | CK130: 25.43 | CL130: 11.48 | CM130: 18.46 | CN130: 3 | CO130: 0.3
A131: ="7" -> 7 | B131: Биточки (котлеты) из мяса бройлер-цыплят | C131: 50 | D131: 7.6 | E131: 7.1 | F131: 6.6 | G131: 120 | H131: 2.0 | I131: 1.6 | J131: 0.0 | K131: 0.0 | L131: 0.3 | M131: 5.8 | N131: 0.5 | O131: 0.0 | P131: 0.0 | Q131: 0.1 | R131: 0.8 | S131: 127.4 | T131: 75.1 | U131: 8.3 | V131: 10.6 | W131: 67.2 | X131: 1.0 | Y131: 20.7 | Z131: 4.0 | AA131: 26.7 | AB131: 1.5 | AC131: 0.0 | AD131: 0.1 | AE131: 2.8 | AF131: 5.0 | AG131: 0.1 | AH131: 0 | AI131: 336.16 | AJ131: 272.62 | AK131: 540.78 | AL131: 570.47 | AM131: 174.3 | AN131: 318.01 | AO131: 109.6 | AP131: 293.13 | AQ131: 425.24 | AR131: 457.95 | AS131: 595.87 | AT131: 182.69 | AU131: 503.94 | AV131: 1082.63 | AW131: 53.08 | AX131: 365.42 | AY131: 326.79 | AZ131: 241.8 | BA131: 91.81 | BB131: 0 | BC131: 0 | BD131: 0 | BE131: 0 | BF131: 0 | BG131: 0 | BH131: 0 | BI131: 0.12 | BJ131: 0 | BK131: 0.08 | BL131: 0.01 | BM131: 0.01 | BN131: 0 | BO131: 0 | BP131: 0 | BQ131: 0.45 | BR131: 0 | BS131: 0 | BT131: 1.13 | BU131: 0 | BV131: 0 | BW131: 0 | BX131: 0 | BY131: 0 | BZ131: 38.84 | CC131: 21.38 | CE131: 17.73 | CF131: 8.4 | CG131: 13.06 | CH131: 1892.29 | CI131: 1155.41 | CJ131: 1523.85 | CK131: 12.53 | CL131: 9.63 | CM131: 11.08 | CN131: 0 | CO131: 0.25
B132: Итого за 'Обед' | C132: =SUM(C126:C131) -> 510 | D132: =SUM(D126:D131) -> 16.1 | E132: 16.1 | F132: 64.5 | G132: 455 | H132: 5.9 | I132: 2.7 | J132: 0.0 | K132: 0.0 | L132: 23.4 | M132: 34.6 | N132: 6.5 | O132: 0.0 | P132: 0.0 | Q132: 0.7 | R132: 4.7 | S132: 757.2 | T132: 683.8 | U132: 131.9 | V132: 66.2 | W132: 227.6 | X132: 3.1 | Y132: 35.3 | Z132: 1219.8 | AA132: 293.2 | AB132: 3.4 | AC132: 0.2 | AD132: 0.3 | AE132: 4.1 | AF132: 8.1 | AG132: 9.1 | AH132: 0 | AI132: 578.51 | AJ132: 489.58 | AK132: 979.67 | AL132: 735.61 | AM132: 268.44 | AN132: 485.89 | AO132: 176.61 | AP132: 562.07 | AQ132: 715.34 | AR132: 723.64 | AS132: 937.36 | AT132: 290.7 | AU132: 698.26 | AV132: 2284 | AW132: 53.08 | AX132: 744.69 | AY132: 573.28 | AZ132: 408.35 | BA132: 188.63 | BB132: 0.07 | BC132: 0.03 | BD132: 0.02 | BE132: 0.04 | BF132: 0.05 | BG132: 0.21 | BH132: 0 | BI132: 0.88 | BJ132: 0 | BK132: 0.33 | BL132: 0.02 | BM132: 0.02 | BN132: 0 | BO132: 0.04 | BP132: 0.07 | BQ132: 1.38 | BR132: 0 | BS132: 0 | BT132: 2.44 | BU132: 0.03 | BV132: 0 | BW132: 0 | BX132: 0 | BY132: 0 | BZ132: 493.79 | CB132: =$G$132/#REF!*100 ->  | CC132: 238.56 | CE132: 101.04 | CF132: 54.39 | CG132: 77.72 | CH132: 5869.36 | CI132: 2751.6 | CJ132: 4310.48 | CK132: 133.29 | CL132: 81.86 | CM132: 107.58 | CN132: 10.5 | CO132: 1.45
B133: Уплотненный полдник
A134: ="-" -> - | B134: Хлеб пшеничный | C134: 10 | D134: 0.7 | E134: 0.1 | F134: 4.7 | G134: 22 | H134: 0.0 | I134: 0.0 | J134: 0.0 | K134: 0.0 | L134: 0.1 | M134: 4.6 | N134: 0.0 | O134: 0.0 | P134: 0.0 | Q134: 0.0 | R134: 0.2 | S134: 0.0 | T134: 0.0 | U134: 0.0 | V134: 0.0 | W134: 0.0 | X134: 0.0 | Y134: 0.0 | Z134: 0.0 | AA134: 0.0 | AB134: 0.0 | AC134: 0.0 | AD134: 0.0 | AE134: 0.0 | AF134: 0.0 | AG134: 0.0 | AH134: 0 | AI134: 31.93 | AJ134: 33.23 | AK134: 50.9 | AL134: 16.88 | AM134: 10.01 | AN134: 20.01 | AO134: 7.57 | AP134: 36.19 | AQ134: 22.45 | AR134: 31.32 | AS134: 25.84 | AT134: 13.57 | AU134: 24.01 | AV134: 200.8 | AW134: 0 | AX134: 65.42 | AY134: 28.45 | AZ134: 18.88 | BA134: 14.96 | BB134: 0 | BC134: 0 | BD134: 0 | BE134: 0 | BF134: 0 | BG134: 0 | BH134: 0 | BI134: 0.01 | BJ134: 0 | BK134: 0 | BL134: 0 | BM134: 0 | BN134: 0 | BO134: 0 | BP134: 0 | BQ134: 0.01 | BR134: 0 | BS134: 0 | BT134: 0.03 | BU134: 0 | BV134: 0 | BW134: 0 | BX134: 0 | BY134: 0 | BZ134: 3.91 | CC134: 0 | CE134: 0 | CF134: 0 | CG134: 0 | CH134: 760 | CI134: 292.8 | CJ134: 526.4 | CK134: 6.08 | CL134: 6.08 | CM134: 6.08 | CN134: 0 | CO134: 0
A135: ="-" -> - | B135: Хлеб ржаной | C135: 10 | D135: 0.6 | E135: 0.1 | F135: 4.2 | G135: 19 | H135: 0.0 | I135: 0.0 | J135: 0.0 | K135: 0.0 | L135: 0.1 | M135: 3.2 | N135: 0.8 | O135: 0.0 | P135: 0.0 | Q135: 0.1 | R135: 0.3 | S135: 61.0 | T135: 24.5 | U135: 3.5 | V135: 4.7 | W135: 15.8 | X135: 0.4 | Y135: 0.0 | Z135: 0.5 | AA135: 0.1 | AB135: 0.1 | AC135: 0.0 | AD135: 0.0 | AE135: 0.1 | AF135: 0.2 | AG135: 0.0 | AH135: 0 | AI135: 32.2 | AJ135: 24.8 | AK135: 42.7 | AL135: 22.3 | AM135: 9.3 | AN135: 19.8 | AO135: 8 | AP135: 37.1 | AQ135: 29.7 | AR135: 29.1 | AS135: 46.4 | AT135: 12.4 | AU135: 31 | AV135: 155.9 | AW135: 0 | AX135: 52.6 | AY135: 29.1 | AZ135: 18 | BA135: 13 | BB135: 0 | BC135: 0 | BD135: 0 | BE135: 0 | BF135: 0 | BG135: 0 | BH135: 0 | BI135: 0.01 | BJ135: 0 | BK135: 0 | BL135: 0 | BM135: 0 | BN135: 0 | BO135: 0 | BP135: 0 | BQ135: 0.01 | BR135: 0 | BS135: 0 | BT135: 0.05 | BU135: 0.01 | BV135: 0 | BW135: 0 | BX135: 0 | BY135: 0 | BZ135: 4.7 | CC135: 0.08 | CE135: 2 | CF135: 2 | CG135: 2 | CH135: 380 | CI135: 146.4 | CJ135: 263.2 | CK135: 3.8 | CL135: 3.16 | CM135: 3.48 | CN135: 0 | CO135: 0
A136: ="27/10" -> 27/10 | B136: Чай полусладкий | C136: 150 | D136: 0.2 | E136: 0.0 | F136: 3.8 | G136: 15 | H136: 0.0 | I136: 0.0 | J136: 0.0 | K136: 0.0 | L136: 3.7 | M136: 0.0 | N136: 0.1 | O136: 0.0 | P136: 0.0 | Q136: 0.0 | R136: 0.1 | S136: 0.0 | T136: 0.1 | U136: 0.1 | V136: 0.0 | W136: 0.0 | X136: 0.0 | Y136: 0.0 | Z136: 0.0 | AA136: 0.0 | AB136: 0.0 | AC136: 0.0 | AD136: 0.0 | AE136: 0.0 | AF136: 0.0 | AG136: 0.0 | AH136: 0 | AI136: 0 | AJ136: 0 | AK136: 0 | AL136: 0 | AM136: 0 | AN136: 0 | AO136: 0 | AP136: 0 | AQ136: 0 | AR136: 0 | AS136: 0 | AT136: 0 | AU136: 0 | AV136: 0 | AW136: 0 | AX136: 0 | AY136: 0 | AZ136: 0 | BA136: 0 | BB136: 0 | BC136: 0 | BD136: 0 | BE136: 0 | BF136: 0 | BG136: 0 | BH136: 0 | BI136: 0 | BJ136: 0 | BK136: 0 | BL136: 0 | BM136: 0 | BN136: 0 | BO136: 0 | BP136: 0 | BQ136: 0 | BR136: 0 | BS136: 0 | BT136: 0 | BU136: 0 | BV136: 0 | BW136: 0 | BX136: 0 | BY136: 0 | BZ136: 150.07 | CC136: 0 | CE136: 3.69 | CF136: 3.69 | CG136: 3.69 | CH136: 398.25 | CI136: 156.6 | CJ136: 277.43 | CK136: 39.61 | CL136: 23.41 | CM136: 31.51 | CN136: 3.75 | CO136: 0
A137: ="24/2" -> 24/2 | B137: Суп молочный с вермишелью | C137: 150 | D137: 4.4 | E137: 3.9 | F137: 14.1 | G137: 108 | H137: 2.6 | I137: 0.0 | J137: 0.0 | K137: 0.0 | L137: 6.0 | M137: 7.7 | N137: 0.4 | O137: 0.0 | P137: 0.0 | Q137: 0.1 | R137: 1.1 | S137: 167.4 | T137: 166.7 | U137: 125.7 | V137: 15.9 | W137: 98.1 | X137: 0.3 | Y137: 29.9 | Z137: 14.6 | AA137: 32.9 | AB137: 0.2 | AC137: 0.1 | AD137: 0.2 | AE137: 0.2 | AF137: 1.2 | AG137: 0.6 | AH137: 0 | AI137: 56.36 | AJ137: 51.52 | AK137: 96.53 | AL137: 30.16 | AM137: 18.39 | AN137: 37.37 | AO137: 12.27 | AP137: 59.89 | AQ137: 39.6 | AR137: 47.75 | AS137: 40.98 | AT137: 24.08 | AU137: 41.85 | AV137: 367.51 | AW137: 0 | AX137: 115.81 | AY137: 60.01 | AZ137: 30.14 | BA137: 23.84 | BB137: 0.05 | BC137: 0.01 | BD137: 0.01 | BE137: 0.03 | BF137: 0.04 | BG137: 0.12 | BH137: 0 | BI137: 0.38 | BJ137: 0 | BK137: 0.11 | BL137: 0 | BM137: 0 | BN137: 0 | BO137: 0.01 | BP137: 0.04 | BQ137: 0.34 | BR137: 0 | BS137: 0 | BT137: 0.06 | BU137: 0 | BV137: 0 | BW137: 0 | BX137: 0 | BY137: 0 | BZ137: 125.55 | CC137: 32.28 | CE137: 21.65 | CF137: 8.3 | CG137: 14.97 | CH137: 697.36 | CI137: 308.26 | CJ137: 502.81 | CK137: 13.72 | CL137: 3.22 | CM137: 8.47 | CN137: 0.9 | CO137: 0.3
B138: Итого за 'Ужин' | C138: =SUM(C134:C137) -> 320 | D138: =SUM(D134:D137) -> 5.8 | E138: 4.2 | F138: 26.7 | G138: 165 | H138: 2.6 | I138: 0.0 | J138: 0.0 | K138: 0.0 | L138: 9.9 | M138: 15.5 | N138: 1.4 | O138: 0.0 | P138: 0.0 | Q138: 0.2 | R138: 1.6 | S138: 228.5 | T138: 191.3 | U138: 129.3 | V138: 20.6 | W138: 113.9 | X138: 0.7 | Y138: 29.9 | Z138: 15.1 | AA138: 33.0 | AB138: 0.3 | AC138: 0.1 | AD138: 0.2 | AE138: 0.3 | AF138: 1.4 | AG138: 0.6 | AH138: 0 | AI138: 120.49 | AJ138: 109.56 | AK138: 190.13 | AL138: 69.34 | AM138: 37.69 | AN138: 77.18 | AO138: 27.84 | AP138: 133.18 | AQ138: 91.75 | AR138: 108.17 | AS138: 113.22 | AT138: 50.05 | AU138: 96.86 | AV138: 724.21 | AW138: 0 | AX138: 233.83 | AY138: 117.55 | AZ138: 67.01 | BA138: 51.81 | BB138: 0.05 | BC138: 0.01 | BD138: 0.01 | BE138: 0.03 | BF138: 0.04 | BG138: 0.12 | BH138: 0 | BI138: 0.4 | BJ138: 0 | BK138: 0.11 | BL138: 0 | BM138: 0 | BN138: 0 | BO138: 0.01 | BP138: 0.04 | BQ138: 0.35 | BR138: 0 | BS138: 0 | BT138: 0.14 | BU138: 0.01 | BV138: 0 | BW138: 0 | BX138: 0 | BY138: 0 | BZ138: 284.23 | CB138: =$G$138/#REF!*100 ->  | CC138: 32.36 | CE138: 27.33 | CF138: 13.98 | CG138: 20.66 | CH138: 2235.61 | CI138: 904.06 | CJ138: 1569.83 | CK138: 63.21 | CL138: 35.87 | CM138: 49.54 | CN138: 4.65 | CO138: 0.3
B139: Итого за день | C139: =C121+C124+C132+C138 -> 1265 | D139: =D121+D124+D132+D138 -> 30.8 | E139: 30.0 | F139: 150.3 | G139: 997 | H139: 13.6 | I139: 2.9 | J139: 0.0 | K139: 0.0 | L139: 58.3 | M139: 78.8 | N139: 13.2 | O139: 0.0 | P139: 0.0 | Q139: 1.7 | R139: 9.0 | S139: 1326.8 | T139: 1402.1 | U139: 365.0 | V139: 159.5 | W139: 534.8 | X139: 5.6 | Y139: 99.5 | Z139: 1382.2 | AA139: 395.5 | AB139: 5.2 | AC139: 0.5 | AD139: 0.6 | AE139: 6.2 | AF139: 13.2 | AG139: 20.6 | AH139: 0 | AI139: 949.74 | AJ139: 849.85 | AK139: 1497.33 | AL139: 967.73 | AM139: 387.9 | AN139: 708.34 | AO139: 268.06 | AP139: 972.32 | AQ139: 1002.41 | AR139: 1080.92 | AS139: 1324.41 | AT139: 457.3 | AU139: 996.62 | AV139: 4392.2 | AW139: 53.08 | AX139: 1578.8 | AY139: 904.34 | AZ139: 629.84 | BA139: 349.52 | BB139: 0.33 | BC139: 0.14 | BD139: 0.08 | BE139: 0.18 | BF139: 0.22 | BG139: 0.94 | BH139: 0 | BI139: 3.07 | BJ139: 0 | BK139: 1.01 | BL139: 0.02 | BM139: 0.02 | BN139: 0 | BO139: 0.17 | BP139: 0.29 | BQ139: 3.46 | BR139: 0 | BS139: 0 | BT139: 2.91 | BU139: 0.05 | BV139: 0 | BW139: 0 | BX139: 0 | BY139: 0 | BZ139: 1146.48 | CC139: 329.88 | CE139: 170.67 | CF139: 87.66 | CG139: 129.16 | CH139: 11467.27 | CI139: 5109.47 | CJ139: 8288.37 | CK139: 287.05 | CL139: 170.48 | CM139: 228.76 | CN139: 25.47 | CO139: 2.13
B141: 6 день
B142: Завтрак
A143: ="-" -> - | B143: Хлеб пшеничный | C143: 25 | D143: 1.5 | E143: 0.2 | F143: 9.2 | G143: 45 | H143: 0.0 | I143: 0.0 | J143: 0.0 | K143: 0.0 | L143: 0.3 | M143: 8.9 | N143: 0.1 | O143: 0.0 | P143: 0.0 | Q143: 0.0 | R143: 0.5 | S143: 0.0 | T143: 0.0 | U143: 0.0 | V143: 0.0 | W143: 0.0 | X143: 0.0 | Y143: 0.0 | Z143: 0.0 | AA143: 0.0 | AB143: 0.0 | AC143: 0.0 | AD143: 0.0 | AE143: 0.0 | AF143: 0.0 | AG143: 0.0 | AH143: 0 | AI143: 79.82 | AJ143: 83.09 | AK143: 127.24 | AL143: 42.2 | AM143: 25.01 | AN143: 50.03 | AO143: 18.92 | AP143: 90.48 | AQ143: 56.12 | AR143: 78.3 | AS143: 64.6 | AT143: 33.93 | AU143: 60.03 | AV143: 501.99 | AW143: 0 | AX143: 163.56 | AY143: 71.12 | AZ143: 47.2 | BA143: 37.41 | BB143: 0 | BC143: 0 | BD143: 0 | BE143: 0 | BF143: 0 | BG143: 0 | BH143: 0 | BI143: 0.02 | BJ143: 0 | BK143: 0 | BL143: 0 | BM143: 0 | BN143: 0 | BO143: 0 | BP143: 0 | BQ143: 0.02 | BR143: 0 | BS143: 0 | BT143: 0.07 | BU143: 0 | BV143: 0 | BW143: 0 | BX143: 0 | BY143: 0 | BZ143: 9.78 | CC143: 0 | CE143: 0 | CF143: 0 | CG143: 0 | CH143: 570 | CI143: 219.6 | CJ143: 394.8 | CK143: 4.56 | CL143: 4.56 | CM143: 4.56 | CN143: 0 | CO143: 0
A144: ="1/6" -> 1/6 | B144: Яйцо отварное | C144: 60 | D144: 7.6 | E144: 6.9 | F144: 0.4 | G144: 94 | H144: 1.8 | I144: 0.0 | J144: 0.0 | K144: 0.0 | L144: 0.4 | M144: 0.0 | N144: 0.0 | O144: 0.0 | P144: 0.0 | Q144: 0.0 | R144: 0.6 | S144: 80.4 | T144: 84.0 | U144: 33.0 | V144: 7.2 | W144: 115.2 | X144: 1.5 | Y144: 150.0 | Z144: 36.0 | AA144: 156.0 | AB144: 0.4 | AC144: 0.0 | AD144: 0.3 | AE144: 0.1 | AF144: 2.2 | AG144: 0.0 | AH144: 0 | AI144: 463.2 | AJ144: 358.2 | AK144: 648.6 | AL144: 541.8 | AM144: 254.4 | AN144: 366 | AO144: 122.4 | AP144: 391.2 | AQ144: 426 | AR144: 472.2 | AS144: 737.4 | AT144: 204 | AU144: 249.6 | AV144: 1063.8 | AW144: 8.4 | AX144: 237.6 | AY144: 556.8 | AZ144: 285.6 | BA144: 175.8 | BB144: 0 | BC144: 0 | BD144: 0 | BE144: 0 | BF144: 0 | BG144: 0 | BH144: 0 | BI144: 0 | BJ144: 0 | BK144: 0 | BL144: 0 | BM144: 0 | BN144: 0 | BO144: 0 | BP144: 0 | BQ144: 0 | BR144: 0 | BS144: 0 | BT144: 0 | BU144: 0 | BV144: 0 | BW144: 0 | BX144: 0 | BY144: 0 | BZ144: 44.46 | CC144: 156 | CE144: 13.56 | CF144: 11.4 | CG144: 12.48 | CH144: 0 | CI144: 0 | CJ144: 0 | CK144: 6 | CL144: 4.2 | CM144: 5.1 | CN144: 0 | CO144: 0
A145: ="31/10" -> 31/10 | B145: Чай с молоком (вариант 3) | C145: 150 | D145: 1.2 | E145: 1.0 | F145: 5.5 | G145: 34 | H145: 0.6 | I145: 0.0 | J145: 0.0 | K145: 0.0 | L145: 5.5 | M145: 0.0 | N145: 0.1 | O145: 0.0 | P145: 0.0 | Q145: 0.0 | R145: 0.3 | S145: 18.6 | T145: 54.3 | U145: 43.8 | V145: 5.0 | W145: 31.4 | X145: 0.1 | Y145: 7.5 | Z145: 3.4 | AA145: 8.3 | AB145: 0.0 | AC145: 0.0 | AD145: 0.1 | AE145: 0.0 | AF145: 0.3 | AG145: 0.2 | AH145: 0 | AI145: 0 | AJ145: 0 | AK145: 0 | AL145: 0 | AM145: 0 | AN145: 0 | AO145: 0 | AP145: 0 | AQ145: 0 | AR145: 0 | AS145: 0 | AT145: 0 | AU145: 0 | AV145: 0 | AW145: 0 | AX145: 0 | AY145: 0 | AZ145: 0 | BA145: 0 | BB145: 0 | BC145: 0 | BD145: 0 | BE145: 0 | BF145: 0 | BG145: 0 | BH145: 0 | BI145: 0 | BJ145: 0 | BK145: 0 | BL145: 0 | BM145: 0 | BN145: 0 | BO145: 0 | BP145: 0 | BQ145: 0 | BR145: 0 | BS145: 0 | BT145: 0 | BU145: 0 | BV145: 0 | BW145: 0 | BX145: 0 | BY145: 0 | BZ145: 145.94 | CC145: 8.06 | CE145: 6.84 | CF145: 3.69 | CG145: 5.26 | CH145: 567 | CI145: 214.2 | CJ145: 390.6 | CK145: 35.65 | CL145: 19 | CM145: 27.32 | CN145: 3.75 | CO145: 0
A146: ="6/4" -> 6/4 | B146: Каша овсяная молочная с маслом сливочным | C146: 150 | D146: 5.8 | E146: 6.3 | F146: 25.7 | G146: 180 | H146: 3.5 | I146: 0.1 | J146: 0.0 | K146: 0.0 | L146: 6.9 | M146: 17.1 | N146: 1.7 | O146: 0.0 | P146: 0.0 | Q146: 0.1 | R146: 1.5 | S146: 187.4 | T146: 207.7 | U146: 104.7 | V146: 46.8 | W146: 155.6 | X146: 1.2 | Y146: 30.0 | Z146: 16.9 | AA146: 33.4 | AB146: 0.5 | AC146: 0.1 | AD146: 0.1 | AE146: 0.3 | AF146: 2.0 | AG146: 0.4 | AH146: 0 | AI146: 166.18 | AJ146: 118.52 | AK146: 189.48 | AL146: 125.13 | AM146: 36.49 | AN146: 113.45 | AO146: 58.91 | AP146: 159.42 | AQ146: 144.21 | AR146: 217.34 | AS146: 271.4 | AT146: 73.02 | AU146: 300.47 | AV146: 577.93 | AW146: 0 | AX146: 190.22 | AY146: 153.1 | AZ146: 131.79 | BA146: 83.28 | BB146: 0.1 | BC146: 0.05 | BD146: 0.02 | BE146: 0.06 | BF146: 0.06 | BG146: 0.3 | BH146: 0 | BI146: 1.2 | BJ146: 0 | BK146: 0.27 | BL146: 0 | BM146: 0 | BN146: 0 | BO146: 0.06 | BP146: 0.09 | BQ146: 1.29 | BR146: 0 | BS146: 0 | BT146: 0.7 | BU146: 0.02 | BV146: 0 | BW146: 0 | BX146: 0 | BY146: 0 | BZ146: 122.29 | CC146: 32.81 | CE146: 31.89 | CF146: 12.86 | CG146: 22.37 | CH146: 1980.6 | CI146: 899.57 | CJ146: 1440.09 | CK146: 32.08 | CL146: 15.9 | CM146: 23.99 | CN146: 3 | CO146: 0.38
B147: Итого за 'Завтрак' | C147: =SUM(C143:C146) -> 385 | D147: =SUM(D143:D146) -> 16.1 | E147: 14.3 | F147: 40.9 | G147: 354 | H147: 5.9 | I147: 0.1 | J147: 0.0 | K147: 0.0 | L147: 13.0 | M147: 26.0 | N147: 1.8 | O147: 0.0 | P147: 0.0 | Q147: 0.1 | R147: 2.8 | S147: 286.4 | T147: 346.0 | U147: 181.5 | V147: 59.0 | W147: 302.2 | X147: 2.7 | Y147: 187.5 | Z147: 56.3 | AA147: 197.6 | AB147: 0.9 | AC147: 0.2 | AD147: 0.4 | AE147: 0.5 | AF147: 4.5 | AG147: 0.6 | AH147: 0 | AI147: 709.21 | AJ147: 559.8 | AK147: 965.32 | AL147: 709.13 | AM147: 315.91 | AN147: 529.47 | AO147: 200.23 | AP147: 641.1 | AQ147: 626.32 | AR147: 767.84 | AS147: 1073.4 | AT147: 310.95 | AU147: 610.1 | AV147: 2143.72 | AW147: 8.4 | AX147: 591.38 | AY147: 781.02 | AZ147: 464.58 | BA147: 296.49 | BB147: 0.1 | BC147: 0.05 | BD147: 0.02 | BE147: 0.06 | BF147: 0.06 | BG147: 0.3 | BH147: 0 | BI147: 1.22 | BJ147: 0 | BK147: 0.27 | BL147: 0 | BM147: 0 | BN147: 0 | BO147: 0.06 | BP147: 0.09 | BQ147: 1.31 | BR147: 0 | BS147: 0 | BT147: 0.77 | BU147: 0.02 | BV147: 0 | BW147: 0 | BX147: 0 | BY147: 0 | BZ147: 322.47 | CB147: =$G$147/#REF!*100 ->  | CC147: 196.88 | CE147: 52.29 | CF147: 27.94 | CG147: 40.12 | CH147: 3117.6 | CI147: 1333.37 | CJ147: 2225.49 | CK147: 78.29 | CL147: 43.66 | CM147: 60.98 | CN147: 6.75 | CO147: 0.38
B148: 10:00
A149: ="1" -> 1 | B149: Кисель из концентрата | C149: 100 | D149: 0.5 | E149: 0.1 | F149: 7.1 | G149: 32 | H149: 0.0 | I149: 0.0 | J149: 0.0 | K149: 0.0 | L149: 0.0 | M149: 7.1 | N149: 0.0 | O149: 0.0 | P149: 0.0 | Q149: 0.0 | R149: 0.0 | S149: 0.0 | T149: 0.0 | U149: 0.0 | V149: 0.0 | W149: 0.0 | X149: 0.0 | Y149: 0.0 | Z149: 0.0 | AA149: 0.0 | AB149: 0.0 | AC149: 0.0 | AD149: 0.0 | AE149: 0.0 | AF149: 0.0 | AG149: 0.0 | AH149: 0 | AI149: 0 | AJ149: 0 | AK149: 0 | AL149: 0 | AM149: 0 | AN149: 0 | AO149: 0 | AP149: 0 | AQ149: 0 | AR149: 0 | AS149: 0 | AT149: 0 | AU149: 0 | AV149: 0 | AW149: 0 | AX149: 0 | AY149: 0 | AZ149: 0 | BA149: 0 | BB149: 0 | BC149: 0 | BD149: 0 | BE149: 0 | BF149: 0 | BG149: 0 | BH149: 0 | BI149: 0 | BJ149: 0 | BK149: 0 | BL149: 0 | BM149: 0 | BN149: 0 | BO149: 0 | BP149: 0 | BQ149: 0 | BR149: 0 | BS149: 0 | BT149: 0 | BU149: 0 | BV149: 0 | BW149: 0 | BX149: 0 | BY149: 0 | BZ149: 95.11 | CC149: 0 | CE149: 0 | CF149: 0 | CG149: 0 | CH149: 0 | CI149: 0 | CJ149: 0 | CK149: 0 | CL149: 0 | CM149: 0 | CN149: 0 | CO149: 0
A150: ="-" -> - | B150: Печенье | C150: 20 | D150: 0.4 | E150: 2.6 | F150: 11.5 | G150: 70 | H150: 0.4 | I150: 0.0 | J150: 0.0 | K150: 0.0 | L150: 5.0 | M150: 6.0 | N150: 0.5 | O150: 0.0 | P150: 0.0 | Q150: 0.1 | R150: 0.2 | S150: 66.0 | T150: 22.0 | U150: 5.8 | V150: 4.0 | W150: 18.0 | X150: 0.4 | Y150: 2.0 | Z150: 1.6 | AA150: 2.2 | AB150: 0.7 | AC150: 0.0 | AD150: 0.0 | AE150: 0.1 | AF150: 0.4 | AG150: 0.0 | AH150: 0 | AI150: 0 | AJ150: 0 | AK150: 0 | AL150: 0 | AM150: 0 | AN150: 0 | AO150: 0 | AP150: 0 | AQ150: 0 | AR150: 0 | AS150: 0 | AT150: 0 | AU150: 0 | AV150: 0 | AW150: 0 | AX150: 0 | AY150: 0 | AZ150: 0 | BA150: 0 | BB150: 0 | BC150: 0 | BD150: 0 | BE150: 0 | BF150: 0 | BG150: 0 | BH150: 0 | BI150: 0 | BJ150: 0 | BK150: 0 | BL150: 0 | BM150: 0 | BN150: 0 | BO150: 0 | BP150: 0 | BQ150: 0 | BR150: 0 | BS150: 0 | BT150: 0 | BU150: 0 | BV150: 0 | BW150: 0 | BX150: 0 | BY150: 0 | BZ150: 0.9 | CC150: 2.27 | CE150: 0 | CF150: 0 | CG150: 0 | CH150: 0 | CI150: 0 | CJ150: 0 | CK150: 0 | CL150: 0 | CM150: 0 | CN150: 0 | CO150: 0
B151: Итого за '10:00' | C151: =SUM(C149:C150) -> 120 | D151: =SUM(D149:D150) -> 0.9 | E151: 2.7 | F151: 18.5 | G151: 102 | H151: 0.4 | I151: 0.0 | J151: 0.0 | K151: 0.0 | L151: 5.0 | M151: 13.1 | N151: 0.5 | O151: 0.0 | P151: 0.0 | Q151: 0.1 | R151: 0.2 | S151: 66.0 | T151: 22.0 | U151: 5.8 | V151: 4.0 | W151: 18.0 | X151: 0.4 | Y151: 2.0 | Z151: 1.6 | AA151: 2.2 | AB151: 0.7 | AC151: 0.0 | AD151: 0.0 | AE151: 0.1 | AF151: 0.4 | AG151: 0.0 | AH151: 0 | AI151: 0 | AJ151: 0 | AK151: 0 | AL151: 0 | AM151: 0 | AN151: 0 | AO151: 0 | AP151: 0 | AQ151: 0 | AR151: 0 | AS151: 0 | AT151: 0 | AU151: 0 | AV151: 0 | AW151: 0 | AX151: 0 | AY151: 0 | AZ151: 0 | BA151: 0 | BB151: 0 | BC151: 0 | BD151: 0 | BE151: 0 | BF151: 0 | BG151: 0 | BH151: 0 | BI151: 0 | BJ151: 0 | BK151: 0 | BL151: 0 | BM151: 0 | BN151: 0 | BO151: 0 | BP151: 0 | BQ151: 0 | BR151: 0 | BS151: 0 | BT151: 0 | BU151: 0 | BV151: 0 | BW151: 0 | BX151: 0 | BY151: 0 | BZ151: 96.01 | CB151: =$G$151/#REF!*100 ->  | CC151: 2.27 | CE151: 0 | CF151: 0 | CG151: 0 | CH151: 0 | CI151: 0 | CJ151: 0 | CK151: 0 | CL151: 0 | CM151: 0 | CN151: 0 | CO151: 0
B152: Обед
A153: ="-" -> - | B153: Хлеб пшеничный | C153: 20 | D153: 1.2 | E153: 0.1 | F153: 7.4 | G153: 36 | H153: 0.0 | I153: 0.0 | J153: 0.0 | K153: 0.0 | L153: 0.2 | M153: 7.1 | N153: 0.0 | O153: 0.0 | P153: 0.0 | Q153: 0.0 | R153: 0.4 | S153: 0.0 | T153: 0.0 | U153: 0.0 | V153: 0.0 | W153: 0.0 | X153: 0.0 | Y153: 0.0 | Z153: 0.0 | AA153: 0.0 | AB153: 0.0 | AC153: 0.0 | AD153: 0.0 | AE153: 0.0 | AF153: 0.0 | AG153: 0.0 | AH153: 0 | AI153: 63.86 | AJ153: 66.47 | AK153: 101.79 | AL153: 33.76 | AM153: 20.01 | AN153: 40.02 | AO153: 15.14 | AP153: 72.38 | AQ153: 44.89 | AR153: 62.64 | AS153: 51.68 | AT153: 27.14 | AU153: 48.02 | AV153: 401.59 | AW153: 0 | AX153: 130.85 | AY153: 56.9 | AZ153: 37.76 | BA153: 29.93 | BB153: 0 | BC153: 0 | BD153: 0 | BE153: 0 | BF153: 0 | BG153: 0 | BH153: 0 | BI153: 0.02 | BJ153: 0 | BK153: 0 | BL153: 0 | BM153: 0 | BN153: 0 | BO153: 0 | BP153: 0 | BQ153: 0.01 | BR153: 0 | BS153: 0 | BT153: 0.06 | BU153: 0 | BV153: 0 | BW153: 0 | BX153: 0 | BY153: 0 | BZ153: 7.82 | CC153: 0 | CE153: 0 | CF153: 0 | CG153: 0 | CH153: 380 | CI153: 146.4 | CJ153: 263.2 | CK153: 3.04 | CL153: 3.04 | CM153: 3.04 | CN153: 0 | CO153: 0
A154: ="-" -> - | B154: Хлеб ржаной | C154: 20 | D154: 1.2 | E154: 0.2 | F154: 8.3 | G154: 38 | H154: 0.0 | I154: 0.0 | J154: 0.0 | K154: 0.0 | L154: 0.2 | M154: 6.4 | N154: 1.7 | O154: 0.0 | P154: 0.0 | Q154: 0.2 | R154: 0.5 | S154: 122.0 | T154: 49.0 | U154: 7.0 | V154: 9.4 | W154: 31.6 | X154: 0.8 | Y154: 0.0 | Z154: 1.0 | AA154: 0.2 | AB154: 0.3 | AC154: 0.0 | AD154: 0.0 | AE154: 0.1 | AF154: 0.4 | AG154: 0.0 | AH154: 0 | AI154: 64.4 | AJ154: 49.6 | AK154: 85.4 | AL154: 44.6 | AM154: 18.6 | AN154: 39.6 | AO154: 16 | AP154: 74.2 | AQ154: 59.4 | AR154: 58.2 | AS154: 92.8 | AT154: 24.8 | AU154: 62 | AV154: 311.8 | AW154: 0 | AX154: 105.2 | AY154: 58.2 | AZ154: 36 | BA154: 26 | BB154: 0 | BC154: 0 | BD154: 0 | BE154: 0 | BF154: 0 | BG154: 0 | BH154: 0 | BI154: 0.03 | BJ154: 0 | BK154: 0 | BL154: 0 | BM154: 0 | BN154: 0 | BO154: 0 | BP154: 0 | BQ154: 0.02 | BR154: 0 | BS154: 0 | BT154: 0.1 | BU154: 0.02 | BV154: 0 | BW154: 0 | BX154: 0 | BY154: 0 | BZ154: 9.4 | CC154: 0.17 | CE154: 4 | CF154: 4 | CG154: 4 | CH154: 760 | CI154: 292.8 | CJ154: 526.4 | CK154: 7.6 | CL154: 6.32 | CM154: 6.96 | CN154: 0 | CO154: 0
A155: ="3/10" -> 3/10 | B155: Компот из яблок | C155: 150 | D155: 0.1 | E155: 0.1 | F155: 14.4 | G155: 56 | H155: 0.0 | I155: 0.0 | J155: 0.0 | K155: 0.0 | L155: 13.7 | M155: 0.2 | N155: 0.5 | O155: 0.0 | P155: 0.0 | Q155: 0.2 | R155: 0.2 | S155: 7.8 | T155: 82.9 | U155: 5.0 | V155: 2.6 | W155: 3.1 | X155: 0.7 | Y155: 0.0 | Z155: 8.1 | AA155: 1.5 | AB155: 0.1 | AC155: 0.0 | AD155: 0.0 | AE155: 0.1 | AF155: 0.1 | AG155: 1.2 | AH155: 0 | AI155: 3.53 | AJ155: 3.82 | AK155: 5.59 | AL155: 5.29 | AM155: 0.88 | AN155: 3.23 | AO155: 0.88 | AP155: 2.65 | AQ155: 5 | AR155: 2.94 | AS155: 22.93 | AT155: 2.06 | AU155: 4.12 | AV155: 12.35 | AW155: 0 | AX155: 3.82 | AY155: 4.7 | AZ155: 1.76 | BA155: 1.47 | BB155: 0 | BC155: 0 | BD155: 0 | BE155: 0 | BF155: 0 | BG155: 0 | BH155: 0 | BI155: 0 | BJ155: 0 | BK155: 0 | BL155: 0 | BM155: 0 | BN155: 0 | BO155: 0 | BP155: 0 | BQ155: 0 | BR155: 0 | BS155: 0 | BT155: 0 | BU155: 0 | BV155: 0 | BW155: 0 | BX155: 0 | BY155: 0 | BZ155: 183.4 | CC155: 1.35 | CE155: 4.5 | CF155: 4.5 | CG155: 4.5 | CH155: 432 | CI155: 208.98 | CJ155: 320.49 | CK155: 41.2 | CL155: 24.19 | CM155: 32.7 | CN155: 11.25 | CO155: 0
A156: ="11/2" -> 11/2 | B156: Рассольник с крупой на говяжьем бульоне | C156: 150 | D156: 2.0 | E156: 6.3 | F156: 10.3 | G156: 105 | H156: 1.6 | I156: 2.0 | J156: 0.0 | K156: 0.0 | L156: 1.3 | M156: 8.0 | N156: 1.1 | O156: 0.0 | P156: 0.0 | Q156: 0.2 | R156: 1.9 | S156: 452.3 | T156: 255.9 | U156: 11.9 | V156: 13.7 | W156: 38.0 | X156: 0.5 | Y156: 0.0 | Z156: 585.4 | AA156: 121.8 | AB156: 1.4 | AC156: 0.1 | AD156: 0.1 | AE156: 0.6 | AF156: 1.0 | AG156: 4.0 | AH156: 0 | AI156: 25.72 | AJ156: 29.98 | AK156: 39.99 | AL156: 38.18 | AM156: 8.63 | AN156: 26.42 | AO156: 12.15 | AP156: 33.5 | AQ156: 36.27 | AR156: 77.89 | AS156: 53.86 | AT156: 10.95 | AU156: 27.16 | AV156: 196.64 | AW156: 0 | AX156: 41.46 | AY156: 24.85 | AZ156: 19.91 | BA156: 10.97 | BB156: 0 | BC156: 0 | BD156: 0 | BE156: 0 | BF156: 0 | BG156: 0 | BH156: 0 | BI156: 0.2 | BJ156: 0 | BK156: 0.12 | BL156: 0.01 | BM156: 0.02 | BN156: 0 | BO156: 0 | BP156: 0 | BQ156: 0.69 | BR156: 0 | BS156: 0 | BT156: 1.82 | BU156: 0 | BV156: 0 | BW156: 0 | BX156: 0 | BY156: 0 | BZ156: 164.43 | CC156: 97.56 | CE156: 49.97 | CF156: 27.9 | CG156: 38.93 | CH156: 788.76 | CI156: 419.65 | CJ156: 604.2 | CK156: 40.53 | CL156: 19.87 | CM156: 30.2 | CN156: 0 | CO156: 0.9
A157: ="46/3" -> 46/3 | B157: Макаронные изделия отварные с маслом сливочным | C157: 120 | D157: 4.2 | E157: 2.4 | F157: 27.3 | G157: 147 | H157: 1.5 | I157: 0.1 | J157: 0.0 | K157: 0.0 | L157: 0.8 | M157: 25.1 | N157: 1.4 | O157: 0.0 | P157: 0.0 | Q157: 0.0 | R157: 0.6 | S157: 117.8 | T157: 45.0 | U157: 8.4 | V157: 5.7 | W157: 31.9 | X157: 0.6 | Y157: 7.2 | Z157: 7.2 | AA157: 13.5 | AB157: 0.6 | AC157: 0.1 | AD157: 0.0 | AE157: 0.4 | AF157: 1.2 | AG157: 0.0 | AH157: 0 | AI157: 183.74 | AJ157: 167.99 | AK157: 314.71 | AL157: 98.3 | AM157: 59.93 | AN157: 121.75 | AO157: 39.95 | AP157: 195.25 | AQ157: 129.11 | AR157: 155.68 | AS157: 133.54 | AT157: 78.46 | AU157: 136.44 | AV157: 1198.29 | AW157: 0 | AX157: 377.59 | AY157: 195.58 | AZ157: 98.21 | BA157: 77.75 | BB157: 0.07 | BC157: 0.03 | BD157: 0.02 | BE157: 0.04 | BF157: 0.05 | BG157: 0.21 | BH157: 0 | BI157: 0.65 | BJ157: 0 | BK157: 0.18 | BL157: 0 | BM157: 0 | BN157: 0 | BO157: 0.04 | BP157: 0.06 | BQ157: 0.48 | BR157: 0 | BS157: 0 | BT157: 0.19 | BU157: 0.01 | BV157: 0 | BW157: 0 | BX157: 0 | BY157: 0 | BZ157: 250.85 | CC157: 8.4 | CE157: 15.92 | CF157: 8.3 | CG157: 12.11 | CH157: 369.83 | CI157: 365.4 | CJ157: 367.62 | CK157: 9.36 | CL157: 4.76 | CM157: 7.06 | CN157: 0 | CO157: 0.36
A158: ="12/7" -> 12/7 | B158: Биточки (котлеты) из рыбы минтай | C158: 50 | D158: 6.1 | E158: 3.2 | F158: 7.0 | G158: 81 | H158: 0.5 | I158: 2.0 | J158: 0.0 | K158: 0.0 | L158: 0.2 | M158: 6.4 | N158: 0.4 | O158: 0.0 | P158: 0.0 | Q158: 0.1 | R158: 1.0 | S158: 125.4 | T158: 113.9 | U158: 16.1 | V158: 21.6 | W158: 89.9 | X158: 0.6 | Y158: 3.3 | Z158: 0.2 | AA158: 3.3 | AB158: 1.6 | AC158: 0.0 | AD158: 0.0 | AE158: 0.6 | AF158: 1.8 | AG158: 0.2 | AH158: 0 | AI158: 31.38 | AJ158: 32.66 | AK158: 50.02 | AL158: 16.59 | AM158: 9.83 | AN158: 19.67 | AO158: 7.44 | AP158: 35.57 | AQ158: 22.06 | AR158: 30.78 | AS158: 25.39 | AT158: 13.34 | AU158: 23.6 | AV158: 197.33 | AW158: 0 | AX158: 64.3 | AY158: 27.96 | AZ158: 18.55 | BA158: 14.71 | BB158: 0 | BC158: 0 | BD158: 0 | BE158: 0 | BF158: 0 | BG158: 0 | BH158: 0 | BI158: 0.18 | BJ158: 0 | BK158: 0.11 | BL158: 0.01 | BM158: 0.02 | BN158: 0 | BO158: 0 | BP158: 0 | BQ158: 0.66 | BR158: 0 | BS158: 0 | BT158: 1.66 | BU158: 0 | BV158: 0 | BW158: 0 | BX158: 0 | BY158: 0 | BZ158: 42.99 | CC158: 3.33 | CE158: 86.1 | CF158: 17.64 | CG158: 51.87 | CH158: 864.5 | CI158: 301.53 | CJ158: 583.01 | CK158: 20.63 | CL158: 20.63 | CM158: 20.63 | CN158: 0 | CO158: 0.3
B159: Итого за 'Обед' | C159: =SUM(C153:C158) -> 510 | D159: =SUM(D153:D158) -> 14.9 | E159: 12.4 | F159: 74.7 | G159: 464 | H159: 3.6 | I159: 4.0 | J159: 0.0 | K159: 0.0 | L159: 16.4 | M159: 53.3 | N159: 5.1 | O159: 0.0 | P159: 0.0 | Q159: 0.7 | R159: 4.4 | S159: 825.3 | T159: 546.6 | U159: 48.4 | V159: 53.0 | W159: 194.5 | X159: 3.1 | Y159: 10.5 | Z159: 601.9 | AA159: 140.3 | AB159: 4.0 | AC159: 0.2 | AD159: 0.1 | AE159: 1.8 | AF159: 4.6 | AG159: 5.4 | AH159: 0 | AI159: 372.62 | AJ159: 350.52 | AK159: 597.49 | AL159: 236.72 | AM159: 117.88 | AN159: 250.69 | AO159: 91.56 | AP159: 413.55 | AQ159: 296.73 | AR159: 388.13 | AS159: 380.21 | AT159: 156.74 | AU159: 301.34 | AV159: 2318 | AW159: 0 | AX159: 723.21 | AY159: 368.19 | AZ159: 212.2 | BA159: 160.83 | BB159: 0.07 | BC159: 0.03 | BD159: 0.02 | BE159: 0.04 | BF159: 0.05 | BG159: 0.21 | BH159: 0 | BI159: 1.07 | BJ159: 0 | BK159: 0.42 | BL159: 0.02 | BM159: 0.04 | BN159: 0 | BO159: 0.04 | BP159: 0.07 | BQ159: 1.87 | BR159: 0 | BS159: 0 | BT159: 3.83 | BU159: 0.03 | BV159: 0 | BW159: 0 | BX159: 0 | BY159: 0 | BZ159: 658.9 | CB159: =$G$159/#REF!*100 ->  | CC159: 110.81 | CE159: 160.48 | CF159: 62.34 | CG159: 111.41 | CH159: 3595.08 | CI159: 1734.76 | CJ159: 2664.92 | CK159: 122.36 | CL159: 78.81 | CM159: 100.59 | CN159: 11.25 | CO159: 1.56
B160: Уплотненный полдник
A161: ="-" -> - | B161: Сок в ассортименте | C161: 150 | D161: 0.8 | E161: 0.2 | F161: 15.5 | G161: 65 | H161: 0.0 | I161: 0.0 | J161: 0.0 | K161: 0.0 | L161: 14.9 | M161: 0.3 | N161: 0.3 | O161: 0.0 | P161: 0.0 | Q161: 0.8 | R161: 0.5 | S161: 9.0 | T161: 180.0 | U161: 10.5 | V161: 6.0 | W161: 10.5 | X161: 2.1 | Y161: 0.0 | Z161: 0.0 | AA161: 0.0 | AB161: 0.2 | AC161: 0.0 | AD161: 0.0 | AE161: 0.2 | AF161: 0.3 | AG161: 3.0 | AH161: 0.3 | AI161: 12 | AJ161: 15 | AK161: 21 | AL161: 21 | AM161: 3 | AN161: 12 | AO161: 3 | AP161: 10.5 | AQ161: 19.5 | AR161: 12 | AS161: 87 | AT161: 7.5 | AU161: 16.5 | AV161: 48 | AW161: 0 | AX161: 15 | AY161: 18 | AZ161: 7.5 | BA161: 6 | BB161: 0 | BC161: 0 | BD161: 0 | BE161: 0 | BF161: 0 | BG161: 0 | BH161: 0 | BI161: 0 | BJ161: 0 | BK161: 0 | BL161: 0 | BM161: 0 | BN161: 0 | BO161: 0 | BP161: 0 | BQ161: 0 | BR161: 0 | BS161: 0 | BT161: 0 | BU161: 0 | BV161: 0 | BW161: 0 | BX161: 0 | BY161: 0 | BZ161: 132.15 | CC161: 0 | CE161: 3.6 | CF161: 3.6 | CG161: 3.6 | CH161: 360 | CI161: 163.8 | CJ161: 261.9 | CK161: 0.54 | CL161: 0.54 | CM161: 0.54 | CN161: 0 | CO161: 0
A162: ="-" -> - | B162: Хлеб ржаной | C162: 20 | D162: 1.2 | E162: 0.2 | F162: 8.3 | G162: 38 | H162: 0.0 | I162: 0.0 | J162: 0.0 | K162: 0.0 | L162: 0.2 | M162: 6.4 | N162: 1.7 | O162: 0.0 | P162: 0.0 | Q162: 0.2 | R162: 0.5 | S162: 122.0 | T162: 49.0 | U162: 7.0 | V162: 9.4 | W162: 31.6 | X162: 0.8 | Y162: 0.0 | Z162: 1.0 | AA162: 0.2 | AB162: 0.3 | AC162: 0.0 | AD162: 0.0 | AE162: 0.1 | AF162: 0.4 | AG162: 0.0 | AH162: 0 | AI162: 64.4 | AJ162: 49.6 | AK162: 85.4 | AL162: 44.6 | AM162: 18.6 | AN162: 39.6 | AO162: 16 | AP162: 74.2 | AQ162: 59.4 | AR162: 58.2 | AS162: 92.8 | AT162: 24.8 | AU162: 62 | AV162: 311.8 | AW162: 0 | AX162: 105.2 | AY162: 58.2 | AZ162: 36 | BA162: 26 | BB162: 0 | BC162: 0 | BD162: 0 | BE162: 0 | BF162: 0 | BG162: 0 | BH162: 0 | BI162: 0.03 | BJ162: 0 | BK162: 0 | BL162: 0 | BM162: 0 | BN162: 0 | BO162: 0 | BP162: 0 | BQ162: 0.02 | BR162: 0 | BS162: 0 | BT162: 0.1 | BU162: 0.02 | BV162: 0 | BW162: 0 | BX162: 0 | BY162: 0 | BZ162: 9.4 | CC162: 0.17 | CE162: 3 | CF162: 3 | CG162: 3 | CH162: 570 | CI162: 219.6 | CJ162: 394.8 | CK162: 5.7 | CL162: 4.74 | CM162: 5.22 | CN162: 0 | CO162: 0
A163: ="10/150" -> 10/150 | B163: Сырники из творога со сметаной | C163: 100 | D163: 20.8 | E163: 5.5 | F163: 16.4 | G163: 200 | H163: 1.4 | I163: 2.6 | J163: 0.0 | K163: 0.0 | L163: 6.9 | M163: 9.0 | N163: 0.5 | O163: 0.0 | P163: 0.0 | Q163: 1.1 | R163: 1.5 | S163: 125.9 | T163: 119.5 | U163: 105.5 | V163: 22.3 | W163: 163.6 | X163: 0.5 | Y163: 13.3 | Z163: 3.6 | AA163: 14.7 | AB163: 2.0 | AC163: 0.1 | AD163: 0.2 | AE163: 0.5 | AF163: 4.2 | AG163: 0.2 | AH163: 0 | AI163: 938.43 | AJ163: 934.88 | AK163: 1730.03 | AL163: 1307.31 | AM163: 446.86 | AN163: 748.54 | AO163: 174.95 | AP163: 886.43 | AQ163: 447.07 | AR163: 775.66 | AS163: 946.92 | AT163: 518.32 | AU163: 284.66 | AV163: 3298.51 | AW163: 0.53 | AX163: 1896.81 | AY163: 802.86 | AZ163: 846.49 | BA163: 123.23 | BB163: 0 | BC163: 0 | BD163: 0 | BE163: 0 | BF163: 0 | BG163: 0 | BH163: 0 | BI163: 0.25 | BJ163: 0 | BK163: 0.16 | BL163: 0.01 | BM163: 0.03 | BN163: 0 | BO163: 0 | BP163: 0 | BQ163: 0.91 | BR163: 0 | BS163: 0 | BT163: 2.31 | BU163: 0 | BV163: 0 | BW163: 0 | BX163: 0 | BY163: 0 | BZ163: 72.56 | CC163: 13.9 | CE163: 13.19 | CF163: 7.26 | CG163: 10.23 | CH163: 730.08 | CI163: 511.68 | CJ163: 620.88 | CK163: 17.11 | CL163: 12.48 | CM163: 14.96 | CN163: 4 | CO163: 0.24
A164: ="-" -> - | C164: 10 | D164: 0.2 | E164: 1.3 | F164: 0.3 | G164: 14 | H164: 0.9 | I164: 0.0 | J164: 0.0 | K164: 0.0 | L164: 0.3 | M164: 0.0 | N164: 0.0 | O164: 0.0 | P164: 0.0 | Q164: 0.1 | R164: 0.1 | S164: 4.0 | T164: 10.2 | U164: 7.7 | V164: 0.8 | W164: 5.3 | X164: 0.0 | Y164: 6.0 | Z164: 3.2 | AA164: 10.7 | AB164: 0.0 | AC164: 0.0 | AD164: 0.0 | AE164: 0.0 | AF164: 0.1 | AG164: 0.0 | AH164: 0 | AI164: 97.29 | AJ164: 73.51 | AK164: 155.76 | AL164: 157.17 | AM164: 48.41 | AN164: 80.75 | AO164: 21.43 | AP164: 75.48 | AQ164: 108.38 | AR164: 101.8 | AS164: 178.98 | AT164: 67.49 | AU164: 92.68 | AV164: 311.14 | AW164: 0 | AX164: 80.75 | AY164: 82.91 | AZ164: 65.71 | BA164: 27.82 | BB164: 0 | BC164: 0 | BD164: 0 | BE164: 0 | BF164: 0 | BG164: 0 | BH164: 0 | BI164: 0 | BJ164: 0 | BK164: 0 | BL164: 0 | BM164: 0 | BN164: 0 | BO164: 0 | BP164: 0 | BQ164: 0 | BR164: 0 | BS164: 0 | BT164: 0 | BU164: 0.01 | BV164: 0 | BW164: 0 | BX164: 0 | BY164: 0 | BZ164: 7.75 | CC164: 6.53 | CE164: 0.7 | CF164: 0.7 | CG164: 0.7 | CH164: 20 | CI164: 8.2 | CJ164: 14.1 | CK164: 0.03 | CL164: 0.03 | CM164: 0.03 | CN164: 0 | CO164: 0
B165: Итого за 'Ужин' | C165: =SUM(C161:C164) -> 280 | D165: =SUM(D161:D164) -> 23.0 | E165: 7.2 | F165: 40.5 | G165: 318 | H165: 2.3 | I165: 2.6 | J165: 0.0 | K165: 0.0 | L165: 22.3 | M165: 15.8 | N165: 2.4 | O165: 0.0 | P165: 0.0 | Q165: 2.1 | R165: 2.5 | S165: 260.9 | T165: 358.7 | U165: 130.8 | V165: 38.4 | W165: 211.1 | X165: 3.4 | Y165: 19.3 | Z165: 7.8 | AA165: 25.6 | AB165: 2.5 | AC165: 0.1 | AD165: 0.3 | AE165: 0.8 | AF165: 5.0 | AG165: 3.3 | AH165: 0.3 | AI165: 1047.72 | AJ165: 1023.38 | AK165: 1906.78 | AL165: 1485.48 | AM165: 498.27 | AN165: 841.29 | AO165: 199.38 | AP165: 972.41 | AQ165: 574.95 | AR165: 889.46 | AS165: 1212.9 | AT165: 593.31 | AU165: 393.84 | AV165: 3657.65 | AW165: 0.53 | AX165: 1992.55 | AY165: 903.77 | AZ165: 919.69 | BA165: 157.06 | BB165: 0 | BC165: 0 | BD165: 0 | BE165: 0 | BF165: 0 | BG165: 0 | BH165: 0 | BI165: 0.26 | BJ165: 0 | BK165: 0.16 | BL165: 0.01 | BM165: 0.03 | BN165: 0 | BO165: 0 | BP165: 0 | BQ165: 0.92 | BR165: 0 | BS165: 0 | BT165: 2.31 | BU165: 0.01 | BV165: 0 | BW165: 0 | BX165: 0 | BY165: 0 | BZ165: 212.46 | CB165: =$G$165/#REF!*100 ->  | CC165: 20.43 | CE165: 17.49 | CF165: 11.56 | CG165: 14.53 | CH165: 1110.08 | CI165: 683.68 | CJ165: 896.88 | CK165: 17.68 | CL165: 13.05 | CM165: 15.53 | CN165: 4 | CO165: 0.24
B166: Итого за день | C166: =C147+C151+C159+C165 -> 1295 | D166: =D147+D151+D159+D165 -> 55.0 | E166: 36.6 | F166: 174.7 | G166: 1237 | H166: 12.2 | I166: 6.7 | J166: 0.0 | K166: 0.0 | L166: 56.7 | M166: 108.1 | N166: 9.8 | O166: 0.0 | P166: 0.0 | Q166: 3.0 | R166: 9.9 | S166: 1438.6 | T166: 1273.3 | U166: 366.5 | V166: 154.5 | W166: 725.7 | X166: 9.7 | Y166: 219.3 | Z166: 667.5 | AA166: 365.8 | AB166: 8.0 | AC166: 0.5 | AD166: 0.9 | AE166: 3.2 | AF166: 14.4 | AG166: 9.2 | AH166: 0.3 | AI166: 2129.55 | AJ166: 1933.7 | AK166: 3469.6 | AL166: 2431.33 | AM166: 932.06 | AN166: 1621.46 | AO166: 491.18 | AP166: 2027.06 | AQ166: 1498 | AR166: 2045.43 | AS166: 2666.5 | AT166: 1061.01 | AU166: 1305.28 | AV166: 8119.38 | AW166: 8.93 | AX166: 3307.14 | AY166: 2052.98 | AZ166: 1596.48 | BA166: 614.37 | BB166: 0.17 | BC166: 0.08 | BD166: 0.04 | BE166: 0.1 | BF166: 0.11 | BG166: 0.51 | BH166: 0 | BI166: 2.54 | BJ166: 0 | BK166: 0.84 | BL166: 0.03 | BM166: 0.06 | BN166: 0 | BO166: 0.1 | BP166: 0.16 | BQ166: 4.09 | BR166: 0 | BS166: 0 | BT166: 6.91 | BU166: 0.06 | BV166: 0 | BW166: 0 | BX166: 0 | BY166: 0 | BZ166: 1289.84 | CC166: 330.39 | CE166: 230.26 | CF166: 101.85 | CG166: 166.05 | CH166: 7822.76 | CI166: 3751.81 | CJ166: 5787.29 | CK166: 218.33 | CL166: 135.52 | CM166: 177.09 | CN166: 22 | CO166: 2.18
B168: 2 НЕДЕЛЯ
B169: 1 день
B170: Завтрак
A171: ="-" -> - | B171: Хлеб пшеничный | C171: 25 | D171: 1.5 | E171: 0.2 | F171: 9.2 | G171: 45 | H171: 0.0 | I171: 0.0 | J171: 0.0 | K171: 0.0 | L171: 0.3 | M171: 8.9 | N171: 0.1 | O171: 0.0 | P171: 0.0 | Q171: 0.0 | R171: 0.5 | S171: 0.0 | T171: 0.0 | U171: 0.0 | V171: 0.0 | W171: 0.0 | X171: 0.0 | Y171: 0.0 | Z171: 0.0 | AA171: 0.0 | AB171: 0.0 | AC171: 0.0 | AD171: 0.0 | AE171: 0.0 | AF171: 0.0 | AG171: 0.0 | AH171: 0 | AI171: 79.82 | AJ171: 83.09 | AK171: 127.24 | AL171: 42.2 | AM171: 25.01 | AN171: 50.03 | AO171: 18.92 | AP171: 90.48 | AQ171: 56.12 | AR171: 78.3 | AS171: 64.6 | AT171: 33.93 | AU171: 60.03 | AV171: 501.99 | AW171: 0 | AX171: 163.56 | AY171: 71.12 | AZ171: 47.2 | BA171: 37.41 | BB171: 0 | BC171: 0 | BD171: 0 | BE171: 0 | BF171: 0 | BG171: 0 | BH171: 0 | BI171: 0.02 | BJ171: 0 | BK171: 0 | BL171: 0 | BM171: 0 | BN171: 0 | BO171: 0 | BP171: 0 | BQ171: 0.02 | BR171: 0 | BS171: 0 | BT171: 0.07 | BU171: 0 | BV171: 0 | BW171: 0 | BX171: 0 | BY171: 0 | BZ171: 9.78 | CC171: 0 | CE171: 0 | CF171: 0 | CG171: 0 | CH171: 570 | CI171: 219.6 | CJ171: 394.8 | CK171: 4.56 | CL171: 4.56 | CM171: 4.56 | CN171: 0 | CO171: 0
A172: ="4/13" -> 4/13 | B172: Сыр (порциями) | C172: 10 | D172: 1.5 | E172: 2.7 | F172: 0.0 | G172: 31 | H172: 1.5 | I172: 0.0 | J172: 0.0 | K172: 0.0 | L172: 0.0 | M172: 0.0 | N172: 0.0 | O172: 0.0 | P172: 0.0 | Q172: 0.2 | R172: 0.4 | S172: 110.0 | T172: 10.0 | U172: 100.0 | V172: 5.5 | W172: 60.0 | X172: 0.1 | Y172: 21.0 | Z172: 17.0 | AA172: 23.8 | AB172: 0.0 | AC172: 0.0 | AD172: 0.0 | AE172: 0.0 | AF172: 0.7 | AG172: 0.1 | AH172: 0 | AI172: 157 | AJ172: 117 | AK172: 230 | AL172: 158 | AM172: 56 | AN172: 95 | AO172: 70 | AP172: 134 | AQ172: 76 | AR172: 87 | AS172: 156 | AT172: 70 | AU172: 51 | AV172: 517 | AW172: 0 | AX172: 273 | AY172: 129 | AZ172: 139 | BA172: 21.5 | BB172: 0 | BC172: 0.01 | BD172: 0.04 | BE172: 0.11 | BF172: 0.13 | BG172: 0.33 | BH172: 0.04 | BI172: 0.7 | BJ172: 0.01 | BK172: 0.16 | BL172: 0.01 | BM172: 0 | BN172: 0 | BO172: 0.05 | BP172: 0.07 | BQ172: 0.52 | BR172: 0 | BS172: 0 | BT172: 0.07 | BU172: 0 | BV172: 0 | BW172: 0 | BX172: 0 | BY172: 0 | BZ172: 4.08 | CC172: 23.83 | CE172: 0 | CF172: 0 | CG172: 0 | CH172: 250 | CI172: 185 | CJ172: 217.5 | CK172: 0.77 | CL172: 0.49 | CM172: 0.63 | CN172: 0 | CO172: 0
A173: ="36/10" -> 36/10 | B173: Какао с молоком (вариант 2) | C173: 150 | D173: 2.8 | E173: 2.0 | F173: 11.3 | G173: 71 | H173: 1.6 | I173: 0.0 | J173: 0.0 | K173: 0.0 | L173: 10.1 | M173: 0.2 | N173: 1.0 | O173: 0.0 | P173: 0.0 | Q173: 0.2 | R173: 0.7 | S173: 38.0 | T173: 137.1 | U173: 82.8 | V173: 20.4 | W173: 76.1 | X173: 0.7 | Y173: 9.0 | Z173: 6.5 | AA173: 16.6 | AB173: 0.0 | AC173: 0.0 | AD173: 0.1 | AE173: 0.1 | AF173: 0.8 | AG173: 0.4 | AH173: 0 | AI173: 0 | AJ173: 0 | AK173: 0 | AL173: 0 | AM173: 0 | AN173: 0 | AO173: 0 | AP173: 0 | AQ173: 0 | AR173: 0 | AS173: 0 | AT173: 0 | AU173: 0 | AV173: 0 | AW173: 0 | AX173: 0 | AY173: 0 | AZ173: 0 | BA173: 0 | BB173: 0 | BC173: 0 | BD173: 0 | BE173: 0 | BF173: 0 | BG173: 0 | BH173: 0 | BI173: 0 | BJ173: 0 | BK173: 0 | BL173: 0 | BM173: 0 | BN173: 0 | BO173: 0 | BP173: 0 | BQ173: 0 | BR173: 0 | BS173: 0 | BT173: 0 | BU173: 0 | BV173: 0 | BW173: 0 | BX173: 0 | BY173: 0 | BZ173: 149.41 | CC173: 10.08 | CE173: 10.25 | CF173: 3.95 | CG173: 7.1 | CH173: 792 | CI173: 288.18 | CJ173: 540.09 | CK173: 34.53 | CL173: 16.62 | CM173: 25.58 | CN173: 7.5 | CO173: 0
A174: ="5/4" -> 5/4 | B174: Каша манная молочная с маслом сливочным | C174: 150 | D174: 4.0 | E174: 3.5 | F174: 22.2 | G174: 134 | H174: 2.5 | I174: 0.1 | J174: 0.0 | K174: 0.0 | L174: 6.4 | M174: 15.0 | N174: 0.8 | O174: 0.0 | P174: 0.0 | Q174: 0.1 | R174: 1.0 | S174: 176.4 | T174: 105.5 | U174: 69.5 | V174: 11.1 | W174: 65.8 | X174: 0.3 | Y174: 14.4 | Z174: 12.0 | AA174: 26.7 | AB174: 0.4 | AC174: 0.0 | AD174: 0.1 | AE174: 0.3 | AF174: 1.2 | AG174: 0.3 | AH174: 0 | AI174: 111.73 | AJ174: 102.68 | AK174: 184.88 | AL174: 58.8 | AM174: 35.45 | AN174: 72.39 | AO174: 26.03 | AP174: 123.01 | AQ174: 77.72 | AR174: 106.77 | AS174: 87.34 | AT174: 48.36 | AU174: 83.02 | AV174: 725.92 | AW174: 0 | AX174: 235.98 | AY174: 121.09 | AZ174: 62.1 | BA174: 49.91 | BB174: 0.07 | BC174: 0.03 | BD174: 0.02 | BE174: 0.04 | BF174: 0.05 | BG174: 0.21 | BH174: 0 | BI174: 0.58 | BJ174: 0 | BK174: 0.18 | BL174: 0 | BM174: 0 | BN174: 0 | BO174: 0.04 | BP174: 0.06 | BQ174: 0.48 | BR174: 0 | BS174: 0 | BT174: 0.03 | BU174: 0 | BV174: 0 | BW174: 0 | BX174: 0 | BY174: 0 | BZ174: 135.51 | CC174: 16.4 | CE174: 33.38 | CF174: 14.46 | CG174: 23.92 | CH174: 1875.37 | CI174: 844.23 | CJ174: 1359.8 | CK174: 43.77 | CL174: 22.87 | CM174: 33.32 | CN174: 3.75 | CO174: 0.38
B175: Итого за 'Завтрак' | C175: =SUM(C171:C174) -> 335 | D175: =SUM(D171:D174) -> 9.8 | E175: 8.2 | F175: 42.7 | G175: 281 | H175: 5.6 | I175: 0.1 | J175: 0.0 | K175: 0.0 | L175: 16.8 | M175: 24.1 | N175: 1.8 | O175: 0.0 | P175: 0.0 | Q175: 0.5 | R175: 2.6 | S175: 324.3 | T175: 252.6 | U175: 252.4 | V175: 37.1 | W175: 201.9 | X175: 1.0 | Y175: 44.4 | Z175: 35.5 | AA175: 67.1 | AB175: 0.4 | AC175: 0.1 | AD175: 0.2 | AE175: 0.4 | AF175: 2.7 | AG175: 0.8 | AH175: 0 | AI175: 348.55 | AJ175: 302.76 | AK175: 542.12 | AL175: 258.99 | AM175: 116.46 | AN175: 217.41 | AO175: 114.95 | AP175: 347.49 | AQ175: 209.83 | AR175: 272.07 | AS175: 307.93 | AT175: 152.29 | AU175: 194.05 | AV175: 1744.91 | AW175: 0 | AX175: 672.54 | AY175: 321.21 | AZ175: 248.29 | BA175: 108.82 | BB175: 0.07 | BC175: 0.04 | BD175: 0.06 | BE175: 0.15 | BF175: 0.17 | BG175: 0.54 | BH175: 0.04 | BI175: 1.3 | BJ175: 0.01 | BK175: 0.34 | BL175: 0.01 | BM175: 0 | BN175: 0 | BO175: 0.09 | BP175: 0.13 | BQ175: 1.01 | BR175: 0 | BS175: 0 | BT175: 0.17 | BU175: 0.01 | BV175: 0 | BW175: 0 | BX175: 0 | BY175: 0 | BZ175: 298.78 | CB175: =$G$175/#REF!*100 ->  | CC175: 50.31 | CE175: 43.63 | CF175: 18.41 | CG175: 31.02 | CH175: 3487.37 | CI175: 1537.01 | CJ175: 2512.19 | CK175: 83.63 | CL175: 44.54 | CM175: 64.08 | CN175: 11.25 | CO175: 0.38
B176: 10:00
A177: ="-" -> - | B177: Фрукты (яблоки) | C177: 100 | D177: 0.4 | E177: 0.4 | F177: 11.6 | G177: 50 | H177: 0.1 | I177: 0.0 | J177: 0.0 | K177: 0.0 | L177: 10.0 | M177: 0.8 | N177: 0.8 | O177: 0.0 | P177: 0.0 | Q177: 0.8 | R177: 0.5 | S177: 26.0 | T177: 278.0 | U177: 16.0 | V177: 9.0 | W177: 11.0 | X177: 2.2 | Y177: 0.0 | Z177: 30.0 | AA177: 5.0 | AB177: 0.2 | AC177: 0.0 | AD177: 0.0 | AE177: 0.3 | AF177: 0.4 | AG177: 10.0 | AH177: 0 | AI177: 12 | AJ177: 13 | AK177: 19 | AL177: 18 | AM177: 3 | AN177: 11 | AO177: 3 | AP177: 9 | AQ177: 17 | AR177: 10 | AS177: 78 | AT177: 7 | AU177: 14 | AV177: 42 | AW177: 0 | AX177: 13 | AY177: 16 | AZ177: 6 | BA177: 5 | BB177: 0 | BC177: 0 | BD177: 0 | BE177: 0 | BF177: 0 | BG177: 0 | BH177: 0 | BI177: 0 | BJ177: 0 | BK177: 0 | BL177: 0 | BM177: 0 | BN177: 0 | BO177: 0 | BP177: 0 | BQ177: 0 | BR177: 0 | BS177: 0 | BT177: 0 | BU177: 0 | BV177: 0 | BW177: 0 | BX177: 0 | BY177: 0 | BZ177: 86.3 | CC177: 5 | CE177: 2 | CF177: 2 | CG177: 2 | CH177: 150 | CI177: 150 | CJ177: 150 | CK177: 0 | CL177: 0 | CM177: 0 | CN177: 0 | CO177: 0
B178: Итого за '10:00' | C178: =SUM(C177) -> 100 | D178: =SUM(D177) -> 0.4 | E178: 0.4 | F178: 11.6 | G178: 50 | H178: 0.1 | I178: 0.0 | J178: 0.0 | K178: 0.0 | L178: 10.0 | M178: 0.8 | N178: 0.8 | O178: 0.0 | P178: 0.0 | Q178: 0.8 | R178: 0.5 | S178: 26.0 | T178: 278.0 | U178: 16.0 | V178: 9.0 | W178: 11.0 | X178: 2.2 | Y178: 0.0 | Z178: 30.0 | AA178: 5.0 | AB178: 0.2 | AC178: 0.0 | AD178: 0.0 | AE178: 0.3 | AF178: 0.4 | AG178: 10.0 | AH178: 0 | AI178: 12 | AJ178: 13 | AK178: 19 | AL178: 18 | AM178: 3 | AN178: 11 | AO178: 3 | AP178: 9 | AQ178: 17 | AR178: 10 | AS178: 78 | AT178: 7 | AU178: 14 | AV178: 42 | AW178: 0 | AX178: 13 | AY178: 16 | AZ178: 6 | BA178: 5 | BB178: 0 | BC178: 0 | BD178: 0 | BE178: 0 | BF178: 0 | BG178: 0 | BH178: 0 | BI178: 0 | BJ178: 0 | BK178: 0 | BL178: 0 | BM178: 0 | BN178: 0 | BO178: 0 | BP178: 0 | BQ178: 0 | BR178: 0 | BS178: 0 | BT178: 0 | BU178: 0 | BV178: 0 | BW178: 0 | BX178: 0 | BY178: 0 | BZ178: 86.3 | CB178: =$G$178/#REF!*100 ->  | CC178: 5 | CE178: 2 | CF178: 2 | CG178: 2 | CH178: 150 | CI178: 150 | CJ178: 150 | CK178: 0 | CL178: 0 | CM178: 0 | CN178: 0 | CO178: 0
B179: Обед
A180: ="-" -> - | B180: Хлеб пшеничный | C180: 20 | D180: 1.2 | E180: 0.1 | F180: 7.4 | G180: 36 | H180: 0.0 | I180: 0.0 | J180: 0.0 | K180: 0.0 | L180: 0.2 | M180: 7.1 | N180: 0.0 | O180: 0.0 | P180: 0.0 | Q180: 0.0 | R180: 0.4 | S180: 0.0 | T180: 0.0 | U180: 0.0 | V180: 0.0 | W180: 0.0 | X180: 0.0 | Y180: 0.0 | Z180: 0.0 | AA180: 0.0 | AB180: 0.0 | AC180: 0.0 | AD180: 0.0 | AE180: 0.0 | AF180: 0.0 | AG180: 0.0 | AH180: 0 | AI180: 63.86 | AJ180: 66.47 | AK180: 101.79 | AL180: 33.76 | AM180: 20.01 | AN180: 40.02 | AO180: 15.14 | AP180: 72.38 | AQ180: 44.89 | AR180: 62.64 | AS180: 51.68 | AT180: 27.14 | AU180: 48.02 | AV180: 401.59 | AW180: 0 | AX180: 130.85 | AY180: 56.9 | AZ180: 37.76 | BA180: 29.93 | BB180: 0 | BC180: 0 | BD180: 0 | BE180: 0 | BF180: 0 | BG180: 0 | BH180: 0 | BI180: 0.02 | BJ180: 0 | BK180: 0 | BL180: 0 | BM180: 0 | BN180: 0 | BO180: 0 | BP180: 0 | BQ180: 0.01 | BR180: 0 | BS180: 0 | BT180: 0.06 | BU180: 0 | BV180: 0 | BW180: 0 | BX180: 0 | BY180: 0 | BZ180: 7.82 | CC180: 0 | CE180: 0 | CF180: 0 | CG180: 0 | CH180: 380 | CI180: 146.4 | CJ180: 263.2 | CK180: 3.04 | CL180: 3.04 | CM180: 3.04 | CN180: 0 | CO180: 0
A181: ="-" -> - | B181: Хлеб ржаной | C181: 20 | D181: 1.2 | E181: 0.2 | F181: 8.3 | G181: 38 | H181: 0.0 | I181: 0.0 | J181: 0.0 | K181: 0.0 | L181: 0.2 | M181: 6.4 | N181: 1.7 | O181: 0.0 | P181: 0.0 | Q181: 0.2 | R181: 0.5 | S181: 122.0 | T181: 49.0 | U181: 7.0 | V181: 9.4 | W181: 31.6 | X181: 0.8 | Y181: 0.0 | Z181: 1.0 | AA181: 0.2 | AB181: 0.3 | AC181: 0.0 | AD181: 0.0 | AE181: 0.1 | AF181: 0.4 | AG181: 0.0 | AH181: 0 | AI181: 64.4 | AJ181: 49.6 | AK181: 85.4 | AL181: 44.6 | AM181: 18.6 | AN181: 39.6 | AO181: 16 | AP181: 74.2 | AQ181: 59.4 | AR181: 58.2 | AS181: 92.8 | AT181: 24.8 | AU181: 62 | AV181: 311.8 | AW181: 0 | AX181: 105.2 | AY181: 58.2 | AZ181: 36 | BA181: 26 | BB181: 0 | BC181: 0 | BD181: 0 | BE181: 0 | BF181: 0 | BG181: 0 | BH181: 0 | BI181: 0.03 | BJ181: 0 | BK181: 0 | BL181: 0 | BM181: 0 | BN181: 0 | BO181: 0 | BP181: 0 | BQ181: 0.02 | BR181: 0 | BS181: 0 | BT181: 0.1 | BU181: 0.02 | BV181: 0 | BW181: 0 | BX181: 0 | BY181: 0 | BZ181: 9.4 | CC181: 0.17 | CE181: 4 | CF181: 4 | CG181: 4 | CH181: 760 | CI181: 292.8 | CJ181: 526.4 | CK181: 7.6 | CL181: 6.32 | CM181: 6.96 | CN181: 0 | CO181: 0
A182: ="6/1" -> 6/1 | B182: Салат из белокочанной капусты с морковью и растительным маслом | C182: 30 | D182: 0.5 | E182: 1.8 | F182: 2.8 | G182: 28 | H182: 0.2 | I182: 1.2 | J182: 0.0 | K182: 0.0 | L182: 2.2 | M182: 0.0 | N182: 0.6 | O182: 0.0 | P182: 0.0 | Q182: 0.1 | R182: 0.4 | S182: 60.8 | T182: 75.6 | U182: 12.4 | V182: 5.4 | W182: 9.6 | X182: 0.2 | Y182: 0.0 | Z182: 568.9 | AA182: 96.7 | AB182: 0.8 | AC182: 0.0 | AD182: 0.0 | AE182: 0.2 | AF182: 0.3 | AG182: 10.2 | AH182: 0 | AI182: 14.81 | AJ182: 12.67 | AK182: 16.18 | AL182: 15.24 | AM182: 5.27 | AN182: 11.43 | AO182: 2.58 | AP182: 13.81 | AQ182: 17.91 | AR182: 20.67 | AS182: 44.28 | AT182: 6.83 | AU182: 11.73 | AV182: 71.69 | AW182: 0 | AX182: 14.42 | AY182: 14.56 | AZ182: 11.87 | BA182: 4.97 | BB182: 0 | BC182: 0 | BD182: 0 | BE182: 0 | BF182: 0 | BG182: 0 | BH182: 0 | BI182: 0.11 | BJ182: 0 | BK182: 0.07 | BL182: 0.01 | BM182: 0.01 | BN182: 0 | BO182: 0 | BP182: 0 | BQ182: 0.42 | BR182: 0 | BS182: 0 | BT182: 1.04 | BU182: 0 | BV182: 0 | BW182: 0 | BX182: 0 | BY182: 0 | BZ182: 24.57 | CC182: 94.82 | CE182: 13.55 | CF182: 6.21 | CG182: 9.88 | CH182: 406.33 | CI182: 97.29 | CJ182: 251.81 | CK182: 6.53 | CL182: 6.16 | CM182: 6.34 | CN182: 0.9 | CO182: 0.15
A183: ="6/10" -> 6/10 | B183: Компот из сухофруктов | C183: 150 | D183: 0.8 | E183: 0.0 | F183: 17.4 | G183: 66 | H183: 0.0 | I183: 0.0 | J183: 0.0 | K183: 0.0 | L183: 14.4 | M183: 0.4 | N183: 2.6 | O183: 0.0 | P183: 0.0 | Q183: 0.2 | R183: 0.6 | S183: 2.6 | T183: 255.2 | U183: 23.5 | V183: 15.0 | W183: 20.4 | X183: 0.5 | Y183: 0.0 | Z183: 472.5 | AA183: 87.5 | AB183: 0.8 | AC183: 0.0 | AD183: 0.0 | AE183: 0.4 | AF183: 0.6 | AG183: 0.4 | AH183: 0 | AI183: 0.01 | AJ183: 0.01 | AK183: 0.01 | AL183: 0.01 | AM183: 0 | AN183: 0.01 | AO183: 0 | AP183: 0.01 | AQ183: 0.01 | AR183: 0.01 | AS183: 0.04 | AT183: 0 | AU183: 0.01 | AV183: 0.02 | AW183: 0 | AX183: 0.01 | AY183: 0.01 | AZ183: 0 | BA183: 0 | BB183: 0 | BC183: 0 | BD183: 0 | BE183: 0 | BF183: 0 | BG183: 0 | BH183: 0 | BI183: 0 | BJ183: 0 | BK183: 0 | BL183: 0 | BM183: 0 | BN183: 0 | BO183: 0 | BP183: 0 | BQ183: 0.01 | BR183: 0 | BS183: 0 | BT183: 0 | BU183: 0 | BV183: 0 | BW183: 0 | BX183: 0 | BY183: 0 | BZ183: 160.51 | CC183: 78.75 | CE183: 3.95 | CF183: 3.95 | CG183: 3.95 | CH183: 454.5 | CI183: 172.98 | CJ183: 313.74 | CK183: 41.94 | CL183: 24.93 | CM183: 33.44 | CN183: 7.5 | CO183: 0
A184: ="18/2" -> 18/2 | B184: Суп картофельный с макаронными изделиями на говяжьем бульоне | C184: 150 | D184: 2.4 | E184: 5.3 | F184: 12.2 | G184: 105 | H184: 1.3 | I184: 0.8 | J184: 0.0 | K184: 0.0 | L184: 1.5 | M184: 9.7 | N184: 1.0 | O184: 0.0 | P184: 0.0 | Q184: 0.1 | R184: 1.5 | S184: 348.8 | T184: 265.0 | U184: 11.5 | V184: 13.4 | W184: 33.8 | X184: 0.6 | Y184: 0.0 | Z184: 785.2 | AA184: 145.3 | AB184: 0.7 | AC184: 0.1 | AD184: 0.1 | AE184: 0.6 | AF184: 1.0 | AG184: 3.7 | AH184: 0 | AI184: 40.75 | AJ184: 44 | AK184: 70.65 | AL184: 41.96 | AM184: 13.68 | AN184: 36.82 | AO184: 14.62 | AP184: 48.22 | AQ184: 46.51 | AR184: 92.04 | AS184: 58.16 | AT184: 18.4 | AU184: 39.32 | AV184: 286.58 | AW184: 0 | AX184: 71 | AY184: 42.6 | AZ184: 28.2 | BA184: 17.84 | BB184: 0 | BC184: 0 | BD184: 0 | BE184: 0 | BF184: 0 | BG184: 0 | BH184: 0 | BI184: 0.11 | BJ184: 0 | BK184: 0.06 | BL184: 0 | BM184: 0.01 | BN184: 0 | BO184: 0 | BP184: 0 | BQ184: 0.35 | BR184: 0 | BS184: 0 | BT184: 0.75 | BU184: 0 | BV184: 0 | BW184: 0 | BX184: 0 | BY184: 0 | BZ184: 156.24 | CC184: 130.86 | CE184: 49.17 | CF184: 27.53 | CG184: 38.35 | CH184: 625.17 | CI184: 375.25 | CJ184: 500.21 | CK184: 38.79 | CL184: 19.02 | CM184: 28.9 | CN184: 0 | CO184: 0.9
A185: ="3/3" -> 3/3 | B185: Картофельное пюре с маслом сливочным | C185: 120 | D185: 2.5 | E185: 2.8 | F185: 17.7 | G185: 105 | H185: 1.8 | I185: 0.1 | J185: 0.0 | K185: 0.0 | L185: 1.7 | M185: 14.6 | N185: 1.4 | O185: 0.0 | P185: 0.0 | Q185: 0.2 | R185: 1.5 | S185: 62.3 | T185: 509.0 | U185: 27.2 | V185: 24.3 | W185: 69.5 | X185: 0.9 | Y185: 15.0 | Z185: 27.3 | AA185: 20.0 | AB185: 0.1 | AC185: 0.1 | AD185: 0.1 | AE185: 1.1 | AF185: 2.1 | AG185: 4.4 | AH185: 0 | AI185: 26.85 | AJ185: 42.21 | AK185: 53.47 | AL185: 62.84 | AM185: 10.74 | AN185: 42.38 | AO185: 21.75 | AP185: 43.26 | AQ185: 60.53 | AR185: 164.9 | AS185: 73.44 | AT185: 15.36 | AU185: 42.75 | AV185: 229.77 | AW185: 0 | AX185: 32.15 | AY185: 29.24 | AZ185: 31.98 | BA185: 13.62 | BB185: 0.08 | BC185: 0.04 | BD185: 0.02 | BE185: 0.04 | BF185: 0.05 | BG185: 0.23 | BH185: 0 | BI185: 0.7 | BJ185: 0 | BK185: 0.21 | BL185: 0 | BM185: 0 | BN185: 0 | BO185: 0.04 | BP185: 0.07 | BQ185: 0.68 | BR185: 0 | BS185: 0 | BT185: 0.11 | BU185: 0 | BV185: 0 | BW185: 0 | BX185: 0 | BY185: 0 | BZ185: 98.99 | CC185: 19.55 | CE185: 14.07 | CF185: 9.33 | CG185: 11.7 | CH185: 481.65 | CI185: 423.36 | CJ185: 452.5 | CK185: 19.53 | CL185: 2.87 | CM185: 11.2 | CN185: 0 | CO185: 0.18
A186: ="1/27" -> 1/27 | B186: Котлеты "Крестьянские" из мясо говядины и птиц | C186: 50 | D186: 8.0 | E186: 9.2 | F186: 6.9 | G186: 141 | H186: 3.1 | I186: 17.5 | J186: 0.0 | K186: 0.0 | L186: 0.5 | M186: 5.6 | N186: 0.8 | O186: 0.0 | P186: 0.0 | Q186: 0.1 | R186: 0.9 | S186: 145.1 | T186: 117.3 | U186: 9.0 | V186: 11.9 | W186: 81.3 | X186: 1.1 | Y186: 17.9 | Z186: 2.5 | AA186: 18.4 | AB186: 1.7 | AC186: 0.0 | AD186: 0.1 | AE186: 2.5 | AF186: 4.8 | AG186: 0.3 | AH186: 0 | AI186: 405.15 | AJ186: 321.92 | AK186: 623.23 | AL186: 803.57 | AM186: 194.31 | AN186: 353.67 | AO186: 111.94 | AP186: 339.3 | AQ186: 473.58 | AR186: 492.79 | AS186: 699.89 | AT186: 241.54 | AU186: 507.33 | AV186: 1292.73 | AW186: 81.79 | AX186: 382.17 | AY186: 358.78 | AZ186: 277.15 | BA186: 108.81 | BB186: 0 | BC186: 0 | BD186: 0 | BE186: 0 | BF186: 0 | BG186: 0 | BH186: 0 | BI186: 0.19 | BJ186: 0 | BK186: 0.12 | BL186: 0.01 | BM186: 0.02 | BN186: 0 | BO186: 0 | BP186: 0 | BQ186: 0.7 | BR186: 0 | BS186: 0 | BT186: 1.77 | BU186: 0 | BV186: 0 | BW186: 0 | BX186: 0 | BY186: 0 | BZ186: 40.11 | CC186: 18.26 | CE186: 18.26 | CF186: 9.65 | CG186: 13.96 | CH186: 2109.43 | CI186: 1279.73 | CJ186: 1694.58 | CK186: 14.61 | CL186: 10.31 | CM186: 12.46 | CN186: 0 | CO186: 0.25
B187: Итого за 'Обед' | C187: =SUM(C180:C186) -> 540 | D187: 16.5 | E187: 19.5 | F187: 72.6 | G187: 519 | H187: 6.5 | I187: 19.5 | J187: 0.0 | K187: 0.0 | L187: 20.7 | M187: 43.9 | N187: 8.0 | O187: 0.0 | P187: 0.0 | Q187: 0.9 | R187: 5.7 | S187: 741.6 | T187: 1271.1 | U187: 90.6 | V187: 79.3 | W187: 246.1 | X187: 4.0 | Y187: 32.9 | Z187: 1857.3 | AA187: 368.0 | AB187: 4.4 | AC187: 0.3 | AD187: 0.3 | AE187: 4.9 | AF187: 9.1 | AG187: 18.9 | AH187: 0 | AI187: 1152.01 | AJ187: 1101.91 | AK187: 1787.77 | AL187: 1948.76 | AM187: 337.98 | AN187: 907.42 | AO187: 278.79 | AP187: 1097.63 | AQ187: 1084.17 | AR187: 1550.18 | AS187: 2146.18 | AT187: 601.19 | AU187: 1054.98 | AV187: 4124.3 | AW187: 101.94 | AX187: 996.54 | AY187: 947.25 | AZ187: 753.56 | BA187: 325 | BB187: 0.09 | BC187: 0.02 | BD187: 0.02 | BE187: 0.04 | BF187: 0.06 | BG187: 0.18 | BH187: 0 | BI187: 0.98 | BJ187: 0 | BK187: 0.35 | BL187: 0.02 | BM187: 0.02 | BN187: 0 | BO187: 0.02 | BP187: 0.07 | BQ187: 1.66 | BR187: 0 | BS187: 0 | BT187: 2.81 | BU187: 0.09 | BV187: 0 | BW187: 0 | BX187: 0 | BY187: 0 | BZ187: 472.86 | CB187: =$G$187/#REF!*100 ->  | CC187: 226.14 | CE187: 89.57 | CF187: 55.13 | CG187: 72.35 | CH187: 4139.52 | CI187: 2154.06 | CJ187: 3146.79 | CK187: 114.43 | CL187: 69.87 | CM187: 92.15 | CN187: 7.5 | CO187: 1.46
B188: Уплотненный полдник
A189: ="27/12" -> 27/12 | B189: Оладьи | C189: 70 | D189: 3.8 | E189: 4.3 | F189: 23.3 | G189: 147 | H189: 0.7 | I189: 2.7 | J189: 0.0 | K189: 0.0 | L189: 1.4 | M189: 20.8 | N189: 1.1 | O189: 0.0 | P189: 0.0 | Q189: 0.0 | R189: 0.8 | S189: 247.8 | T189: 41.2 | U189: 8.4 | V189: 5.2 | W189: 30.2 | X189: 0.4 | Y189: 2.7 | Z189: 0.8 | AA189: 4.7 | AB189: 2.4 | AC189: 0.0 | AD189: 0.0 | AE189: 0.4 | AF189: 1.2 | AG189: 0.0 | AH189: 0 | AI189: 172.68 | AJ189: 154.06 | AK189: 287.43 | AL189: 108.79 | AM189: 59.86 | AN189: 115.98 | AO189: 36.97 | AP189: 175.94 | AQ189: 126.28 | AR189: 149 | AS189: 144.56 | AT189: 75.28 | AU189: 126.43 | AV189: 1033.3 | AW189: 3.45 | AX189: 321.17 | AY189: 181.03 | AZ189: 93.08 | BA189: 70.65 | BB189: 0 | BC189: 0 | BD189: 0 | BE189: 0 | BF189: 0 | BG189: 0 | BH189: 0 | BI189: 0.27 | BJ189: 0 | BK189: 0.15 | BL189: 0.01 | BM189: 0.03 | BN189: 0 | BO189: 0 | BP189: 0 | BQ189: 0.91 | BR189: 0 | BS189: 0 | BT189: 2.64 | BU189: 0.01 | BV189: 0 | BW189: 0 | BX189: 0 | BY189: 0 | BZ189: 40.34 | CC189: 2.83 | CE189: 26.12 | CF189: 13.46 | CG189: 19.79 | CH189: 687.55 | CI189: 249.84 | CJ189: 468.7 | CK189: 3.8 | CL189: 2.14 | CM189: 3.31 | CN189: 1.19 | CO189: 0.63
A190: ="27/10" -> 27/10 | B190: Чай полусладкий | C190: 150 | D190: 0.2 | E190: 0.0 | F190: 3.8 | G190: 15 | H190: 0.0 | I190: 0.0 | J190: 0.0 | K190: 0.0 | L190: 3.7 | M190: 0.0 | N190: 0.1 | O190: 0.0 | P190: 0.0 | Q190: 0.0 | R190: 0.1 | S190: 0.0 | T190: 0.1 | U190: 0.1 | V190: 0.0 | W190: 0.0 | X190: 0.0 | Y190: 0.0 | Z190: 0.0 | AA190: 0.0 | AB190: 0.0 | AC190: 0.0 | AD190: 0.0 | AE190: 0.0 | AF190: 0.0 | AG190: 0.0 | AH190: 0 | AI190: 0 | AJ190: 0 | AK190: 0 | AL190: 0 | AM190: 0 | AN190: 0 | AO190: 0 | AP190: 0 | AQ190: 0 | AR190: 0 | AS190: 0 | AT190: 0 | AU190: 0 | AV190: 0 | AW190: 0 | AX190: 0 | AY190: 0 | AZ190: 0 | BA190: 0 | BB190: 0 | BC190: 0 | BD190: 0 | BE190: 0 | BF190: 0 | BG190: 0 | BH190: 0 | BI190: 0 | BJ190: 0 | BK190: 0 | BL190: 0 | BM190: 0 | BN190: 0 | BO190: 0 | BP190: 0 | BQ190: 0 | BR190: 0 | BS190: 0 | BT190: 0 | BU190: 0 | BV190: 0 | BW190: 0 | BX190: 0 | BY190: 0 | BZ190: 150.07 | CC190: 0 | CE190: 3.69 | CF190: 3.69 | CG190: 3.69 | CH190: 398.25 | CI190: 156.6 | CJ190: 277.43 | CK190: 39.61 | CL190: 23.41 | CM190: 31.51 | CN190: 3.75 | CO190: 0
A191: ="9/4" -> 9/4 | B191: Каша рисовая молочная вязкая с маслом сливочным | C191: 150 | D191: 3.9 | E191: 4.4 | F191: 30.4 | G191: 176 | H191: 2.8 | I191: 0.1 | J191: 0.0 | K191: 0.0 | L191: 6.6 | M191: 22.9 | N191: 0.9 | O191: 0.0 | P191: 0.0 | Q191: 0.1 | R191: 1.1 | S191: 176.1 | T191: 115.2 | U191: 70.4 | V191: 23.2 | W191: 94.4 | X191: 0.4 | Y191: 26.3 | Z191: 15.2 | AA191: 29.3 | AB191: 0.2 | AC191: 0.0 | AD191: 0.1 | AE191: 0.5 | AF191: 1.6 | AG191: 0.3 | AH191: 0 | AI191: 137.37 | AJ191: 108.23 | AK191: 203.3 | AL191: 85.74 | AM191: 52.37 | AN191: 79.34 | AO191: 33.92 | AP191: 121.2 | AQ191: 127.45 | AR191: 165.89 | AS191: 176.73 | AT191: 56.26 | AU191: 104.37 | AV191: 393.3 | AW191: 0 | AX191: 108.49 | AY191: 108.71 | AZ191: 95.33 | BA191: 44.67 | BB191: 0.1 | BC191: 0.05 | BD191: 0.02 | BE191: 0.06 | BF191: 0.06 | BG191: 0.3 | BH191: 0 | BI191: 0.87 | BJ191: 0 | BK191: 0.26 | BL191: 0 | BM191: 0 | BN191: 0 | BO191: 0.06 | BP191: 0.09 | BQ191: 0.77 | BR191: 0 | BS191: 0 | BT191: 0.09 | BU191: 0 | BV191: 0 | BW191: 0 | BX191: 0 | BY191: 0 | BZ191: 111.87 | CC191: 28.78 | CE191: 17.73 | CF191: 8.49 | CG191: 13.11 | CH191: 1334.29 | CI191: 616.06 | CJ191: 975.17 | CK191: 18.69 | CL191: 8.15 | CM191: 13.42 | CN191: 3.75 | CO191: 0.38
B192: Итого за 'Ужин' | C192: =SUM(C189:C191) -> 370 | D192: =SUM(D189:D191) -> 7.9 | E192: 8.7 | F192: 57.4 | G192: 337 | H192: 3 | I192: 3 | J192: 0 | K192: 0 | L192: 12 | M192: 44 | N192: 2 | O192: 0 | P192: 0 | Q192: 0 | R192: 2 | S192: 424 | T192: 157 | U192: 78.9 | V192: 28.5 | W192: 124.6 | X192: 0.8 | Y192: 29.0 | Z192: 16.0 | AA192: 33.9 | AB192: 2.6 | AC192: 0.1 | AD192: 0.1 | AE192: 0.9 | AF192: 2.7 | AG192: 0.3 | AH192: 0 | AI192: 310.05 | AJ192: 262.29 | AK192: 490.73 | AL192: 194.52 | AM192: 112.23 | AN192: 195.32 | AO192: 70.89 | AP192: 297.14 | AQ192: 253.73 | AR192: 314.89 | AS192: 321.29 | AT192: 131.55 | AU192: 230.8 | AV192: 1426.6 | AW192: 3.45 | AX192: 429.66 | AY192: 289.74 | AZ192: 188.41 | BA192: 115.33 | BB192: 0.1 | BC192: 0.05 | BD192: 0.02 | BE192: 0.06 | BF192: 0.06 | BG192: 0.3 | BH192: 0 | BI192: 1.14 | BJ192: 0 | BK192: 0.42 | BL192: 0.01 | BM192: 0.03 | BN192: 0 | BO192: 0.06 | BP192: 0.09 | BQ192: 1.67 | BR192: 0 | BS192: 0 | BT192: 2.73 | BU192: 0.01 | BV192: 0 | BW192: 0 | BX192: 0 | BY192: 0 | BZ192: 302.28 | CB192: =$G$192/#REF!*100 ->  | CC192: 31.61 | CE192: 47.54 | CF192: 25.64 | CG192: 36.59 | CH192: 2420.09 | CI192: 1022.5 | CJ192: 1721.3 | CK192: 62.1 | CL192: 33.69 | CM192: 48.23 | CN192: 8.69 | CO192: 1.01
B193: Итого за день | C193: =C175+C178+C187+C192 -> 1345 | D193: 34.5 | E193: 36.9 | F193: 184.3 | G193: 1188 | H193: 16 | I193: 22 | J193: 0 | K193: 0 | L193: 59 | M193: 112 | N193: 13 | O193: 0 | P193: 0 | Q193: 2 | R193: 11 | S193: 1516 | T193: 1958 | U193: 437.8 | V193: 153.9 | W193: 583.6 | X193: 8.1 | Y193: 106.2 | Z193: 1938.8 | AA193: 474.0 | AB193: 7.6 | AC193: 0.5 | AD193: 0.6 | AE193: 6.4 | AF193: 14.9 | AG193: 29.9 | AH193: 0 | AI193: 1822.6 | AJ193: 1679.96 | AK193: 2839.62 | AL193: 2420.27 | AM193: 569.67 | AN193: 1331.16 | AO193: 467.63 | AP193: 1751.26 | AQ193: 1564.73 | AR193: 2147.14 | AS193: 2853.4 | AT193: 892.03 | AU193: 1493.83 | AV193: 7337.82 | AW193: 105.38 | AX193: 2111.73 | AY193: 1574.19 | AZ193: 1196.26 | BA193: 554.15 | BB193: 0.26 | BC193: 0.11 | BD193: 0.1 | BE193: 0.25 | BF193: 0.29 | BG193: 1.02 | BH193: 0.04 | BI193: 3.42 | BJ193: 0.01 | BK193: 1.1 | BL193: 0.04 | BM193: 0.05 | BN193: 0 | BO193: 0.17 | BP193: 0.29 | BQ193: 4.34 | BR193: 0 | BS193: 0 | BT193: 5.71 | BU193: 0.11 | BV193: 0 | BW193: 0 | BX193: 0 | BY193: 0 | BZ193: 1160.22 | CC193: 313.06 | CE193: 182.74 | CF193: 101.18 | CG193: 141.96 | CH193: 10196.98 | CI193: 4863.56 | CJ193: 7530.27 | CK193: 260.16 | CL193: 148.1 | CM193: 204.47 | CN193: 27.44 | CO193: 2.84
B195: 2 день
B196: Завтрак
A197: ="-" -> - | B197: Батон | C197: 30 | D197: 2.3 | E197: 1.5 | F197: 11.2 | G197: 66 | H197: 0.2 | I197: 0.0 | J197: 0.0 | K197: 0.0 | L197: 1.0 | M197: 9.2 | N197: 1.0 | O197: 0.0 | P197: 0.0 | Q197: 0.1 | R197: 0.5 | S197: 128.7 | T197: 39.3 | U197: 6.6 | V197: 9.9 | W197: 25.5 | X197: 0.6 | Y197: 0.0 | Z197: 0.0 | AA197: 0.0 | AB197: 0.5 | AC197: 0.1 | AD197: 0.0 | AE197: 0.5 | AF197: 0.9 | AG197: 0.0 | AH197: 0 | AI197: 111.6 | AJ197: 115.8 | AK197: 177.3 | AL197: 59.7 | AM197: 35.1 | AN197: 70.2 | AO197: 26.4 | AP197: 126 | AQ197: 78.3 | AR197: 108.9 | AS197: 90.3 | AT197: 48.3 | AU197: 84 | AV197: 697.5 | AW197: 0 | AX197: 227.1 | AY197: 99.3 | AZ197: 66.6 | BA197: 51.9 | BB197: 0 | BC197: 0 | BD197: 0 | BE197: 0 | BF197: 0 | BG197: 0.01 | BH197: 0 | BI197: 0.1 | BJ197: 0 | BK197: 0.05 | BL197: 0 | BM197: 0 | BN197: 0 | BO197: 0 | BP197: 0 | BQ197: 0.35 | BR197: 0 | BS197: 0 | BT197: 0.26 | BU197: 0.01 | BV197: 0 | BW197: 0 | BX197: 0 | BY197: 0 | BZ197: 10.23 | CC197: 0 | CE197: 0 | CF197: 0 | CG197: 0 | CH197: 570 | CI197: 219.6 | CJ197: 394.8 | CK197: 4.56 | CL197: 4.56 | CM197: 4.56 | CN197: 0 | CO197: 0
A198: ="-" -> - | B198: Масло сливочное | C198: 5 | D198: 0.0 | E198: 3.6 | F198: 0.1 | G198: 33 | H198: 2.4 | I198: 0.1 | J198: 0.0 | K198: 0.0 | L198: 0.1 | M198: 0.0 | N198: 0.0 | O198: 0.0 | P198: 0.0 | Q198: 0.0 | R198: 0.1 | S198: 0.8 | T198: 1.5 | U198: 1.2 | V198: 0.0 | W198: 1.5 | X198: 0.0 | Y198: 20.0 | Z198: 15.0 | AA198: 22.5 | AB198: 0.1 | AC198: 0.0 | AD198: 0.0 | AE198: 0.0 | AF198: 0.0 | AG198: 0.0 | AH198: 0 | AI198: 2.1 | AJ198: 2.05 | AK198: 3.8 | AL198: 2.25 | AM198: 0.85 | AN198: 2.35 | AO198: 2.15 | AP198: 2.1 | AQ198: 1.8 | AR198: 1.3 | AS198: 2.85 | AT198: 1.75 | AU198: 1.2 | AV198: 7.1 | AW198: 0 | AX198: 2.4 | AY198: 2.7 | AZ198: 2.1 | BA198: 0.5 | BB198: 0.13 | BC198: 0.06 | BD198: 0.03 | BE198: 0.08 | BF198: 0.09 | BG198: 0.4 | BH198: 0 | BI198: 1.1 | BJ198: 0 | BK198: 0.34 | BL198: 0 | BM198: 0 | BN198: 0 | BO198: 0.08 | BP198: 0.12 | BQ198: 0.9 | BR198: 0 | BS198: 0 | BT198: 0.05 | BU198: 0 | BV198: 0 | BW198: 0 | BX198: 0 | BY198: 0 | BZ198: 1.25 | CC198: 22.5 | CE198: 0.2 | CF198: 0.05 | CG198: 0.13 | CH198: 10 | CI198: 4.1 | CJ198: 7.05 | CK198: 0.86 | CL198: 0.44 | CM198: 0.65 | CN198: 0 | CO198: 0
A199: ="29/10" -> 29/10 | B199: Чай с лимоном | C199: 150 | D199: 0.2 | E199: 0.0 | F199: 7.4 | G199: 30 | H199: 0.0 | I199: 0.0 | J199: 0.0 | K199: 0.0 | L199: 7.3 | M199: 0.0 | N199: 0.2 | O199: 0.0 | P199: 0.0 | Q199: 0.2 | R199: 0.1 | S199: 0.5 | T199: 6.1 | U199: 1.6 | V199: 0.4 | W199: 0.8 | X199: 0.0 | Y199: 0.0 | Z199: 0.3 | AA199: 0.1 | AB199: 0.0 | AC199: 0.0 | AD199: 0.0 | AE199: 0.0 | AF199: 0.0 | AG199: 0.6 | AH199: 0 | AI199: 0.5 | AJ199: 0.57 | AK199: 0.47 | AL199: 0.86 | AM199: 0.22 | AN199: 0.9 | AO199: 0 | AP199: 1.15 | AQ199: 0 | AR199: 0 | AS199: 0 | AT199: 0.65 | AU199: 0 | AV199: 0 | AW199: 0 | AX199: 0 | AY199: 0 | AZ199: 0 | BA199: 0 | BB199: 0 | BC199: 0 | BD199: 0 | BE199: 0 | BF199: 0 | BG199: 0 | BH199: 0 | BI199: 0 | BJ199: 0 | BK199: 0 | BL199: 0 | BM199: 0 | BN199: 0 | BO199: 0 | BP199: 0 | BQ199: 0 | BR199: 0 | BS199: 0 | BT199: 0 | BU199: 0 | BV199: 0 | BW199: 0 | BX199: 0 | BY199: 0 | BZ199: 149.62 | CC199: 0.05 | CE199: 3.85 | CF199: 3.72 | CG199: 3.79 | CH199: 434.63 | CI199: 165.16 | CJ199: 299.9 | CK199: 39.92 | CL199: 23.87 | CM199: 31.9 | CN199: 7.32 | CO199: 0
A200: ="17/4" -> 17/4 | B200: Каша молочная ассорти (рис, пшено) с маслом сливочным | C200: 150 | D200: 4.4 | E200: 4.6 | F200: 23.7 | G200: 153 | H200: 3.1 | I200: 0.1 | J200: 0.0 | K200: 0.0 | L200: 7.1 | M200: 15.8 | N200: 0.8 | O200: 0.0 | P200: 0.0 | Q200: 0.1 | R200: 1.2 | S200: 186.8 | T200: 135.8 | U200: 87.1 | V200: 24.6 | W200: 104.7 | X200: 0.5 | Y200: 18.2 | Z200: 17.4 | AA200: 34.1 | AB200: 0.1 | AC200: 0.1 | AD200: 0.1 | AE200: 0.4 | AF200: 1.7 | AG200: 0.4 | AH200: 0 | AI200: 108.85 | AJ200: 93.94 | AK200: 273.72 | AL200: 67.66 | AM200: 57.17 | AN200: 80.62 | AO200: 36.2 | AP200: 118.3 | AQ200: 186.51 | AR200: 111.78 | AS200: 146.18 | AT200: 54.04 | AU200: 74.87 | AV200: 429.27 | AW200: 0 | AX200: 145.09 | AY200: 130.57 | AZ200: 87.07 | BA200: 38.95 | BB200: 0.09 | BC200: 0.04 | BD200: 0.02 | BE200: 0.05 | BF200: 0.06 | BG200: 0.26 | BH200: 0 | BI200: 0.78 | BJ200: 0 | BK200: 0.24 | BL200: 0 | BM200: 0 | BN200: 0 | BO200: 0.05 | BP200: 0.08 | BQ200: 0.69 | BR200: 0 | BS200: 0 | BT200: 0.32 | BU200: 0.01 | BV200: 0 | BW200: 0 | BX200: 0 | BY200: 0 | BZ200: 125.1 | CC200: 21.08 | CE200: 32.08 | CF200: 14.79 | CG200: 23.43 | CH200: 2008.07 | CI200: 899.37 | CJ200: 1453.72 | CK200: 33.91 | CL200: 15.31 | CM200: 24.61 | CN200: 3.75 | CO200: 0.38
B201: Итого за 'Завтрак' | C201: =SUM(C197:C200) -> 335 | D201: =SUM(D197:D200) -> 6.9 | E201: 9.8 | F201: 42.4 | G201: 282 | H201: 5.7 | I201: 0.2 | J201: 0.0 | K201: 0.0 | L201: 15.4 | M201: 25.1 | N201: 1.9 | O201: 0.0 | P201: 0.0 | Q201: 0.4 | R201: 1.8 | S201: 316.7 | T201: 182.7 | U201: 96.5 | V201: 34.9 | W201: 132.4 | X201: 1.2 | Y201: 38.2 | Z201: 32.7 | AA201: 56.7 | AB201: 0.7 | AC201: 0.1 | AD201: 0.1 | AE201: 0.9 | AF201: 2.6 | AG201: 1.0 | AH201: 0 | AI201: 223.05 | AJ201: 212.36 | AK201: 455.29 | AL201: 130.47 | AM201: 93.33 | AN201: 154.06 | AO201: 64.75 | AP201: 247.55 | AQ201: 266.61 | AR201: 221.98 | AS201: 239.33 | AT201: 104.73 | AU201: 160.07 | AV201: 1133.87 | AW201: 0 | AX201: 374.59 | AY201: 232.57 | AZ201: 155.77 | BA201: 91.35 | BB201: 0.22 | BC201: 0.1 | BD201: 0.05 | BE201: 0.13 | BF201: 0.15 | BG201: 0.67 | BH201: 0 | BI201: 1.98 | BJ201: 0 | BK201: 0.62 | BL201: 0.01 | BM201: 0 | BN201: 0 | BO201: 0.13 | BP201: 0.2 | BQ201: 1.94 | BR201: 0 | BS201: 0 | BT201: 0.63 | BU201: 0.02 | BV201: 0 | BW201: 0 | BX201: 0 | BY201: 0 | BZ201: 286.2 | CB201: =$G$201/#REF!*100 ->  | CC201: 43.63 | CE201: 36.13 | CF201: 18.56 | CG201: 27.34 | CH201: 3022.7 | CI201: 1288.23 | CJ201: 2155.46 | CK201: 79.24 | CL201: 44.18 | CM201: 61.71 | CN201: 11.07 | CO201: 0.38
B202: 10:00
A203: ="-" -> - | B203: Ряженка | C203: 100 | D203: 3.0 | E203: 2.5 | F203: 4.2 | G203: 51 | H203: 0.1 | I203: 0.0 | J203: 0.0 | K203: 0.0 | L203: 4.2 | M203: 0.0 | N203: 0.0 | O203: 0.0 | P203: 0.0 | Q203: 0.1 | R203: 0.4 | S203: 2.0 | T203: 238.0 | U203: 15.0 | V203: 9.0 | W203: 12.0 | X203: 0.4 | Y203: 0.0 | Z203: 30.0 | AA203: 5.0 | AB203: 0.1 | AC203: 0.0 | AD203: 0.0 | AE203: 0.6 | AF203: 0.7 | AG203: 15.0 | AH203: 0 | AI203: 0 | AJ203: 0 | AK203: 450 | AL203: 387 | AM203: 115 | AN203: 216 | AO203: 72 | AP203: 225 | AQ203: 160 | AR203: 174 | AS203: 344 | AT203: 156 | AU203: 93 | AV203: 897 | AW203: 0 | AX203: 518 | AY203: 278 | AZ203: 242 | BA203: 50 | BB203: 0.1 | BC203: 0.07 | BD203: 0.04 | BE203: 0.08 | BF203: 0.09 | BG203: 0.45 | BH203: 0.03 | BI203: 0.56 | BJ203: 0.02 | BK203: 0.31 | BL203: 0.04 | BM203: 0 | BN203: 0 | BO203: 0.04 | BP203: 0.08 | BQ203: 0.69 | BR203: 0.01 | BS203: 0 | BT203: 0.02 | BU203: 0.03 | BV203: 0.08 | BW203: 0 | BX203: 0 | BY203: 0 | BZ203: 93 | CC203: 5 | CE203: 0 | CF203: 0 | CG203: 0 | CH203: 0 | CI203: 0 | CJ203: 0 | CK203: 0 | CL203: 0 | CM203: 0 | CN203: 0 | CO203: 0
A204: ="-" -> - | B204: Печенье | C204: 20 | D204: 0.4 | E204: 2.6 | F204: 11.5 | G204: 70 | H204: 0.4 | I204: 0.0 | J204: 0.0 | K204: 0.0 | L204: 5.0 | M204: 6.0 | N204: 0.5 | O204: 0.0 | P204: 0.0 | Q204: 0.1 | R204: 0.2 | S204: 66.0 | T204: 22.0 | U204: 5.8 | V204: 4.0 | W204: 18.0 | X204: 0.4 | Y204: 2.0 | Z204: 1.6 | AA204: 2.2 | AB204: 0.7 | AC204: 0.0 | AD204: 0.0 | AE204: 0.1 | AF204: 0.4 | AG204: 0.0 | AH204: 0 | AI204: 0 | AJ204: 0 | AK204: 0 | AL204: 0 | AM204: 0 | AN204: 0 | AO204: 0 | AP204: 0 | AQ204: 0 | AR204: 0 | AS204: 0 | AT204: 0 | AU204: 0 | AV204: 0 | AW204: 0 | AX204: 0 | AY204: 0 | AZ204: 0 | BA204: 0 | BB204: 0 | BC204: 0 | BD204: 0 | BE204: 0 | BF204: 0 | BG204: 0 | BH204: 0 | BI204: 0 | BJ204: 0 | BK204: 0 | BL204: 0 | BM204: 0 | BN204: 0 | BO204: 0 | BP204: 0 | BQ204: 0 | BR204: 0 | BS204: 0 | BT204: 0 | BU204: 0 | BV204: 0 | BW204: 0 | BX204: 0 | BY204: 0 | BZ204: 0.9 | CC204: 2.27 | CE204: 0 | CF204: 0 | CG204: 0 | CH204: 0 | CI204: 0 | CJ204: 0 | CK204: 0 | CL204: 0 | CM204: 0 | CN204: 0 | CO204: 0
B205: Итого за '10:00' | C205: =SUM(C203:C204) -> 120 | D205: =SUM(D203:D204) -> 3.4 | E205: 5.1 | F205: 15.7 | G205: 121 | H205: 0.5 | I205: 0.0 | J205: 0.0 | K205: 0.0 | L205: 9.2 | M205: 6.0 | N205: 0.5 | O205: 0.0 | P205: 0.0 | Q205: 0.2 | R205: 0.6 | S205: 68.0 | T205: 260.0 | U205: 20.8 | V205: 13.0 | W205: 30.0 | X205: 0.8 | Y205: 2.0 | Z205: 31.6 | AA205: 7.2 | AB205: 0.8 | AC205: 0.1 | AD205: 0.0 | AE205: 0.7 | AF205: 1.1 | AG205: 15.0 | AH205: 0 | AI205: 0 | AJ205: 0 | AK205: 450 | AL205: 387 | AM205: 115 | AN205: 216 | AO205: 72 | AP205: 225 | AQ205: 160 | AR205: 174 | AS205: 344 | AT205: 156 | AU205: 93 | AV205: 897 | AW205: 0 | AX205: 518 | AY205: 278 | AZ205: 242 | BA205: 50 | BB205: 0.1 | BC205: 0.07 | BD205: 0.04 | BE205: 0.08 | BF205: 0.09 | BG205: 0.45 | BH205: 0.03 | BI205: 0.56 | BJ205: 0.02 | BK205: 0.31 | BL205: 0.04 | BM205: 0 | BN205: 0 | BO205: 0.04 | BP205: 0.08 | BQ205: 0.69 | BR205: 0.01 | BS205: 0 | BT205: 0.02 | BU205: 0.03 | BV205: 0.08 | BW205: 0 | BX205: 0 | BY205: 0 | BZ205: 93.9 | CB205: =$G$205/#REF!*100 ->  | CC205: 7.27 | CE205: 0 | CF205: 0 | CG205: 0 | CH205: 0 | CI205: 0 | CJ205: 0 | CK205: 0 | CL205: 0 | CM205: 0 | CN205: 0 | CO205: 0
B206: Обед
A207: ="-" -> - | B207: Хлеб пшеничный | C207: 20 | D207: 1.2 | E207: 0.1 | F207: 7.4 | G207: 36 | H207: 0.0 | I207: 0.0 | J207: 0.0 | K207: 0.0 | L207: 0.2 | M207: 7.1 | N207: 0.0 | O207: 0.0 | P207: 0.0 | Q207: 0.0 | R207: 0.4 | S207: 0.0 | T207: 0.0 | U207: 0.0 | V207: 0.0 | W207: 0.0 | X207: 0.0 | Y207: 0.0 | Z207: 0.0 | AA207: 0.0 | AB207: 0.0 | AC207: 0.0 | AD207: 0.0 | AE207: 0.0 | AF207: 0.0 | AG207: 0.0 | AH207: 0 | AI207: 63.86 | AJ207: 66.47 | AK207: 101.79 | AL207: 33.76 | AM207: 20.01 | AN207: 40.02 | AO207: 15.14 | AP207: 72.38 | AQ207: 44.89 | AR207: 62.64 | AS207: 51.68 | AT207: 27.14 | AU207: 48.02 | AV207: 401.59 | AW207: 0 | AX207: 130.85 | AY207: 56.9 | AZ207: 37.76 | BA207: 29.93 | BB207: 0 | BC207: 0 | BD207: 0 | BE207: 0 | BF207: 0 | BG207: 0 | BH207: 0 | BI207: 0.02 | BJ207: 0 | BK207: 0 | BL207: 0 | BM207: 0 | BN207: 0 | BO207: 0 | BP207: 0 | BQ207: 0.01 | BR207: 0 | BS207: 0 | BT207: 0.06 | BU207: 0 | BV207: 0 | BW207: 0 | BX207: 0 | BY207: 0 | BZ207: 7.82 | CC207: 0 | CE207: 0 | CF207: 0 | CG207: 0 | CH207: 380 | CI207: 146.4 | CJ207: 263.2 | CK207: 3.04 | CL207: 3.04 | CM207: 3.04 | CN207: 0 | CO207: 0
A208: ="-" -> - | B208: Хлеб ржаной | C208: 20 | D208: 1.2 | E208: 0.2 | F208: 8.3 | G208: 38 | H208: 0.0 | I208: 0.0 | J208: 0.0 | K208: 0.0 | L208: 0.2 | M208: 6.4 | N208: 1.7 | O208: 0.0 | P208: 0.0 | Q208: 0.2 | R208: 0.5 | S208: 122.0 | T208: 49.0 | U208: 7.0 | V208: 9.4 | W208: 31.6 | X208: 0.8 | Y208: 0.0 | Z208: 1.0 | AA208: 0.2 | AB208: 0.3 | AC208: 0.0 | AD208: 0.0 | AE208: 0.1 | AF208: 0.4 | AG208: 0.0 | AH208: 0 | AI208: 64.4 | AJ208: 49.6 | AK208: 85.4 | AL208: 44.6 | AM208: 18.6 | AN208: 39.6 | AO208: 16 | AP208: 74.2 | AQ208: 59.4 | AR208: 58.2 | AS208: 92.8 | AT208: 24.8 | AU208: 62 | AV208: 311.8 | AW208: 0 | AX208: 105.2 | AY208: 58.2 | AZ208: 36 | BA208: 26 | BB208: 0 | BC208: 0 | BD208: 0 | BE208: 0 | BF208: 0 | BG208: 0 | BH208: 0 | BI208: 0.03 | BJ208: 0 | BK208: 0 | BL208: 0 | BM208: 0 | BN208: 0 | BO208: 0 | BP208: 0 | BQ208: 0.02 | BR208: 0 | BS208: 0 | BT208: 0.1 | BU208: 0.02 | BV208: 0 | BW208: 0 | BX208: 0 | BY208: 0 | BZ208: 9.4 | CC208: 0.17 | CE208: 4 | CF208: 4 | CG208: 4 | CH208: 760 | CI208: 292.8 | CJ208: 526.4 | CK208: 7.6 | CL208: 6.32 | CM208: 6.96 | CN208: 0 | CO208: 0
A209: ="3/10" -> 3/10 | B209: Компот из яблок | C209: 150 | D209: 0.1 | E209: 0.1 | F209: 14.4 | G209: 56 | H209: 0.0 | I209: 0.0 | J209: 0.0 | K209: 0.0 | L209: 13.7 | M209: 0.2 | N209: 0.5 | O209: 0.0 | P209: 0.0 | Q209: 0.2 | R209: 0.2 | S209: 7.8 | T209: 82.9 | U209: 5.0 | V209: 2.6 | W209: 3.1 | X209: 0.7 | Y209: 0.0 | Z209: 8.1 | AA209: 1.5 | AB209: 0.1 | AC209: 0.0 | AD209: 0.0 | AE209: 0.1 | AF209: 0.1 | AG209: 1.2 | AH209: 0 | AI209: 3.53 | AJ209: 3.82 | AK209: 5.59 | AL209: 5.29 | AM209: 0.88 | AN209: 3.23 | AO209: 0.88 | AP209: 2.65 | AQ209: 5 | AR209: 2.94 | AS209: 22.93 | AT209: 2.06 | AU209: 4.12 | AV209: 12.35 | AW209: 0 | AX209: 3.82 | AY209: 4.7 | AZ209: 1.76 | BA209: 1.47 | BB209: 0 | BC209: 0 | BD209: 0 | BE209: 0 | BF209: 0 | BG209: 0 | BH209: 0 | BI209: 0 | BJ209: 0 | BK209: 0 | BL209: 0 | BM209: 0 | BN209: 0 | BO209: 0 | BP209: 0 | BQ209: 0 | BR209: 0 | BS209: 0 | BT209: 0 | BU209: 0 | BV209: 0 | BW209: 0 | BX209: 0 | BY209: 0 | BZ209: 183.4 | CC209: 1.35 | CE209: 4.5 | CF209: 4.5 | CG209: 4.5 | CH209: 432 | CI209: 208.98 | CJ209: 320.49 | CK209: 41.2 | CL209: 24.19 | CM209: 32.7 | CN209: 11.25 | CO209: 0
A210: ="4/2" -> 4/2 | B210: Борщ с картофелем на говяжьем бульоне | C210: 150 | D210: 1.7 | E210: 5.1 | F210: 7.9 | G210: 82 | H210: 1.4 | I210: 1.2 | J210: 0.0 | K210: 0.0 | L210: 5.0 | M210: 1.7 | N210: 1.2 | O210: 0.0 | P210: 0.0 | Q210: 0.2 | R210: 1.5 | S210: 363.4 | T210: 186.3 | U210: 20.3 | V210: 12.3 | W210: 25.9 | X210: 0.6 | Y210: 0.0 | Z210: 607.7 | AA210: 126.6 | AB210: 0.9 | AC210: 0.0 | AD210: 0.1 | AE210: 0.3 | AF210: 0.6 | AG210: 4.8 | AH210: 0 | AI210: 23.75 | AJ210: 25.66 | AK210: 30.46 | AL210: 36.55 | AM210: 8.63 | AN210: 23.35 | AO210: 6.77 | AP210: 22.84 | AQ210: 26.28 | AR210: 46.43 | AS210: 108.91 | AT210: 8.7 | AU210: 20.14 | AV210: 130.91 | AW210: 0 | AX210: 22.34 | AY210: 25.78 | AZ210: 21.32 | BA210: 7.78 | BB210: 0 | BC210: 0 | BD210: 0 | BE210: 0 | BF210: 0 | BG210: 0 | BH210: 0 | BI210: 0.11 | BJ210: 0 | BK210: 0.07 | BL210: 0 | BM210: 0.01 | BN210: 0 | BO210: 0 | BP210: 0 | BQ210: 0.39 | BR210: 0 | BS210: 0 | BT210: 1.08 | BU210: 0 | BV210: 0 | BW210: 0 | BX210: 0 | BY210: 0 | BZ210: 172.63 | CC210: 101.28 | CE210: 47.66 | CF210: 25.2 | CG210: 36.43 | CH210: 545.04 | CI210: 170.64 | CJ210: 357.84 | CK210: 6.8 | CL210: 3.82 | CM210: 5.31 | CN210: 1.5 | CO210: 0.9
... 111 more rows

Sheet Лист1
A1: средний БЖУ за 12 дней до 3х лет
B2: Выход, г | C2: Белки, г | D2: Жиры, г | E2: Угле-воды, г | F2: ЭЦ, ккал
A3: СРЕДНИЙ по меню за завтрак | B3: =('01.09.2025'!C17+'01.09.2025'!C43+'01.09.2025'!C70+'01.09.2025'!C95+'01.09.2025'!C121+'01.09.2025'!C147+'01.09.2025'!C175+'01.09.2025'!C201+'01.09.2025'!C227+'01.09.2025'!C253+'01.09.2025'!C278+'01.09.2025'!C305)/12 -> 338 | C3: =('01.09.2025'!D17+'01.09.2025'!D43+'01.09.2025'!D70+'01.09.2025'!D95+'01.09.2025'!D121+'01.09.2025'!D147+'01.09.2025'!D175+'01.09.2025'!D201+'01.09.2025'!D227+'01.09.2025'!D253+'01.09.2025'!D278+'01.09.2025'!D305)/12 -> 9 | D3: =('01.09.2025'!E17+'01.09.2025'!E43+'01.09.2025'!E70+'01.09.2025'!E95+'01.09.2025'!E121+'01.09.2025'!E147+'01.09.2025'!E175+'01.09.2025'!E201+'01.09.2025'!E227+'01.09.2025'!E253+'01.09.2025'!E278+'01.09.2025'!E305)/12 -> 10 | E3: =('01.09.2025'!F17+'01.09.2025'!F43+'01.09.2025'!F70+'01.09.2025'!F95+'01.09.2025'!F121+'01.09.2025'!F147+'01.09.2025'!F175+'01.09.2025'!F201+'01.09.2025'!F227+'01.09.2025'!F253+'01.09.2025'!F278+'01.09.2025'!F305)/12 -> 42 | F3: =('01.09.2025'!G17+'01.09.2025'!G43+'01.09.2025'!G70+'01.09.2025'!G95+'01.09.2025'!G121+'01.09.2025'!G147+'01.09.2025'!G175+'01.09.2025'!G201+'01.09.2025'!G227+'01.09.2025'!G253+'01.09.2025'!G278+'01.09.2025'!G305)/12 -> 286
A4: 2ой завтрак | B4: =('01.09.2025'!C20+'01.09.2025'!C47+'01.09.2025'!C73+'01.09.2025'!C98+'01.09.2025'!C124+'01.09.2025'!C151+'01.09.2025'!C178+'01.09.2025'!C205+'01.09.2025'!C230+'01.09.2025'!C257+'01.09.2025'!C281+'01.09.2025'!C308)/12 -> 107 | C4: =('01.09.2025'!D20+'01.09.2025'!D47+'01.09.2025'!D73+'01.09.2025'!D98+'01.09.2025'!D124+'01.09.2025'!D151+'01.09.2025'!D178+'01.09.2025'!D205+'01.09.2025'!D230+'01.09.2025'!D257+'01.09.2025'!D281+'01.09.2025'!D308)/12 -> 2 | D4: =('01.09.2025'!E20+'01.09.2025'!E47+'01.09.2025'!E73+'01.09.2025'!E98+'01.09.2025'!E124+'01.09.2025'!E151+'01.09.2025'!E178+'01.09.2025'!E205+'01.09.2025'!E230+'01.09.2025'!E257+'01.09.2025'!E281+'01.09.2025'!E308)/12 -> 2 | E4: =('01.09.2025'!F20+'01.09.2025'!F47+'01.09.2025'!F73+'01.09.2025'!F98+'01.09.2025'!F124+'01.09.2025'!F151+'01.09.2025'!F178+'01.09.2025'!F205+'01.09.2025'!F230+'01.09.2025'!F257+'01.09.2025'!F281+'01.09.2025'!F308)/12 -> 14 | F4: =('01.09.2025'!G20+'01.09.2025'!G47+'01.09.2025'!G73+'01.09.2025'!G98+'01.09.2025'!G124+'01.09.2025'!G151+'01.09.2025'!G178+'01.09.2025'!G205+'01.09.2025'!G230+'01.09.2025'!G257+'01.09.2025'!G281+'01.09.2025'!G308)/12 -> 85
A5: обед | B5: =('01.09.2025'!C28+'01.09.2025'!C56+'01.09.2025'!C81+'01.09.2025'!C107+'01.09.2025'!C132+'01.09.2025'!C159+'01.09.2025'!C187+'01.09.2025'!C212+'01.09.2025'!C239+'01.09.2025'!C264+'01.09.2025'!C290+'01.09.2025'!C316)/12 -> 520 | C5: =('01.09.2025'!D28+'01.09.2025'!D56+'01.09.2025'!D81+'01.09.2025'!D107+'01.09.2025'!D132+'01.09.2025'!D159+'01.09.2025'!D187+'01.09.2025'!D212+'01.09.2025'!D239+'01.09.2025'!D264+'01.09.2025'!D290+'01.09.2025'!D316)/12 -> 16 | D5: =('01.09.2025'!E28+'01.09.2025'!E56+'01.09.2025'!E81+'01.09.2025'!E107+'01.09.2025'!E132+'01.09.2025'!E159+'01.09.2025'!E187+'01.09.2025'!E212+'01.09.2025'!E239+'01.09.2025'!E264+'01.09.2025'!E290+'01.09.2025'!E316)/12 -> 17 | E5: =('01.09.2025'!F28+'01.09.2025'!F56+'01.09.2025'!F81+'01.09.2025'!F107+'01.09.2025'!F132+'01.09.2025'!F159+'01.09.2025'!F187+'01.09.2025'!F212+'01.09.2025'!F239+'01.09.2025'!F264+'01.09.2025'!F290+'01.09.2025'!F316)/12 -> 70 | F5: =('01.09.2025'!G28+'01.09.2025'!G56+'01.09.2025'!G81+'01.09.2025'!G107+'01.09.2025'!G132+'01.09.2025'!G159+'01.09.2025'!G187+'01.09.2025'!G212+'01.09.2025'!G239+'01.09.2025'!G264+'01.09.2025'!G290+'01.09.2025'!G316)/12 -> 480
A6: уполд.полд. | B6: =('01.09.2025'!C34+'01.09.2025'!C61+'01.09.2025'!C86+'01.09.2025'!C112+'01.09.2025'!C138+'01.09.2025'!C165+'01.09.2025'!C192+'01.09.2025'!C218+'01.09.2025'!C244+'01.09.2025'!C269+'01.09.2025'!C296+'01.09.2025'!C322)/12 -> 319 | C6: =('01.09.2025'!D34+'01.09.2025'!D61+'01.09.2025'!D86+'01.09.2025'!D112+'01.09.2025'!D138+'01.09.2025'!D165+'01.09.2025'!D192+'01.09.2025'!D218+'01.09.2025'!D244+'01.09.2025'!D269+'01.09.2025'!D296+'01.09.2025'!D322)/12 -> 13 | D6: =('01.09.2025'!E34+'01.09.2025'!E61+'01.09.2025'!E86+'01.09.2025'!E112+'01.09.2025'!E138+'01.09.2025'!E165+'01.09.2025'!E192+'01.09.2025'!E218+'01.09.2025'!E244+'01.09.2025'!E269+'01.09.2025'!E296+'01.09.2025'!E322)/12 -> 11 | E6: =('01.09.2025'!F34+'01.09.2025'!F61+'01.09.2025'!F86+'01.09.2025'!F112+'01.09.2025'!F138+'01.09.2025'!F165+'01.09.2025'!F192+'01.09.2025'!F218+'01.09.2025'!F244+'01.09.2025'!F269+'01.09.2025'!F296+'01.09.2025'!F322)/12 -> 42 | F6: =('01.09.2025'!G34+'01.09.2025'!G61+'01.09.2025'!G86+'01.09.2025'!G112+'01.09.2025'!G138+'01.09.2025'!G165+'01.09.2025'!G192+'01.09.2025'!G218+'01.09.2025'!G244+'01.09.2025'!G269+'01.09.2025'!G296+'01.09.2025'!G322)/12 -> 312
A8: ПО САНПИН 75% за завтрак | B8: 350 | C8: 8.4 | D8: 9.4 | E8: 40.6 | F8: 280
A9: 2ой завтрак | B9: 100 | C9: 2.1 | D9: 2.4 | E9: 10.3 | F9: 70
A10: обед | B10: 450 | C10: 14.7 | D10: 16.5 | E10: 71.1 | F10: 490
A11: уполд.полд. | B11: 210 | C11: 6.3 | D11: 7.1 | E11: 30.5 | F11: 210
A13: РАЗНИЦА завтрак | B13: =B8-B3 -> 12 | C13: =C8-C3 -> -1 | D13: -0 | E13: -1 | F13: -6
A14: 2ой завтрак | B14: -7 | C14: =C9-C4 -> 0 | D14: 0 | E14: -4 | F14: -15
A15: обед | B15: -70 | C15: =C10-C5 -> -1 | D15: -0 | E15: 1 | F15: 10
A16: уполд.полд. | B16: -109 | C16: =C11-C6 -> -7 | D16: -4 | E16: -11 | F16: -102
A18: НОРМА +/ - 5% за завтрак | B18: 0 | C18: -0.6 | D18: -0.6 | E18: 0 | F18: 0
A19: 2ой завтрак | B19: -2 | C19: 0 | D19: 0 | E19: -3.7 | F19: 0
A20: обед | B20: -43 | C20: -1.0 | D20: 0 | E20: 0 | F20: 0
A21: уполд.полд. | B21: -94 | C21: -6.7 | D21: -3.9 | E21: -8.0 | F21: -82
